Workbook

Sheet OMe Rechnung
D1: Thermodynamic Parameter | E1: ΔH | F1: =H1*F2 -> 26707.10429 | G1: T1/2 | H1: 342.398773
A2: Field parameter | E2: ΔS | F2: 78
A3: Magnet | B3: 500 | C3: MHz | E3: R | F3: 8.314459 | J3: NMR parameter
D4: Arrhenius Parameter | E4: AHSLS | F4: 1313596531 | G4: ALSHS | H4: =F4*EXP(F2/F6) -> 1.558425821e+13 | J4: C0 | K4: 26410.01
E5: EaHSLS | F5: 13600 | G5: EaLSHS | H5: =F5+F1 -> 40307.10429 | J5: C1 | K5: -17.69
A6: H7 | E6: R | F6: 8.314459 | AP6: approximation
C7: kHSLS | D7: kLSHS | E7: γHS | F7: γLS | G7: γHS γLS | H7: Δω | M7: Relaxation Parameter | Z7: π LW (plus transition) | AB7: π LW (minus transition) | AE7: Lamorfrequenz plus transition | AG7: Lamorfrequenz (minus transition) | AL7: lamor_HS HS_fraction | AN7: R2HS-LW | AP7: gHsGLS/Kex*dw^2 | AQ7: γHSγLS | AR7: dw^2 | AS7: γHS R2HS | AT7: R2Hs*gHs | AU7: Texp | AV7: π LW experiment (H7)
A8: T | B8: 173 | C8: =$F$4*EXP(-$F$5/($F$3*B8)) -> 102856.8979 | D8: =$H$4*EXP(-$H$5/($F$3*B8)) -> 10.53949298 | E8: =D8/(D8+C8) -> 0.0001024570384 | F8: =C8/(D8+C8) -> 0.999897543 | G8: =F8*E8 -> 0.0001024465409 | H8: =500*2*PI()*($K$4/B8+$K$5) -> 424017.6733 | I8: K | J8: =D8/C8 -> 0.0001024675369 | K8: kex | L8: =D8+C8 -> 102867.4374 | M8: R2HS | N8: 955.1106557 | O8: R2LS | P8: 0.1 | Q8: coeff Rm | R8: 8.593172252e-05 | S8: coeff Rp | T8: 0.9999140683 | U8: coeff Im | V8: -4.427007233e-05 | W8: coeff Ip | X8: 4.427007233e-05 | Y8: Lam_Rp | Z8: 10.04899514 | AA8: Lam_Rm | AB8: 103812.599 | AD8: Lam_Ip | AE8: -2.412094123 | AF8: Lam_Im | AG8: -424015.2612 | AI8: LamorHS | AJ8: -424017.6733 | AK8: =(AJ8-AG8)/(2*PI()*500) -> -0.0007677934059 | AL8: =AJ8*E8 -> -43.44359502 | AM8: =(AL8-AE8)/(2*PI()*500) -> -0.01306073238 | AN8: =AB8-N8 -> 102857.4884 | AO8: =C8+N8 -> 103812.0085 | AP8: =(G8/L8)*(H8*H8)+N8*E8 -> 179.1532052 | AQ8: =(G8/L8) -> 9.959083605e-10 | AR8: =(H8*H8) -> 1.797909873e+11 | AS8: =N8*E8 -> 0.09785780908 | AU8: 323.237865 | AV8: 763.4070148
A9: T | B9: =B8+10 -> 183 | C9: =$F$4*EXP(-$F$5/($F$3*B9)) -> 172431.8537 | D9: 48.73486211 | E9: =D9/(D9+C9) -> 0.0002825527354 | F9: =C9/(D9+C9) -> 0.9997174473 | G9: =F9*E9 -> 0.0002824728994 | H9: 397810.4358 | I9: K | J9: 0.0002826325941 | K9: kex | L9: =D9+C9 -> 172480.5886 | M9: R2HS | N9: 727.6897327 | O9: R2LS | P9: 0.1 | Q9: coeff Rm | R9: 0.0001625015928 | S9: coeff Rp | T9: 0.9998374984 | U9: coeff Im | V9: -0.0001732962523 | W9: coeff Ip | X9: 0.0001732962523 | Y9: Lam_Rp | Z9: 41.10520615 | AA9: Lam_Rm | AB9: 173167.2731 | AD9: Lam_Ip | AE9: -17.76125378 | AF9: Lam_Im | AG9: -397792.6745 | AI9: LamorHS | AJ9: -397810.4358 | AK9: =(AJ9-AG9)/(2*PI()*500) -> -0.00565358267 | AL9: =AJ9*E9 -> -112.4024268 | AM9: =(AL9-AE9)/(2*PI()*500) -> -0.03012522102 | AN9: 172439.5833 | AO9: 173159.5434 | AP9: 259.3781035 | AQ9: 1.637708346e-09 | AR9: 1.582531428e+11 | AS9: 0.2056107245 | AU9: 312.366865 | AV9: 958.1857593
A10: T | B10: =B9+10 -> 193 | C10: 273999.2261 | D10: 192.2851619 | E10: 0.0007012805066 | F10: 0.9992987195 | G10: 0.0007007887123 | H10: 374318.9741 | I10: K | J10: 0.0007017726461 | K10: kex | L10: 274191.5113 | M10: R2HS | N10: 576.6028726 | O10: R2LS | P10: 0.1 | Q10: coeff Rm | R10: 0.000137999901 | S10: coeff Rp | T10: 0.9998620001 | U10: coeff Im | V10: -0.0004346688009 | W10: coeff Ip | X10: 0.0004346688009 | Y10: Lam_Rp | Z10: 125.2460656 | AA10: Lam_Rm | AB10: 274642.9681 | AD10: Lam_Ip | AE10: -91.54759651 | AF10: Lam_Im | AG10: -374227.4265 | AI10: LamorHS | AJ10: -374318.9741 | AK10: =(AJ10-AG10)/(2*PI()*500) -> -0.02914050503 | AL10: -262.5025998 | AM10: -0.05441666765 | AN10: 274066.3652 | AO10: 274575.829 | AP10: 358.5146308 | AQ10: 2.555836645e-09 | AR10: 1.401146944e+11 | AS10: 0.4043603546 | AU10: 301.495865 | AV10: 1043.008761
A11: T | B11: 203 | C11: 415973.0846 | D11: 662.7078957 | E11: 0.001590616811 | F11: 0.9984093832 | G11: 0.001588086749 | H11: 353141.9422 | I11: K | J11: 0.001593150904 | K11: kex | L11: 416635.7924 | M11: R2HS | N11: 458.2630898 | O11: R2LS | P11: 0.1 | Q11: coeff Rm | R11: -0.0001087504852 | S11: coeff Rp | T11: 1.00010875 | U11: coeff Im | V11: -0.0006561223917 | W11: coeff Ip | X11: 0.0006561223917 | Y11: Lam_Rp | Z11: 277.4031832 | AA11: Lam_Rm | AB11: 416816.7524 | AD11: Lam_Ip | AE11: -326.746006 | AF11: Lam_Im | AG11: -352815.1962 | AI11: LamorHS | AJ11: -353141.9422 | AK11: -0.104006484 | AL11: -561.71351 | AM11: -0.07479247947 | AN11: 416358.4893 | AO11: 416431.3476 | AP11: 476.0819305 | AQ11: 3.811690638e-09 | AR11: 1.247092313e+11 | AS11: 0.7289209746 | AU11: 296.060365 | AV11: 1021.017612
A12: T | B12: 213 | C12: 607234.1091 | D12: 2033.48345 | E12: 0.00333758676 | F12: 0.9966624132 | G12: 0.003326447274 | H12: 333953.364 | I12: K | J12: 0.003348763548 | K12: kex | L12: 609267.5925 | M12: R2HS | N12: 380.4646947 | O12: R2LS | P12: 0.1 | Q12: coeff Rm | R12: -0.0004160635325 | S12: coeff Rp | T12: 1.000416064 | U12: coeff Im | V12: -0.0006492205059 | W12: coeff Ip | X12: 0.0006492205059 | Y12: Lam_Rp | Z12: 470.3262652 | AA12: Lam_Rm | AB12: 609177.831 | AD12: Lam_Ip | AE12: -857.6450784 | AF12: Lam_Im | AG12: -333095.7189 | AI12: LamorHS | AJ12: -333953.364 | AK12: -0.2729969073 | AL12: -1114.598326 | AM12: =(AL12-AE12)/(2*PI()*500) -> -0.08179075897 | AN12: 608797.3663 | AO12: 607614.5738 | AP12: 610.167362 | AQ12: 5.459747597e-09 | AR12: 1.115248493e+11 | AS12: 1.269833927 | AU12: 290.624865 | AV12: 1124.69017
A13: T | B13: 223 | C13: 856865.1383 | D13: 5642.730634 | E13: 0.0065422367 | F13: 0.9934577633 | G13: 0.006499435839 | H13: 316485.7345 | I13: K | J13: 0.006585319418 | K13: kex | L13: 862507.869 | M13: R2HS | N13: 307.847608 | O13: R2LS | P13: 0.1 | Q13: coeff Rm | R13: -0.0005933473178 | S13: coeff Rp | T13: 1.000593347 | U13: coeff Im | V13: -0.0004978458169 | W13: coeff Ip | X13: 0.0004978458169 | Y13: Lam_Rp | Z13: 669.0106094 | AA13: Lam_Rm | AB13: 862146.806 | AD13: Lam_Ip | AE13: -1827.259033 | AF13: Lam_Im | AG13: -314658.4754 | AI13: LamorHS | AJ13: -316485.7345 | AK13: -0.5816346149 | AL13: -2070.524587 | AM13: -0.07743383067 | AN13: 861838.9584 | AO13: 857172.986 | AP13: 756.794862 | AQ13: 7.535509034e-09 | AR13: 1.001632201e+11 | AS13: 2.014011919 | AU13: 279.753865 | AV13: 1196.946801
A14: T | B14: 233 | C14: 1173900.634 | D14: 14344.68114 | E14: 0.01207215459 | F14: 0.9879278454 | G14: 0.01192641767 | H14: 300517.4723 | I14: K | J14: 0.01221967236 | K14: kex | L14: 1188245.316 | M14: R2HS | N14: 253.4500551 | O14: R2LS | P14: 0.1 | Q14: coeff Rm | R14: -0.0006365750494 | S14: coeff Rp | T14: 1.000636575 | U14: coeff Im | V14: -0.0003367107326 | W14: coeff Ip | X14: 0.0003367107326 | Y14: Lam_Rp | Z14: 857.5230091 | AA14: Lam_Rm | AB14: 1187641.343 | AD14: Lam_Ip | AE14: -3415.244339 | AF14: Lam_Im | AG14: -297102.228 | AI14: LamorHS | AJ14: -300517.4723 | AK14: -1.087106037 | AL14: -3627.893383 | AM14: -0.06768829277 | AN14: 1187387.893 | AO14: 1174154.085 | AP14: 909.5086551 | AQ14: 1.003699953e-08 | AR14: 9.031075116e+10 | AS14: 3.059688246 | AU14: 268.882865 | AV14: 1155.791937
A15: T | B15: 243 | C15: 1567103.28 | D15: 33770.89378 | E15: 0.02109528303 | F15: 0.978904717 | G15: 0.02065027206 | H15: 285863.4704 | I15: K | J15: 0.02154988393 | K15: kex | L15: 1600874.173 | M15: R2HS | N15: 208.5581743 | O15: R2LS | P15: 0.1 | Q15: coeff Rm | R15: -0.0006038881362 | S15: coeff Rp | T15: 1.000603888 | U15: coeff Im | V15: -0.0002141932554 | W15: coeff Ip | X15: 0.0002141932554 | Y15: Lam_Rp | Z15: 1028.852284 | AA15: Lam_Rm | AB15: 1600053.979 | AD15: Lam_Ip | AE15: -5853.430343 | AF15: Lam_Im | AG15: -280010.04 | AI15: LamorHS | AJ15: -285863.4704 | AK15: -1.863204746 | AL15: -6030.370816 | AM15: -0.05632190192 | AN15: 1599845.421 | AO15: 1567311.838 | AP15: 1058.50952 | AQ15: 1.289937236e-08 | AR15: 8.17179237e+10 | AS15: 4.399593715 | AU15: 258.011865 | AV15: 1118.406985
A16: T | B16: 253 | C16: 2044775.432 | D16: 74301.7124 | E16: 0.0350632409 | F16: 0.9649367591 | G16: 0.03383381004 | H16: 272367.8876 | I16: K | J16: 0.03633734602 | K16: kex | L16: 2119077.144 | M16: R2HS | N16: 170.3494323 | O16: R2LS | P16: 0.1 | Q16: coeff Rm | R16: -0.0005361220918 | S16: coeff Rp | T16: 1.000536122 | U16: coeff Im | V16: -0.0001309322224 | W16: coeff Ip | X16: 0.0001309322224 | Y16: Lam_Rp | Z16: 1174.183824 | AA16: Lam_Rm | AB16: 2118073.41 | AD16: Lam_Ip | AE16: -9408.864378 | AF16: Lam_Im | AG16: -262959.0232 | AI16: LamorHS | AJ16: -272367.8876 | AK16: -2.994934549 | AL16: -9550.100857 | AM16: -0.04495696745 | AN16: 2117903.06 | AO16: 2044945.781 | AP16: 1190.420855 | AQ16: 1.596629463e-08 | AR16: 7.41842662e+10 | AS16: 5.973003181 | AU16: 247.140865 | AV16: 1137.256541
A17: T | B17: 263 | C17: 2614608.672 | D17: 153961.7324 | E17: 0.05561055342 | F17: 0.9443894466 | G17: 0.05251801977 | H17: 259898.5849 | I17: K | J17: 0.05888519151 | K17: kex | L17: 2768570.405 | M17: R2HS | N17: 144.4593424 | O17: R2LS | P17: 0.1 | Q17: coeff Rm | R17: -0.0004537316447 | S17: coeff Rp | T17: 1.000453732 | U17: coeff Im | V17: -7.686617422e-05 | W17: coeff Ip | X17: 7.686617422e-05 | Y17: Lam_Rp | Z17: 1280.991105 | AA17: Lam_Rm | AB17: 2767433.973 | AD17: Lam_Ip | AE17: -14345.38684 | AF17: Lam_Im | AG17: -245553.198 | AI17: LamorHS | AJ17: -259898.5849 | AK17: -4.566278453 | AL17: -14453.10414 | AM17: -0.03428748041 | AN17: 2767289.513 | AO17: 2614753.131 | AP17: 1289.3623 | AQ17: 1.8969364e-08 | AR17: 6.754727442e+10 | AS17: 8.033463977 | AU17: 236.269865 | AV17: 983.3185006
A18: T | B18: 273 | C18: 3283571.305 | D18: 302444.8857 | E18: 0.08434007813 | F18: 0.9156599219 | G18: 0.07722682935 | H18: 248342.7842 | I18: K | J18: 0.0921085177 | K18: kex | L18: 3586016.191 | M18: R2HS | N18: 125.5714838 | O18: R2LS | P18: 0.1 | Q18: coeff Rm | R18: -0.0003670510714 | S18: coeff Rp | T18: 1.000367051 | U18: coeff Im | V18: -4.282630367e-05 | W18: coeff Ip | X18: 4.282630367e-05 | Y18: Lam_Rp | Z18: 1334.84781 | AA18: Lam_Rm | AB18: 3584807.014 | AD18: Lam_Ip | AE18: -20867.61847 | AF18: Lam_Im | AG18: -227475.1657 | AI18: LamorHS | AJ18: -248342.7842 | AK18: -6.642369262 | AL18: -20945.24982 | AM18: -0.02471082479 | AN18: 3584681.443 | AO18: 3283696.877 | AP18: 1338.777173 | AQ18: 2.153554955e-08 | AR18: 6.167413846e+10 | AS18: 10.59070875 | AU18: 225.398865 | AV18: 722.5663103
A19: T | B19: 283 | C19: 4057831.39 | D19: 566443.3577 | E19: 0.1224934479 | F19: 0.8775065521 | G19: 0.1074888031 | H19: 237603.6479 | I19: K | J19: 0.1395926305 | K19: kex | L19: 4624274.748 | M19: R2HS | N19: 109.2083775 | O19: R2LS | P19: 0.1 | Q19: coeff Rm | R19: -0.0002827100945 | S19: coeff Rp | T19: 1.00028271 | U19: coeff Im | V19: -2.224775163e-05 | W19: coeff Ip | X19: 2.224775163e-05 | Y19: Lam_Rp | Z19: 1324.069886 | AA19: Lam_Rm | AB19: 4623059.986 | AD19: Lam_Ip | AE19: -29052.81272 | AF19: Lam_Im | AG19: -208550.8351 | AI19: LamorHS | AJ19: -237603.6479 | AK19: -9.247797511 | AL19: -29104.89005 | AM19: -0.01657672896 | AN19: 4622950.778 | AO19: 4057940.598 | AP19: 1325.655182 | AQ19: 2.324446729e-08 | AR19: 5.645549347e+10 | AS19: 13.3773107 | AU19: 214.527865 | AV19: 471.238898
A20: T | B20: 293 | C20: 4942711.478 | D20: 1016401.624 | E20: =D20/(D20+C20) -> 0.1705625663 | F20: 0.8294374337 | G20: 0.1414709773 | H20: 227597.5584 | I20: K | J20: 0.2056364464 | K20: kex | L20: 5959113.102 | M20: R2HS | N20: 94.85888871 | O20: R2LS | P20: 0.1 | Q20: coeff Rm | R20: -0.0002060889453 | S20: coeff Rp | T20: 1.000206089 | U20: coeff Im | V20: -1.055732007e-05 | W20: coeff Ip | X20: 1.055732007e-05 | Y20: Lam_Rp | Z20: 1245.459705 | AA20: Lam_Rm | AB20: 5957962.601 | AD20: Lam_Ip | AE20: -38787.65461 | AF20: Lam_Im | AG20: -188809.9038 | AI20: LamorHS | AJ20: -227597.5584 | AK20: -12.34649392 | AL20: -38819.62365 | AM20: =(AL20-AE20)/(2*PI()*500) -> -0.01017606223 | AN20: 5957867.742 | AO20: 4942806.337 | AP20: 1245.940962 | AQ20: 2.374027391e-08 | AR20: 5.180064858e+10 | AS20: 16.1793755 | AU20: 203.656865 | AV20: 267.0353756
A21: T | B21: 303 | C21: 5942670.541 | D21: 1754747.171 | E21: 0.2279656941 | F21: 0.7720343059 | G21: 0.1759973364 | H21: 218251.9368 | I21: K | J21: 0.2952792283 | K21: kex | L21: 7697417.712 | M21: R2HS | N21: 82.08421783 | O21: R2LS | P21: 0.1 | Q21: coeff Rm | R21: -0.0001414461297 | S21: coeff Rp | T21: 1.000141446 | U21: coeff Im | V21: -4.473312958e-06 | W21: coeff Ip | X21: 4.473312958e-06 | Y21: Lam_Rp | Z21: 1107.78911 | AA21: Lam_Rm | AB21: 7696392.108 | AD21: Lam_Ip | AE21: -49736.33172 | AF21: Lam_Im | AG21: -168515.6051 | AI21: LamorHS | AJ21: -218251.9368 | AK21: -15.83156609 | AL21: -49753.95426 | AM21: -0.005609430786 | AN21: 7696310.023 | AO21: 5942752.625 | AP21: 1107.836197 | AQ21: 2.286446481e-08 | AR21: 4.763390793e+10 | AS21: 18.71238569 | AU21: 192.785865 | AV21: 113.4114948
A22: T | B22: 313 | C22: 7061308.392 | D22: 2925569.692 | E22: 0.2929413644 | F22: 0.7070586356 | G22: 0.2071267214 | H22: 209503.4796 | I22: K | J22: 0.4143098602 | K22: kex | L22: 9986878.084 | M22: R2HS | N22: 71.94572819 | O22: R2LS | P22: 0.1 | Q22: coeff Rm | R22: -9.115315095e-05 | S22: coeff Rp | T22: 1.000091153 | U22: coeff Im | V22: -1.646853349e-06 | W22: coeff Ip | X22: 1.646853349e-06 | Y22: Lam_Rp | Z22: 931.4616546 | AA22: Lam_Rm | AB22: 9986018.668 | AD22: Lam_Ip | AE22: -61363.70111 | AF22: Lam_Im | AG22: -148139.7785 | AI22: LamorHS | AJ22: -209503.4796 | AK22: -19.53267272 | AL22: -61372.23517 | AM22: -0.002716476119 | AN22: 9985946.723 | AO22: 7061380.338 | AP22: 931.3849368 | AQ22: 2.073988685e-08 | AR22: 4.389170797e+10 | AS22: 21.07587978 | AU22: 181.914865 | AV22: 62.83185307
A23: T | B23: 323 | C23: 8301388.042 | D23: 4725638.211 | E23: 0.3627564817 | F23: 0.6372435183 | G23: 0.2311642167 | H23: 201296.7225 | I23: K | J23: 0.5692588019 | K23: kex | L23: 13027026.25 | M23: R2HS | N23: 65.89202175 | O23: R2LS | P23: 0.1 | Q23: coeff Rm | R23: -5.520116605e-05 | S23: coeff Rp | T23: 1.000055201 | U23: coeff Im | V23: -5.044429072e-07 | W23: coeff Ip | X23: 5.044429072e-07 | Y23: Lam_Rp | Z23: 743.0230088 | AA23: Lam_Rm | AB23: 13026349.22 | AD23: Lam_Ip | AE23: -73018.17062 | AF23: Lam_Im | AG23: -128278.5519 | AI23: LamorHS | AJ23: -201296.7225 | AK23: =(AJ23-AG23)/(2*PI()*500) -> -23.24240558 | AL23: -73021.69086 | AM23: =(AL23-AE23)/(2*PI()*500) -> -0.001120526294 | AN23: 13026283.33 | AO23: 8301453.934 | AP23: 742.9355999 | AQ23: 1.774497205e-08 | AR23: 4.052037051e+10 | AS23: 23.90275799 | AU23: 171.043865 | AV23: 15.70796327
A24: T | B24: 333 | C24: 9664871.825 | D24: 7416567.984 | E24: 0.4341886906 | F24: 0.5658113094 | G24: 0.2456688716 | H24: 193582.8638 | I24: K | J24: 0.7673736515 | K24: kex | L24: 17081439.81 | M24: R2HS | N24: 58.57945384 | O24: R2LS | P24: 0.1 | Q24: coeff Rm | R24: -3.155527721e-05 | S24: coeff Rp | T24: 1.000031555 | U24: coeff Im | V24: -1.132163267e-07 | W24: coeff Ip | X24: 1.132163267e-07 | Y24: Lam_Rp | Z24: 564.4697984 | AA24: Lam_Rm | AB24: 17080934.02 | AD24: Lam_Ip | AE24: -84050.36047 | AF24: Lam_Im | AG24: -109532.5033 | AI24: LamorHS | AJ24: -193582.8638 | AK24: -26.75406067 | AL24: -84051.49015 | AM24: -0.0003595885085 | AN24: 17080875.44 | AO24: 9664930.404 | AP24: 564.3981879 | AQ24: 1.4382211e-08 | AR24: 3.747432515e+10 | AS24: 25.43453636
A25: T | B25: 343 | C25: 11152967.58 | D25: 11337882.11 | E25: 0.5041108836 | F25: 0.4958891164 | G25: 0.2499831006 | H25: 186318.7927 | I25: K | J25: 1.01657985 | K25: kex | L25: 22490849.69 | M25: R2HS | N25: 53.56488784 | O25: R2LS | P25: 0.1 | Q25: coeff Rm | R25: 1.000017157 | S25: coeff Rp | T25: -1.715673365e-05 | U25: coeff Im | V25: 7.509649252e-09 | W25: coeff Ip | X25: -7.509649252e-09 | Y25: Lam_Rp | Z25: 22490490.45 | AA25: Lam_Rm | AB25: 412.9084904 | AD25: Lam_Ip | AE25: -92393.65665 | AF25: Lam_Im | AG25: -93925.13606 | AI25: LamorHS | AJ25: -186318.7927 | AK25: -29.40981433 | AL25: -93925.33123 | AM25: =(AL25-AG25)/(2*PI()*500) -> -6.212383326e-05 | AN25: 359.3436025 | AO25: 11153021.14 | AP25: 412.8522926 | AQ25: 1.111488023e-08 | AR25: 3.471469252e+10 | AS25: 27.00264294
A26: T | B26: 353 | C26: 12766181.72 | D26: 16920661.02 | E26: 0.5699717268 | F26: 0.4300282732 | G26: 0.2451039574 | H26: 179466.2837 | I26: K | J26: 1.325428495 | K26: kex | L26: 29686842.73 | M26: R2HS | N26: 18.95064865 | O26: R2LS | P26: 0.1 | Q26: coeff Rm | R26: 1.000008958 | S26: coeff Rp | T26: -8.957751381e-06 | U26: coeff Im | V26: -1.327512179e-08 | W26: coeff Ip | X26: 1.327512179e-08 | Y26: Lam_Rp | Z26: 29686585.02 | AA26: Lam_Rm | AB26: 276.7672389 | AD26: Lam_Ip | AE26: -77175.40698 | AF26: Lam_Im | AG26: -102290.8768 | AI26: LamorHS | AJ26: -179466.2837 | AK26: =(AJ26-AG26)/(2*PI()*500) -> -24.56569501 | AL26: -102290.7076 | AM26: =(AL26-AG26)/(2*PI()*500) -> 5.382977431e-05 | AN26: 257.8165902 | AO26: 12766200.67 | AP26: 276.7219764 | AQ26: 8.256316095e-09 | AR26: 3.2208147e+10 | AS26: 10.80133393
A27: T | B27: 363 | C27: 14504376.53 | D27: 24701438.82 | E27: 0.6300452777 | F27: 0.3699547223 | G27: 0.2330882257 | H27: 172991.3235 | I27: K | J27: 1.703033479 | K27: kex | L27: 39205815.34 | M27: R2HS | N27: 18.10277279 | O27: R2LS | P27: 0.1 | Q27: coeff Rm | R27: 1.000004538 | S27: coeff Rp | T27: -4.538083698e-06 | U27: coeff Im | V27: -9.471603963e-09 | W27: coeff Ip | X27: 9.471603963e-09 | Y27: Lam_Rp | Z27: 39205644.18 | AA27: Lam_Rm | AB27: 189.3606236 | AD27: Lam_Ip | AE27: -63998.78987 | AF27: Lam_Im | AG27: -108992.5336 | AI27: LamorHS | AJ27: -172991.3235 | AK27: -20.37144752 | AL27: -108992.3664 | AM27: =(AL27-AG27)/(2*PI()*500) -> 5.320650536e-05 | AN27: 171.2578508 | AO27: 14504394.63 | AP27: 189.3229932 | AQ27: 5.945246227e-09 | AR27: 2.9925998e+10 | AS27: 11.40556651
A28: T | B28: 373 | C28: 16366829.54 | D28: 35335989.83 | E28: 0.6834441576 | F28: 0.3165558424 | G28: 0.2163482411 | H28: 166863.5461 | I28: K | J28: 2.159000296 | K28: kex | L28: 51702819.37 | M28: R2HS | N28: 17.45943204 | O28: R2LS | P28: 0.1 | Q28: coeff Rm | R28: 1.000002253 | S28: coeff Rp | T28: -2.253457022e-06 | U28: coeff Im | V28: -4.867715434e-09 | W28: coeff Ip | X28: 4.867715434e-09 | Y28: Lam_Rp | Z28: 51702708.45 | AA28: Lam_Rm | AB28: 128.4740423 | AD28: Lam_Ip | AE28: -52821.51668 | AF28: Lam_Im | AG28: -114042.0294 | AI28: LamorHS | AJ28: -166863.5461 | AK28: -16.81361096 | AL28: -114041.9157 | AM28: 3.619681635e-05 | AN28: 111.0146103 | AO28: 16366847 | AP28: 128.4422458 | AQ28: 4.184457322e-09 | AR28: 2.7843443e+10 | AS28: 11.93254682
A29: T | B29: 383 | C29: 18352293.28 | D29: 49612650.3 | E29: 0.7299741262 | F29: 0.2700258738 | G29: 0.1971119013 | H29: 161055.757 | I29: K | J29: 2.703348816 | K29: kex | L29: 67964943.58 | M29: R2HS | N29: 17.06904842 | O29: R2LS | P29: 0.1 | Q29: coeff Rm | R29: 1.000001107 | S29: coeff Rp | T29: -1.106867463e-06 | U29: coeff Im | V29: -2.179592652e-09 | W29: coeff Ip | X29: 2.179592652e-09 | Y29: Lam_Rp | Z29: 67964873.04 | AA29: Lam_Rm | AB29: 87.71513726 | AD29: Lam_Ip | AE29: -43489.15538 | AF29: Lam_Im | AG29: -117566.6016 | AI29: LamorHS | AJ29: -161055.757 | AK29: -13.8430281 | AL29: -117566.5355 | AM29: 2.105353525e-05 | AN29: 70.64608884 | AO29: 18352310.35 | AP29: 87.68811569 | AQ29: 2.900199587e-09 | AR29: 2.593895687e+10 | AS29: 12.4599637
A30: T | B30: 393 | C30: 20459053.99 | D30: 68464838.11 | E30: 0.7699262425 | F30: 0.2300737575 | G30: 0.1771398236 | H30: 155543.5298 | I30: K | J30: 3.346432253 | K30: kex | L30: 88923892.1 | M30: R2HS | N30: 16.71825446 | O30: R2LS | P30: 0.1 | Q30: coeff Rm | R30: 1.000000542 | S30: coeff Rp | T30: -5.419796556e-07 | U30: coeff Im | V30: -9.077715082e-10 | W30: coeff Ip | X30: 9.077715082e-10 | Y30: Lam_Rp | Z30: 88923847.83 | AA30: Lam_Rm | AB30: 61.08978974 | AD30: Lam_Ip | AE30: -35786.44913 | AF30: Lam_Im | AG30: -119757.0806 | AI30: LamorHS | AJ30: -155543.5298 | AK30: =(AJ30-AG30)/(2*PI()*500) -> -11.39118055 | AL30: -119757.0454 | AM30: 1.120836148e-05 | AN30: 44.37153528 | AO30: 20459070.7 | AP30: 61.06678518 | AQ30: 1.992038578e-09 | AR30: 2.419378965e+10 | AS30: 12.87182284
A35: H2 | B35: C0 | C35: 16152 | D35: C1 | E35: -3.4011
C37: kHSLS | D37: kLSHS | Z37: Pi*linienbreite | AB37: Pi*linienbreite H2 | AE37: Lamorfrequenz p | AG37: Lamorfrequenz m
A38: T | B38: 173 | C38: =$F$4*EXP(-$F$5/($F$3*B38)) -> 102856.8979 | D38: =$H$4*EXP(-$H$5/($F$3*B38)) -> 10.53949298 | I38: K | J38: =D38/C38 -> 0.0001024675369 | K38: kex | L38: =D38+C38 -> 102867.4374 | M38: R2HS | N38: 797.1740861 | O38: R2LS | P38: 0.1 | Q38: coeff Rm | R38: 6.922493791e-05 | S38: coeff Rp | T38: 0.9999307751 | U38: coeff Im | V38: -5.800292882e-05 | W38: coeff Ip | X38: 5.800292882e-05 | Y38: Lam_Rp | Z38: 9.399602623 | AA38: Lam_Rm | AB38: 103655.3119 | AD38: Lam_Ip | AE38: -3.381000258 | AF38: Lam_Im | AG38: -282623.9132
A39: T | B39: =B38+10 -> 183 | C39: =$F$4*EXP(-$F$5/($F$3*B39)) -> 172431.8537 | D39: 48.73486211 | I39: K | J39: 0.0002826325941 | K39: kex | L39: 172480.5886 | M39: R2HS | N39: 607.3593611 | O39: R2LS | P39: 0.1 | Q39: coeff Rm | R39: 8.174231836e-05 | S39: coeff Rp | T39: 0.9999182577 | U39: coeff Im | V39: -0.0001812421889 | W39: coeff Ip | X39: 0.0001812421889 | Y39: Lam_Rp | Z39: 34.43959645 | AA39: Lam_Rm | AB39: 173053.6083 | AD39: Lam_Ip | AE39: -22.18117147 | AF39: Lam_Im | AG39: -266577.1259
A40: T | B40: =B39+10 -> 193 | C40: 273999.2261 | D40: 192.2851619 | I40: K | J40: 0.0007017726461 | K40: kex | L40: 274191.5113 | M40: R2HS | N40: 481.2561406 | O40: R2LS | P40: 0.1 | Q40: coeff Rm | R40: -2.621518093e-05 | S40: coeff Rp | T40: 1.000026215 | U40: coeff Im | V40: -0.0003199693658 | W40: coeff Ip | X40: 0.0003199693658 | Y40: Lam_Rp | Z40: 88.27877121 | AA40: Lam_Rm | AB40: 274584.5886 | AD40: Lam_Ip | AE40: -95.6624492 | AF40: Lam_Im | AG40: -252136.5887
A41: T | B41: 203 | C41: 415973.0846 | D41: 662.7078957 | I41: K | J41: 0.001593150904 | K41: kex | L41: 416635.7924 | M41: R2HS | N41: 382.4849588 | O41: R2LS | P41: 0.1 | Q41: coeff Rm | R41: -0.000198425494 | S41: coeff Rp | T41: 1.000198425 | U41: coeff Im | V41: -0.0003406256327 | W41: coeff Ip | X41: 0.0003406256327 | Y41: Lam_Rp | Z41: 164.7002117 | AA41: Lam_Rm | AB41: 416853.6772 | AD41: Lam_Ip | AE41: -286.0347798 | AF41: Lam_Im | AG41: -238994.6341
A42: T | B42: 213 | C42: 607234.1091 | D42: 2033.48345 | I42: K | J42: 0.003348763548 | K42: kex | L42: 609267.5925 | M42: R2HS | N42: 317.5512632 | O42: R2LS | P42: 0.1 | Q42: coeff Rm | R42: -0.0003083072677 | S42: coeff Rp | T42: 1.000308307 | U42: coeff Im | V42: -0.0002670088078 | W42: coeff Ip | X42: 0.0002670088078 | Y42: Lam_Rp | Z42: 249.3459472 | AA42: Lam_Rm | AB42: 609335.8978 | AD42: Lam_Ip | AE42: -666.5631898 | AF42: Lam_Im | AG42: -226878.6343
A43: T | B43: 223 | C43: 856865.1383 | D43: 5642.730634 | I43: K | J43: 0.006585319418 | K43: kex | L43: 862507.869 | M43: R2HS | N43: 256.9420979 | O43: R2LS | P43: 0.1 | Q43: coeff Rm | R43: -0.0003418074701 | S43: coeff Rp | T43: 1.000341807 | U43: coeff Im | V43: -0.0001819806924 | W43: coeff Ip | X43: 0.0001819806924 | Y43: Lam_Rp | Z43: 335.4293266 | AA43: Lam_Rm | AB43: 862429.4818 | AD43: Lam_Ip | AE43: -1335.092042 | AF43: Lam_Im | AG43: -215527.1427
A44: T | B44: 233 | C44: 1173900.634 | D44: 14344.68114 | I44: K | J44: 0.01221967236 | K44: kex | L44: 1188245.316 | M44: R2HS | N44: 211.5396942 | O44: R2LS | P44: 0.1 | Q44: coeff Rm | R44: -0.0003322423256 | S44: coeff Rp | T44: 1.000332242 | U44: coeff Im | V44: -0.0001172538164 | W44: coeff Ip | X44: 0.0001172538164 | Y44: Lam_Rp | Z44: 420.9419597 | AA44: Lam_Rm | AB44: 1188036.013 | AD44: Lam_Ip | AE44: -2428.038472 | AF44: Lam_Im | AG44: -204668.2261
A45: T | B45: 243 | C45: 1567103.28 | D45: 33770.89378 | I45: K | J45: 0.02154988393 | K45: kex | L45: 1600874.173 | M45: R2HS | N45: 174.07111 | O45: R2LS | P45: 0.1 | Q45: coeff Rm | R45: -0.0003033638453 | S45: coeff Rp | T45: 1.000303364 | U45: coeff Im | V45: -7.357612857e-05 | W45: coeff Ip | X45: 7.357612857e-05 | Y45: Lam_Rp | Z45: 503.1366185 | AA45: Lam_Rm | AB45: 1600545.208 | AD45: Lam_Ip | AE45: -4119.576806 | AF45: Lam_Im | AG45: -194014.5011
A46: T | B46: 253 | C46: 2044775.432 | D46: 74301.7124 | I46: K | J46: 0.03633734602 | K46: kex | L46: 2119077.144 | M46: R2HS | N46: 142.1805444 | O46: R2LS | P46: 0.1 | Q46: coeff Rm | R46: -0.0002661686869 | S46: coeff Rp | T46: 1.000266169 | U46: coeff Im | V46: -4.510909916e-05 | W46: coeff Ip | X46: 4.510909916e-05 | Y46: Lam_Rp | Z46: 576.8136497 | AA46: Lam_Rm | AB46: 2118642.611 | AD46: Lam_Ip | AE46: -6609.298756 | AF46: Lam_Im | AG46: -183271.0658
A47: T | B47: 263 | C47: 2614608.672 | D47: 153961.7324 | I47: K | J47: 0.05888519151 | K47: kex | L47: 2768570.405 | M47: R2HS | N47: 120.5716255 | O47: R2LS | P47: 0.1 | Q47: coeff Rm | R47: -0.0002253636471 | S47: coeff Rp | T47: 1.000225364 | U47: coeff Im | V47: -2.67811907e-05 | W47: coeff Ip | X47: 2.67811907e-05 | Y47: Lam_Rp | Z47: 634.8158158 | AA47: Lam_Rm | AB47: 2768056.26 | AD47: Lam_Ip | AE47: -10097.6704 | AF47: Lam_Im | AG47: -172156.6396
A48: T | B48: 273 | C48: 3283571.305 | D48: 302444.8857 | I48: K | J48: 0.0921085177 | K48: kex | L48: 3586016.191 | M48: R2HS | N48: 104.8070527 | O48: R2LS | P48: 0.1 | Q48: coeff Rm | R48: -0.0001834732808 | S48: coeff Rp | T48: 1.000183473 | U48: coeff Im | V48: -1.515599016e-05 | W48: coeff Ip | X48: 1.515599016e-05 | Y48: Lam_Rp | Z48: 668.8510717 | AA48: Lam_Rm | AB48: 3585452.247 | AD48: Lam_Ip | AE48: -14747.67984 | AF48: Lam_Im | AG48: -160439.2609
A49: T | B49: 283 | C49: 4057831.39 | D49: 566443.3577 | I49: K | J49: 0.1395926305 | K49: kex | L49: 4624274.748 | M49: R2HS | N49: 91.14974062 | O49: R2LS | P49: 0.1 | Q49: coeff Rm | R49: -0.000142642238 | S49: coeff Rp | T49: 1.000142642 | U49: coeff Im | V49: -8.017888997e-06 | W49: coeff Ip | X49: 8.017888997e-06 | Y49: Lam_Rp | Z49: 671.7123398 | AA49: Lam_Rm | AB49: 4623694.285 | AD49: Lam_Ip | AE49: -20635.82486 | AF49: Lam_Im | AG49: -147983.2073
A50: T | B50: 293 | C50: 4942711.478 | D50: 1016401.624 | I50: K | J50: 0.2056364464 | K50: kex | L50: 5959113.102 | M50: R2HS | N50: 79.17307535 | O50: R2LS | P50: 0.1 | Q50: coeff Rm | R50: -0.000105123831 | S50: coeff Rp | T50: 1.000105124 | U50: coeff Im | V50: -3.882355016e-06 | W50: coeff Ip | X50: 3.882355016e-06 | Y50: Lam_Rp | Z50: 640.3211764 | AA50: Lam_Rm | AB50: 5958552.053 | AD50: Lam_Ip | AE50: -27704.44942 | AF50: Lam_Im | AG50: -134794.9956
A51: T | B51: 303 | C51: 5942670.541 | D51: 1754747.171 | I51: K | J51: 0.2952792283 | K51: kex | L51: 7697417.712 | M51: R2HS | N51: 68.51081699 | O51: R2LS | P51: 0.1 | Q51: coeff Rm | R51: -7.300299599e-05 | S51: coeff Rp | T51: 1.000073003 | U51: coeff Im | V51: -1.682307297e-06 | W51: coeff Ip | X51: 1.682307297e-06 | Y51: Lam_Rp | Z51: 577.6940611 | AA51: Lam_Rm | AB51: 7696908.629 | AD51: Lam_Ip | AE51: -35734.60638 | AF51: Lam_Im | AG51: -121049.1847
A52: T | B52: 313 | C52: 7061308.392 | D52: 2925569.692 | I52: K | J52: 0.4143098602 | K52: kex | L52: 9986878.084 | M52: R2HS | N52: 60.04882238 | O52: R2LS | P52: 0.1 | Q52: coeff Rm | R52: -4.762377701e-05 | S52: coeff Rp | T52: 1.000047624 | U52: coeff Im | V52: -6.359188482e-07 | W52: coeff Ip | X52: 6.359188482e-07 | Y52: Lam_Rp | Z52: 493.2701099 | AA52: Lam_Rm | AB52: 9986444.963 | AD52: Lam_Ip | AE52: -44357.73012 | AF52: Lam_Im | AG52: -107075.6245
A53: T | B53: 323 | C53: 8301388.042 | D53: 4725638.211 | I53: K | J53: 0.5692588019 | K53: kex | L53: 13027026.25 | M53: R2HS | N53: 54.99615349 | O53: R2LS | P53: 0.1 | Q53: coeff Rm | R53: -2.920243621e-05 | S53: coeff Rp | T53: 1.000029202 | U53: coeff Im | V53: -2.020992673e-07 | W53: coeff Ip | X53: 2.020992673e-07 | Y53: Lam_Rp | Z53: 400.4211838 | AA53: Lam_Rm | AB53: 13026680.93 | AD53: Lam_Ip | AE53: -53111.24642 | AF53: Lam_Im | AG53: -93302.96807
A54: T | B54: 333 | C54: 9664871.825 | D54: 7416567.984 | I54: K | J54: 0.7673736515 | K54: kex | L54: 17081439.81 | M54: R2HS | N54: 48.89278776 | O54: R2LS | P54: 0.1 | Q54: coeff Rm | R54: -1.690592808e-05 | S54: coeff Rp | T54: 1.000016906 | U54: coeff Im | V54: -4.856325201e-08 | W54: coeff Ip | X54: 4.856325201e-08 | Y54: Lam_Rp | Z54: 310.0541201 | AA54: Lam_Rm | AB54: 17081178.75 | AD54: Lam_Ip | AE54: -61522.51414 | AF54: Lam_Im | AG54: -80174.0101
A55: T | B55: 343 | C55: 11152967.58 | D55: 11337882.11 | I55: K | J55: 1.01657985 | K55: kex | L55: 22490849.69 | M55: R2HS | N55: 44.70742762 | O55: R2LS | P55: 0.1 | Q55: coeff Rm | R55: 1.00000931 | S55: coeff Rp | T55: -9.31023297e-06 | U55: coeff Im | V55: 5.117506924e-09 | W55: coeff Ip | X55: -5.117506924e-09 | Y55: Lam_Rp | Z55: 22490662.52 | AA55: Lam_Rm | AB55: 231.9782319 | AD55: Lam_Ip | AE55: -68062.8497 | AF55: Lam_Im | AG55: -69191.06827
A56: T | B56: 353 | C56: 12766181.72 | D56: 16920661.02 | I56: K | J56: 1.325428495 | K56: kex | L56: 29686842.73 | M56: R2HS | N56: 40.80560042 | O56: R2LS | P56: 0.1 | Q56: coeff Rm | R56: 1.000004924 | S56: coeff Rp | T56: -4.924287463e-06 | U56: coeff Im | V56: -3.164842066e-09 | W56: coeff Ip | X56: 3.164842066e-09 | Y56: Lam_Rp | Z56: 29686714.15 | AA56: Lam_Rm | AB56: 169.48618 | AD56: Lam_Ip | AE56: -57220.85736 | AF56: Lam_Im | AG56: -75842.16008
A57: T | B57: 363 | C57: 14504376.53 | D57: 24701438.82 | I57: K | J57: 1.703033479 | K57: kex | L57: 39205815.34 | M57: R2HS | N57: 39.3090113 | O57: R2LS | P57: 0.1 | Q57: coeff Rm | R57: 1.000002528 | S57: coeff Rp | T57: -2.527523123e-06 | U57: coeff Im | V57: -2.794267206e-09 | W57: coeff Ip | X57: 2.794267206e-09 | Y57: Lam_Rp | Z57: 39205730.85 | AA57: Lam_Rm | AB57: 123.8966244 | AD57: Lam_Ip | AE57: -47762.24742 | AF57: Lam_Im | AG57: -81340.7731
A58: T | B58: 373 | C58: 16366829.54 | D58: 35335989.83 | I58: K | J58: 2.159000296 | K58: kex | L58: 51702819.37 | M58: R2HS | N58: 33.35318592 | O58: R2LS | P58: 0.1 | Q58: coeff Rm | R58: 1.000001272 | S58: coeff Rp | T58: -1.271779779e-06 | U58: coeff Im | V58: -1.587856017e-09 | W58: coeff Ip | X58: 1.587856017e-09 | Y58: Lam_Rp | Z58: 51702764.24 | AA58: Lam_Rm | AB58: 88.58118609 | AD58: Lam_Ip | AE58: -39681.94668 | AF58: Lam_Im | AG58: -85673.4092
A59: T | B59: 383 | C59: 18352293.28 | D59: 49612650.3 | I59: K | J59: 2.703348816 | K59: kex | L59: 67964943.58 | M59: R2HS | N59: 32.67734712 | O59: R2LS | P59: 0.1 | Q59: coeff Rm | R59: 1.000000633 | S59: coeff Rp | T59: -6.330852164e-07 | U59: coeff Im | V59: -7.05053351e-10 | W59: coeff Ip | X59: 7.05053351e-10 | Y59: Lam_Rp | Z59: 67964909.45 | AA59: Lam_Rm | AB59: 66.90819705 | AD59: Lam_Ip | AE59: -32890.05483 | AF59: Lam_Im | AG59: -88913.3369
A60: T | B60: 393 | C60: 20459053.99 | D60: 68464838.11 | I60: K | J60: 3.346432253 | K60: kex | L60: 88923892.1 | M60: R2HS | N60: 32.0709583 | O60: R2LS | P60: 0.1 | Q60: coeff Rm | R60: 1.000000314 | S60: coeff Rp | T60: -3.142092787e-07 | U60: coeff Im | V60: -2.821881147e-10 | W60: coeff Ip | X60: 2.821881147e-10 | Y60: Lam_Rp | Z60: 88923871.61 | AA60: Lam_Rm | AB60: 52.65598684 | AD60: Lam_Ip | AE60: -27248.13376 | AF60: Lam_Im | AG60: -91184.05537
N61: 31.52244331
N62: 31.02507412
A69: H3 | B69: C0 | C69: 6889.1 | D69: C1 | E69: -9.38
C71: kHSLS | D71: kLSHS | Z71: Pi*linienbreite | AB71: Pi*linienbreite H3 | AE71: Lamorfrequenz p | AG71: Lamorfrequenz m
A72: T | B72: 173 | C72: =$F$4*EXP(-$F$5/($F$3*B72)) -> 102856.8979 | D72: =$H$4*EXP(-$H$5/($F$3*B72)) -> 10.53949298 | I72: K | J72: =D72/C72 -> 0.0001024675369 | K72: kex | L72: =D72+C72 -> 102867.4374 | M72: R2HS | N72: 431.4674301 | O72: R2LS | P72: 0.1 | Q72: coeff Rm | R72: -3.216121757e-06 | S72: coeff Rp | T72: 1.000003216 | U72: coeff Im | V72: -4.718305294e-05 | W72: coeff Ip | X72: 4.718305294e-05 | Y72: Lam_Rp | Z72: 4.988217735 | AA72: Lam_Rm | AB72: 103294.0166 | AD72: Lam_Ip | AE72: -5.232467998 | AF72: Lam_Im | AG72: -95629.20619
A73: T | B73: =B72+10 -> 183 | C73: =$F$4*EXP(-$F$5/($F$3*B73)) -> 172431.8537 | D73: 48.73486211 | I73: K | J73: 0.0002826325941 | K73: kex | L73: 172480.5886 | M73: R2HS | N73: 319.9098752 | O73: R2LS | P73: 0.1 | Q73: coeff Rm | R73: -3.403568362e-05 | S73: coeff Rp | T73: 1.000034036 | U73: coeff Im | V73: -4.823066725e-05 | W73: coeff Ip | X73: 4.823066725e-05 | Y73: Lam_Rp | Z73: 10.35193517 | AA73: Lam_Rm | AB73: 172790.2465 | AD73: Lam_Ip | AE73: -19.77785605 | AF73: Lam_Im | AG73: -88778.45436
A74: T | B74: =B73+10 -> 193 | C74: 273999.2261 | D74: 192.2851619 | I74: K | J74: 0.0007017726461 | K74: kex | L74: 274191.5113 | M74: R2HS | N74: 242.8894578 | O74: R2LS | P74: 0.1 | Q74: coeff Rm | R74: -4.845236484e-05 | S74: coeff Rp | T74: 1.000048452 | U74: coeff Im | V74: -3.246850695e-05 | W74: coeff Ip | X74: 3.246850695e-05 | Y74: Lam_Rp | Z74: 16.24642954 | AA74: Lam_Rm | AB74: 274418.2543 | AD74: Lam_Ip | AE74: -53.06618122 | AF74: Lam_Im | AG74: -82617.37478
A75: T | B75: 203 | C75: 415973.0846 | D75: 662.7078957 | I75: K | J75: 0.001593150904 | K75: kex | L75: 416635.7924 | M75: R2HS | N75: 190.3661184 | O75: R2LS | P75: 0.1 | Q75: coeff Rm | R75: -4.905884785e-05 | S75: coeff Rp | T75: 1.000049059 | U75: coeff Im | V75: -1.902082087e-05 | W75: coeff Ip | X75: 1.902082087e-05 | Y75: Lam_Rp | Z75: 22.31234453 | AA75: Lam_Rm | AB75: 416803.9462 | AD75: Lam_Ip | AE75: -118.5558687 | AF75: Lam_Im | AG75: -77027.81711
A76: T | B76: 213 | C76: 607234.1091 | D76: 2033.48345 | I76: K | J76: 0.003348763548 | K76: kex | L76: 609267.5925 | M76: R2HS | N76: 148.5027449 | O76: R2LS | P76: 0.1 | Q76: coeff Rm | R76: -4.468594835e-05 | S76: coeff Rp | T76: 1.000044686 | U76: coeff Im | V76: -1.085237571e-05 | W76: coeff Ip | X76: 1.085237571e-05 | Y76: Lam_Rp | Z76: 28.6028406 | AA76: Lam_Rm | AB76: 609387.5924 | AD76: Lam_Ip | AE76: -237.3663181 | AF76: Lam_Im | AG76: -71903.63051
A77: T | B77: 223 | C77: 856865.1383 | D77: 5642.730634 | I77: K | J77: 0.006585319418 | K77: kex | L77: 862507.869 | M77: R2HS | N77: 117.5636302 | O77: R2LS | P77: 0.1 | Q77: coeff Rm | R77: -3.917048646e-05 | S77: coeff Rp | T77: 1.00003917 | U77: coeff Im | V77: -6.234235019e-06 | W77: coeff Ip | X77: 6.234235019e-06 | Y77: Lam_Rp | Z77: 35.07104847 | AA77: Lam_Rm | AB77: 862590.4616 | AD77: Lam_Ip | AE77: -439.3895381 | AF77: Lam_Im | AG77: -67145.14379
A78: T | B78: 233 | C78: 1173900.634 | D78: 14344.68114 | I78: K | J78: 0.01221967236 | K78: kex | L78: 1188245.316 | M78: R2HS | N78: 96.68085564 | O78: R2LS | P78: 0.1 | Q78: coeff Rm | R78: -3.368543869e-05 | S78: coeff Rp | T78: 1.000033685 | U78: coeff Im | V78: -3.622296282e-06 | W78: coeff Ip | X78: 3.622296282e-06 | Y78: Lam_Rp | Z78: 41.51715945 | AA78: Lam_Rm | AB78: 1188300.579 | AD78: Lam_Ip | AE78: -763.3868227 | AF78: Lam_Im | AG78: -62655.79576
A79: T | B79: 243 | C79: 1567103.28 | D79: 33770.89378 | I79: K | J79: 0.02154988393 | K79: kex | L79: 1600874.173 | M79: R2HS | N79: 76.66994125 | O79: R2LS | P79: 0.1 | Q79: coeff Rm | R79: -2.850466502e-05 | S79: coeff Rp | T79: 1.000028505 | U79: coeff Im | V79: -2.109085553e-06 | W79: coeff Ip | X79: 2.109085553e-06 | Y79: Lam_Rp | Z79: 47.46752756 | AA79: Lam_Rm | AB79: 1600903.476 | AD79: Lam_Ip | AE79: -1255.459258 | AF79: Lam_Im | AG79: -58341.1998
A80: T | B80: 253 | C80: 2044775.432 | D80: 74301.7124 | I80: K | J80: 0.03633734602 | K80: kex | L80: 2119077.144 | M80: R2HS | N80: 64.02390191 | O80: R2LS | P80: 0.1 | Q80: coeff Rm | R80: -2.364746095e-05 | S80: coeff Rp | T80: 1.000023647 | U80: coeff Im | V80: -1.218590002e-06 | W80: coeff Ip | X80: 1.218590002e-06 | Y80: Lam_Rp | Z80: 52.51475117 | AA80: Lam_Rm | AB80: 2119088.753 | AD80: Lam_Ip | AE80: -1964.86811 | AF80: Lam_Im | AG80: -54111.44319
A81: T | B81: 263 | C81: 2614608.672 | D81: 153961.7324 | I81: K | J81: 0.05888519151 | K81: kex | L81: 2768570.405 | M81: R2HS | N81: 53.67757853 | O81: R2LS | P81: 0.1 | Q81: coeff Rm | R81: -1.910114051e-05 | S81: coeff Rp | T81: 1.000019101 | U81: coeff Im | V81: -6.868319192e-07 | W81: coeff Ip | X81: 6.868319192e-07 | Y81: Lam_Rp | Z81: 55.9934664 | AA81: Lam_Rm | AB81: 2768568.189 | AD81: Lam_Ip | AE81: -2936.548863 | AF81: Lam_Im | AG81: -49887.12174
A82: T | B82: 273 | C82: 3283571.305 | D82: 302444.8857 | I82: K | J82: 0.0921085177 | K82: kex | L82: 3586016.191 | M82: R2HS | N82: 47.32005361 | O82: R2LS | P82: 0.1 | Q82: coeff Rm | R82: -1.489298252e-05 | S82: coeff Rp | T82: 1.000014893 | U82: coeff Im | V82: -3.7224908e-07 | W82: coeff Ip | X82: 3.7224908e-07 | Y82: Lam_Rp | Z82: 57.5034273 | AA82: Lam_Rm | AB82: 3586006.107 | AD82: Lam_Ip | AE82: -4200.203658 | AF82: Lam_Im | AG82: -45609.11494
A83: T | B83: 283 | C83: 4057831.39 | D83: 566443.3577 | I83: K | J83: 0.1395926305 | K83: kex | L83: 4624274.748 | M83: R2HS | N83: 42.02347582 | O83: R2LS | P83: 0.1 | Q83: coeff Rm | R83: -1.110552156e-05 | S83: coeff Rp | T83: 1.000011106 | U83: coeff Im | V83: -1.903004843e-07 | W83: coeff Ip | X83: 1.903004843e-07 | Y83: Lam_Rp | Z83: 56.59629901 | AA83: Lam_Rm | AB83: 4624260.275 | AD83: Lam_Ip | AE83: -5757.685562 | AF83: Lam_Im | AG83: -41250.30945
A84: T | B84: 293 | C84: 4942711.478 | D84: 1016401.624 | I84: K | J84: 0.2056364464 | K84: kex | L84: 5959113.102 | M84: R2HS | N84: 36.3802968 | O84: R2LS | P84: 0.1 | Q84: coeff Rm | R84: -7.852298695e-06 | S84: coeff Rp | T84: 1.000007852 | U84: coeff Im | V84: -8.99305298e-08 | W84: coeff Ip | X84: 8.99305298e-08 | Y84: Lam_Rp | Z84: 53.08288013 | AA84: Lam_Rm | AB84: 5959096.499 | AD84: Lam_Ip | AE84: -7572.31153 | AF84: Lam_Im | AG84: -36825.57651
A85: T | B85: 303 | C85: 5942670.541 | D85: 1754747.171 | I85: K | J85: 0.2952792283 | K85: kex | L85: 7697417.712 | M85: R2HS | N85: 31.34229564 | O85: R2LS | P85: 0.1 | Q85: coeff Rm | R85: -5.229710586e-06 | S85: coeff Rp | T85: 1.00000523 | U85: coeff Im | V85: -3.880971495e-08 | W85: coeff Ip | X85: 3.880971495e-08 | Y85: Lam_Rp | Z85: 47.47799235 | AA85: Lam_Rm | AB85: 7697401.677 | AD85: Lam_Ip | AE85: -9565.276083 | AF85: Lam_Im | AG85: -32394.78928
A86: T | B86: 313 | C86: 7061308.392 | D86: 2925569.692 | I86: K | J86: 0.4143098602 | K86: kex | L86: 9986878.084 | M86: R2HS | N86: 26.51750632 | O86: R2LS | P86: 0.1 | Q86: coeff Rm | R86: -3.269446048e-06 | S86: coeff Rp | T86: 1.000003269 | U86: coeff Im | V86: -1.511221079e-08 | W86: coeff Ip | X86: 1.511221079e-08 | Y86: Lam_Rp | Z86: 40.49041001 | AA86: Lam_Rm | AB86: 9986864.211 | AD86: Lam_Ip | AE86: -11623.23439 | AF86: Lam_Im | AG86: -28054.77972
A87: T | B87: 323 | C87: 8301388.042 | D87: 4725638.211 | I87: K | J87: 0.5692588019 | K87: kex | L87: 13027026.25 | M87: R2HS | N87: 22.99569746 | O87: R2LS | P87: 0.1 | Q87: coeff Rm | R87: -1.919356207e-06 | S87: coeff Rp | T87: 1.000001919 | U87: coeff Im | V87: -5.377611631e-09 | W87: coeff Ip | X87: 5.377611631e-09 | Y87: Lam_Rp | Z87: 33.40903785 | AA87: Lam_Rm | AB87: 13027015.94 | AD87: Lam_Ip | AE87: -13616.83639 | AF87: Lam_Im | AG87: -23920.42994
A88: T | B88: 333 | C88: 9664871.825 | D88: 7416567.984 | I88: K | J88: 0.7673736515 | K88: kex | L88: 17081439.81 | M88: R2HS | N88: 21.36890133 | O88: R2LS | P88: 0.1 | Q88: coeff Rm | R88: -1.062606107e-06 | S88: coeff Rp | T88: 1.000001063 | U88: coeff Im | V88: -1.85413508e-09 | W88: coeff Ip | X88: 1.85413508e-09 | Y88: Lam_Rp | Z88: 27.48553174 | AA88: Lam_Rm | AB88: 17081433.79 | AD88: Lam_Ip | AE88: -15424.56647 | AF88: Lam_Im | AG88: -20100.52552
A89: T | B89: 343 | C89: 11152967.58 | D89: 11337882.11 | I89: K | J89: 1.01657985 | K89: kex | L89: 22490849.69 | M89: R2HS | N89: 20.0304219 | O89: R2LS | P89: 0.1 | Q89: coeff Rm | R89: 1.000000559 | S89: coeff Rp | T89: -5.589328008e-07 | U89: coeff Im | V89: 6.487433779e-10 | W89: coeff Ip | X89: -6.487433779e-10 | Y89: Lam_Rp | Z89: 22490847.1 | AA89: Lam_Rm | AB89: 22.71800188 | AD89: Lam_Ip | AE89: -16676.88752 | AF89: Lam_Im | AG89: -16953.35808
A90: T | B90: 353 | C90: 12766181.72 | D90: 16920661.02 | I90: K | J90: 1.325428495 | K90: kex | L90: 29686842.73 | M90: R2HS | N90: 18.95064865 | O90: R2LS | P90: 0.1 | Q90: coeff Rm | R90: 1.000000282 | S90: coeff Rp | T90: -2.81996692e-07 | U90: coeff Im | V90: 2.492206378e-10 | W90: coeff Ip | X90: -2.492206378e-10 | Y90: Lam_Rp | Z90: 29686842.57 | AA90: Lam_Rm | AB90: 19.21592163 | AD90: Lam_Ip | AE90: -13693.29401 | AF90: Lam_Im | AG90: -18149.46194
A91: T | B91: 363 | C91: 14504376.53 | D91: 24701438.82 | I91: K | J91: 1.703033479 | K91: kex | L91: 39205815.34 | M91: R2HS | N91: 18.10277279 | O91: R2LS | P91: 0.1 | Q91: coeff Rm | R91: 1.000000138 | S91: coeff Rp | T91: -1.378803307e-07 | U91: coeff Im | V91: 1.094751708e-10 | W91: coeff Ip | X91: -1.094751708e-10 | Y91: Lam_Rp | Z91: 39205816.7 | AA91: Lam_Rm | AB91: 16.84826978 | AD91: Lam_Ip | AE91: -11155.52779 | AF91: Lam_Im | AG91: -18998.22278
A92: T | B92: 373 | C92: 16366829.54 | D92: 35335989.83 | I92: K | J92: 2.159000296 | K92: kex | L92: 51702819.37 | M92: R2HS | N92: 17.45943204 | O92: R2LS | P92: 0.1 | Q92: coeff Rm | R92: 1.000000066 | S92: coeff Rp | T92: -6.599314456e-08 | U92: coeff Im | V92: 5.349297305e-11 | W92: coeff Ip | X92: -5.349297305e-11 | Y92: Lam_Rp | Z92: 51702821.55 | AA92: Lam_Rm | AB92: 15.37623261 | AD92: Lam_Ip | AE92: -9039.353194 | AF92: Lam_Im | AG92: -19515.9553
A93: T | B93: 383 | C93: 18352293.28 | D93: 49612650.3 | I93: K | J93: 2.703348816 | K93: kex | L93: 67964943.58 | M93: R2HS | N93: 17.06904842 | O93: R2LS | P93: 0.1 | Q93: coeff Rm | R93: 1.000000031 | S93: coeff Rp | T93: -3.120090681e-08 | U93: coeff Im | V93: 2.774086009e-11 | W93: coeff Ip | X93: -2.774086009e-11 | Y93: Lam_Rp | Z93: 67964946.15 | AA93: Lam_Rm | AB93: 14.60753344 | AD93: Lam_Ip | AE93: -7301.592623 | AF93: Lam_Im | AG93: -19738.74335
A94: T | B94: 393 | C94: 20459053.99 | D94: 68464838.11 | I94: K | J94: 3.346432253 | K94: kex | L94: 88923892.1 | M94: R2HS | N94: 16.71825446 | O94: R2LS | P94: 0.1 | Q94: coeff Rm | R94: 1.000000015 | S94: coeff Rp | T94: -1.468394614e-08 | U94: coeff Im | V94: 1.449766507e-11 | W94: coeff Ip | X94: -1.449766507e-11 | Y94: Lam_Rp | Z94: 88923894.72 | AA94: Lam_Rm | AB94: 14.2005835 | AD94: Lam_Ip | AE94: -5890.455962 | AF94: Lam_Im | AG94: -19712.00533
A101: H4/5 | B101: C0 | C101: 5746 | D101: C1 | E101: -1.3455
C103: kHSLS | D103: kLSHS | Z103: Pi*linienbreite | AB103: Pi*linienbreite H4/5 | AE103: Lamorfrequenz p | AG103: Lamorfrequenz m
A104: T | B104: 173 | C104: =$F$4*EXP(-$F$5/($F$3*B104)) -> 102856.8979 | D104: =$H$4*EXP(-$H$5/($F$3*B104)) -> 10.53949298 | I104: K | J104: =D104/C104 -> 0.0001024675369 | K104: kex | L104: =D104+C104 -> 102867.4374 | M104: R2HS | N104: 264.8352062 | O104: R2LS | P104: 0.1 | Q104: coeff Rm | R104: -1.214395624e-06 | S104: coeff Rp | T104: 1.000001214 | U104: coeff Im | V104: -4.969965849e-05 | W104: coeff Ip | X104: 4.969965849e-05 | Y104: Lam_Rp | Z104: 5.227635402 | AA104: Lam_Rm | AB104: 103127.145 | AD104: Lam_Ip | AE104: -5.254182356 | AF104: Lam_Im | AG104: -100112.1918
A105: T | B105: =B104+10 -> 183 | C105: =$F$4*EXP(-$F$5/($F$3*B105)) -> 172431.8537 | D105: 48.73486211 | I105: K | J105: 0.0002826325941 | K105: kex | L105: 172480.5886 | M105: R2HS | N105: 201.775427 | O105: R2LS | P105: 0.1 | Q105: coeff Rm | R105: -3.488222508e-05 | S105: coeff Rp | T105: 1.000034882 | U105: coeff Im | V105: -5.488726994e-05 | W105: coeff Ip | X105: 5.488726994e-05 | Y105: Lam_Rp | Z105: 11.35970295 | AA105: Lam_Rm | AB105: 172671.1043 | AD105: Lam_Ip | AE105: -20.49254885 | AF105: Lam_Im | AG105: -94395.07042
A106: T | B106: =B105+10 -> 193 | C106: 273999.2261 | D106: 192.2851619 | I106: K | J106: 0.0007017726461 | K106: kex | L106: 274191.5113 | M106: R2HS | N106: 159.8817265 | O106: R2LS | P106: 0.1 | Q106: coeff Rm | R106: -5.418502792e-05 | S106: coeff Rp | T106: 1.000054185 | U106: coeff Im | V106: -3.96950876e-05 | W106: coeff Ip | X106: 3.96950876e-05 | Y106: Lam_Rp | Z106: 18.61623834 | AA106: Lam_Rm | AB106: 274332.8768 | AD106: Lam_Ip | AE106: -56.57144935 | AF106: Lam_Im | AG106: -89247.97723
A107: T | B107: 203 | C107: 415973.0846 | D107: 662.7078957 | I107: K | J107: 0.001593150904 | K107: kex | L107: 416635.7924 | M107: R2HS | N107: 127.0682084 | O107: R2LS | P107: 0.1 | Q107: coeff Rm | R107: -5.797116069e-05 | S107: coeff Rp | T107: 1.000057971 | U107: coeff Im | V107: -2.470288928e-05 | W107: coeff Ip | X107: 2.470288928e-05 | Y107: Lam_Rp | Z107: 26.54498606 | AA107: Lam_Rm | AB107: 416736.4157 | AD107: Lam_Ip | AE107: -129.32166 | AF107: Lam_Im | AG107: -84567.76093
A108: T | B108: 213 | C108: 607234.1091 | D108: 2033.48345 | I108: K | J108: 0.003348763548 | K108: kex | L108: 609267.5925 | M108: R2HS | N108: 105.4960965 | O108: R2LS | P108: 0.1 | Q108: coeff Rm | R108: -5.513463053e-05 | S108: coeff Rp | T108: 1.000055135 | U108: coeff Im | V108: -1.488479042e-05 | W108: coeff Ip | X108: 1.488479042e-05 | Y108: Lam_Rp | Z108: 35.23614359 | AA108: Lam_Rm | AB108: 609337.9525 | AD108: Lam_Ip | AE108: -264.0910699 | AF108: Lam_Im | AG108: -80258.15136
A109: T | B109: 223 | C109: 856865.1383 | D109: 5642.730634 | I109: K | J109: 0.006585319418 | K109: kex | L109: 862507.869 | M109: R2HS | N109: 85.36066922 | O109: R2LS | P109: 0.1 | Q109: coeff Rm | R109: -5.023059352e-05 | S109: coeff Rp | T109: 1.000050231 | U109: coeff Im | V109: -9.003498827e-06 | W109: coeff Ip | X109: 9.003498827e-06 | Y109: Lam_Rp | Z109: 44.66368136 | AA109: Lam_Rm | AB109: 862548.666 | AD109: Lam_Ip | AE109: -497.9705572 | AF109: Lam_Im | AG109: -76223.85683
A110: T | B110: 233 | C110: 1173900.634 | D110: 14344.68114 | I110: K | J110: 0.01221967236 | K110: kex | L110: 1188245.316 | M110: R2HS | N110: 70.2771948 | O110: R2LS | P110: 0.1 | Q110: coeff Rm | R110: -4.482086007e-05 | S110: coeff Rp | T110: 1.000044821 | U110: coeff Im | V110: -5.499590954e-06 | W110: coeff Ip | X110: 5.499590954e-06 | Y110: Lam_Rp | Z110: 54.59676971 | AA110: Lam_Rm | AB110: 1188261.096 | AD110: Lam_Ip | AE110: -880.9260957 | AF110: Lam_Im | AG110: -72366.70214
A111: T | B111: 243 | C111: 1567103.28 | D111: 33770.89378 | I111: K | J111: 0.02154988393 | K111: kex | L111: 1600874.173 | M111: R2HS | N111: 57.82947427 | O111: R2LS | P111: 0.1 | Q111: coeff Rm | R111: -3.933833371e-05 | S111: coeff Rp | T111: 1.000039338 | U111: coeff Im | V111: -3.369261448e-06 | W111: coeff Ip | X111: 3.369261448e-06 | Y111: Lam_Rp | Z111: 64.51685281 | AA111: Lam_Rm | AB111: 1600867.586 | AD111: Lam_Ip | AE111: -1475.168702 | AF111: Lam_Im | AG111: -68584.20269
A112: T | B112: 253 | C112: 2044775.432 | D112: 74301.7124 | I112: K | J112: 0.03633734602 | K112: kex | L112: 2119077.144 | M112: R2HS | N112: 47.23486933 | O112: R2LS | P112: 0.1 | Q112: coeff Rm | R112: -3.385803345e-05 | S112: coeff Rp | T112: 1.000033858 | U112: coeff Im | V112: -2.044152131e-06 | W112: coeff Ip | X112: 2.044152131e-06 | Y112: Lam_Rp | Z112: 73.62470016 | AA112: Lam_Rm | AB112: 2119050.854 | AD112: Lam_Ip | AE112: -2351.337125 | AF112: Lam_Im | AG112: -64771.81355
A113: T | B113: 263 | C113: 2614608.672 | D113: 153961.7324 | I113: K | J113: 0.05888519151 | K113: kex | L113: 2768570.405 | M113: R2HS | N113: 40.05600765 | O113: R2LS | P113: 0.1 | Q113: coeff Rm | R113: -2.838919284e-05 | S113: coeff Rp | T113: 1.000028389 | U113: coeff Im | V113: -1.209895388e-06 | W113: coeff Ip | X113: 1.209895388e-06 | Y113: Lam_Rp | Z113: 80.98526298 | AA113: Lam_Rm | AB113: 2768529.575 | AD113: Lam_Ip | AE113: -3580.163541 | AF113: Lam_Im | AG113: -60830.05315
A114: T | B114: 273 | C114: 3283571.305 | D114: 302444.8857 | I114: K | J114: 0.0921085177 | K114: kex | L114: 3586016.191 | M114: R2HS | N114: 34.81874022 | O114: R2LS | P114: 0.1 | Q114: coeff Rm | R114: -2.299375585e-05 | S114: coeff Rp | T114: 1.000022994 | U114: coeff Im | V114: -6.858657127e-07 | W114: coeff Ip | X114: 6.858657127e-07 | Y114: Lam_Rp | Z114: 85.51632549 | AA114: Lam_Rm | AB114: 3585965.593 | AD114: Lam_Ip | AE114: -5219.039993 | AF114: Lam_Im | AG114: -56676.99247
A115: T | B115: 283 | C115: 4057831.39 | D115: 566443.3577 | I115: K | J115: 0.1395926305 | K115: kex | L115: 4624274.748 | M115: R2HS | N115: 30.28154173 | O115: R2LS | P115: 0.1 | Q115: coeff Rm | R115: -1.782647765e-05 | S115: coeff Rp | T115: 1.000017826 | U115: coeff Im | V115: -3.648278215e-07 | W115: coeff Ip | X115: 3.648278215e-07 | Y115: Lam_Rp | Z115: 86.24544455 | AA115: Lam_Rm | AB115: 4624218.884 | AD115: Lam_Ip | AE115: -7294.766716 | AF115: Lam_Im | AG115: -52264.76237
A116: T | B116: 293 | C116: 4942711.478 | D116: 1016401.624 | I116: K | J116: 0.2056364464 | K116: kex | L116: 5959113.102 | M116: R2HS | N116: 26.30268357 | O116: R2LS | P116: 0.1 | Q116: coeff Rm | R116: -1.311656879e-05 | S116: coeff Rp | T116: 1.000013117 | U116: coeff Im | V116: -1.784316741e-07 | W116: coeff Ip | X116: 1.784316741e-07 | Y116: Lam_Rp | Z116: 82.73723604 | AA116: Lam_Rm | AB116: 5959056.767 | AD116: Lam_Ip | AE116: -9786.741507 | AF116: Lam_Im | AG116: -47595.7725
A117: T | B117: 303 | C117: 5942670.541 | D117: 1754747.171 | I117: K | J117: 0.2952792283 | K117: kex | L117: 7697417.712 | M117: R2HS | N117: 22.76049443 | O117: R2LS | P117: 0.1 | Q117: coeff Rm | R117: -9.099683575e-06 | S117: coeff Rp | T117: 1.0000091 | U117: coeff Im | V117: -7.865400779e-08 | W117: coeff Ip | X117: 7.865400779e-08 | Y117: Lam_Rp | Z117: 75.3110869 | AA117: Lam_Rm | AB117: 7697365.262 | AD117: Lam_Ip | AE117: -12617.38656 | AF117: Lam_Im | AG117: -42731.80973
A118: T | B118: 313 | C118: 7061308.392 | D118: 2925569.692 | I118: K | J118: 0.4143098602 | K118: kex | L118: 9986878.084 | M118: R2HS | N118: 19.94927148 | O118: R2LS | P118: 0.1 | Q118: coeff Rm | R118: -5.932024999e-06 | S118: coeff Rp | T118: 1.000005932 | U118: coeff Im | V118: -3.069995618e-08 | W118: coeff Ip | X118: 3.069995618e-08 | Y118: Lam_Rp | Z118: 65.15710852 | AA118: Lam_Rm | AB118: 9986832.976 | AD118: Lam_Ip | AE118: -15656.31116 | AF118: Lam_Im | AG118: -37789.49186
A119: T | B119: 323 | C119: 8301388.042 | D119: 4725638.211 | I119: K | J119: 0.5692588019 | K119: kex | L119: 13027026.25 | M119: R2HS | N119: 18.2706863 | O119: R2LS | P119: 0.1 | Q119: coeff Rm | R119: -3.63534359e-06 | S119: coeff Rp | T119: 1.000003635 | U119: coeff Im | V119: -1.047171807e-08 | W119: coeff Ip | X119: 1.047171807e-08 | Y119: Lam_Rp | Z119: 54.04907292 | AA119: Lam_Rm | AB119: 13026990.57 | AD119: Lam_Ip | AE119: -18740.01181 | AF119: Lam_Im | AG119: -32920.25511
A120: T | B120: 333 | C120: 9664871.825 | D120: 7416567.984 | I120: K | J120: 0.7673736515 | K120: kex | L120: 17081439.81 | M120: R2HS | N120: 16.2430412 | O120: R2LS | P120: 0.1 | Q120: coeff Rm | R120: -2.103439872e-06 | S120: coeff Rp | T120: 1.000002103 | U120: coeff Im | V120: -2.978989227e-09 | W120: coeff Ip | X120: 2.978989227e-09 | Y120: Lam_Rp | Z120: 43.0387804 | AA120: Lam_Rm | AB120: 17081413.11 | AD120: Lam_Ip | AE120: -21701.56916 | AF120: Lam_Im | AG120: -28280.40107
A121: T | B121: 343 | C121: 11152967.58 | D121: 11337882.11 | I121: K | J121: 1.01657985 | K121: kex | L121: 22490849.69 | M121: R2HS | N121: 14.8525912 | O121: R2LS | P121: 0.1 | Q121: coeff Rm | R121: 1.000001158 | S121: coeff Rp | T121: -1.157760284e-06 | U121: coeff Im | V121: 6.647935387e-10 | W121: coeff Ip | X121: -6.647935387e-10 | Y121: Lam_Rp | Z121: 22490831.07 | AA121: Lam_Rm | AB121: 33.57589361 | AD121: Lam_Ip | AE121: -24001.80904 | AF121: Lam_Im | AG121: -24399.72436
A122: T | B122: 353 | C122: 12766181.72 | D122: 16920661.02 | I122: K | J122: 1.325428495 | K122: kex | L122: 29686842.73 | M122: R2HS | N122: 18.95064865 | O122: R2LS | P122: 0.1 | Q122: coeff Rm | R122: 1.000000612 | S122: coeff Rp | T122: -6.120204111e-07 | U122: coeff Im | V122: 2.211911559e-10 | W122: coeff Ip | X122: -2.211911559e-10 | Y122: Lam_Rp | Z122: 29686832.77 | AA122: Lam_Rm | AB122: 29.01326515 | AD122: Lam_Ip | AE122: -20172.91199 | AF122: Lam_Im | AG122: -26737.72775
A123: T | B123: 363 | C123: 14504376.53 | D123: 24701438.82 | I123: K | J123: 1.703033479 | K123: kex | L123: 39205815.34 | M123: R2HS | N123: 18.10277279 | O123: R2LS | P123: 0.1 | Q123: coeff Rm | R123: 1.000000314 | S123: coeff Rp | T123: -3.139631968e-07 | U123: coeff Im | V123: 5.889345281e-11 | W123: coeff Ip | X123: -5.889345281e-11 | Y123: Lam_Rp | Z123: 39205809.79 | AA123: Lam_Rm | AB123: 23.75173521 | AD123: Lam_Ip | AE123: -16833.64472 | AF123: Lam_Im | AG123: -28668.24425
A124: T | B124: 373 | C124: 16366829.54 | D124: 35335989.83 | I124: K | J124: 2.159000296 | K124: kex | L124: 51702819.37 | M124: R2HS | N124: 17.45943204 | O124: R2LS | P124: 0.1 | Q124: coeff Rm | R124: 1.000000158 | S124: coeff Rp | T124: -1.578897657e-07 | U124: coeff Im | V124: 2.513623667e-11 | W124: coeff Ip | X124: -2.513623667e-11 | Y124: Lam_Rp | Z124: 51702816.8 | AA124: Lam_Rm | AB124: 20.12754444 | AD124: Lam_Ip | AE124: -13981.85581 | AF124: Lam_Im | AG124: -30186.81864
A125: T | B125: 383 | C125: 18352293.28 | D125: 49612650.3 | I125: K | J125: 2.703348816 | K125: kex | L125: 67964943.58 | M125: R2HS | N125: 17.06904842 | O125: R2LS | P125: 0.1 | Q125: coeff Rm | R125: 1.000000079 | S125: coeff Rp | T125: -7.855260143e-08 | U125: coeff Im | V125: 1.651879243e-11 | W125: coeff Ip | X125: -1.651879243e-11 | Y125: Lam_Rp | Z125: 67964942.93 | AA125: Lam_Rm | AB125: 17.82578763 | AD125: Lam_Ip | AE125: -11585.48425 | AF125: Lam_Im | AG125: -31319.59523
A126: T | B126: 393 | C126: 20459053.99 | D126: 68464838.11 | I126: K | J126: 3.346432253 | K126: kex | L126: 88923892.1 | M126: R2HS | N126: 16.71825446 | O126: R2LS | P126: 0.1 | Q126: coeff Rm | R126: 1.000000039 | S126: coeff Rp | T126: -3.896477194e-08 | U126: coeff Im | V126: 1.132083996e-11 | W126: coeff Ip | X126: -1.132083996e-11 | Y126: Lam_Rp | Z126: 88923892.56 | AA126: Lam_Rm | AB126: 16.35972852 | AD126: Lam_Ip | AE126: -9595.409605 | AF126: Lam_Im | AG126: -32110.37999
A138: H9 | B138: C0 | C138: 737.71 | D138: C1 | E138: 5.83
C139: 5.83
C140: kHSLS | D140: kLSHS | Z140: Pi*linienbreite | AB140: Pi*linienbreite H9 | AE140: Lamorfrequenz p | AG140: Lamorfrequenz m
A141: T | B141: 173 | C141: =$F$4*EXP(-$F$5/($F$3*B141)) -> 102856.8979 | D141: =$H$4*EXP(-$H$5/($F$3*B141)) -> 10.53949298 | I141: K | J141: =D141/C141 -> 0.0001024675369 | K141: kex | L141: =D141+C141 -> 102867.4374 | M141: R2HS | N141: 332.9816593 | O141: R2LS | P141: 0.1 | Q141: coeff Rm | R141: -7.209565568e-06 | S141: coeff Rp | T141: 1.00000721 | U141: coeff Im | V141: -5.11599421e-06 | W141: coeff Ip | X141: 5.11599421e-06 | Y141: Lam_Rp | Z141: 1.040329827 | AA141: Lam_Rm | AB141: 103199.4787 | AD141: Lam_Ip | AE141: -2.949734116 | AF141: Lam_Im | AG141: -31708.97657
A142: T | B142: =B141+10 -> 183 | C142: =$F$4*EXP(-$F$5/($F$3*B142)) -> 172431.8537 | D142: 48.73486211 | I142: K | J142: 0.0002826325941 | K142: kex | L142: 172480.5886 | M142: R2HS | N142: 253.6955621 | O142: R2LS | P142: 0.1 | Q142: coeff Rm | R142: -8.204774298e-06 | S142: coeff Rp | T142: 1.000008205 | U142: coeff Im | V142: -3.192824092e-06 | W142: coeff Ip | X142: 3.192824092e-06 | Y142: Lam_Rp | Z142: 1.687732371 | AA142: Lam_Rm | AB142: 172732.6964 | AD142: Lam_Ip | AE142: -8.455994376 | AF142: Lam_Im | AG142: -30971.42435
A143: T | B143: =B142+10 -> 193 | C143: 273999.2261 | D143: 192.2851619 | I143: K | J143: 0.0007017726461 | K143: kex | L143: 274191.5113 | M143: R2HS | N143: 201.0219236 | O143: R2LS | P143: 0.1 | Q143: coeff Rm | R143: -8.227636201e-06 | S143: coeff Rp | T143: 1.000008228 | U143: coeff Im | V143: -1.953217561e-06 | W143: coeff Ip | X143: 1.953217561e-06 | Y143: Lam_Rp | Z143: 2.557610124 | AA143: Lam_Rm | AB143: 274390.0756 | AD143: Lam_Ip | AE143: -20.97862413 | AF143: Lam_Im | AG143: -30302.71544
A144: T | B144: 203 | C144: 415973.0846 | D144: 662.7078957 | I144: K | J144: 0.001593150904 | K144: kex | L144: 416635.7924 | M144: R2HS | N144: 159.7649478 | O144: R2LS | P144: 0.1 | Q144: coeff Rm | R144: -7.947491809e-06 | S144: coeff Rp | T144: 1.000007947 | U144: coeff Im | V144: -1.22327715e-06 | W144: coeff Ip | X144: 1.22327715e-06 | Y144: Lam_Rp | Z144: 3.702642605 | AA144: Lam_Rm | AB144: 416791.9548 | AD144: Lam_Ip | AE144: -47.01816943 | AF144: Lam_Im | AG144: -29685.13851
A145: T | B145: 213 | C145: 607234.1091 | D145: 2033.48345 | I145: K | J145: 0.003348763548 | K145: kex | L145: 609267.5925 | M145: R2HS | N145: 132.6419767 | O145: R2LS | P145: 0.1 | Q145: coeff Rm | R145: -7.577102865e-06 | S145: coeff Rp | T145: 1.000007577 | U145: coeff Im | V145: -7.923263039e-07 | W145: coeff Ip | X145: 7.923263039e-07 | Y145: Lam_Rp | Z145: 5.182759715 | AA145: Lam_Rm | AB145: 609395.1517 | AD145: Lam_Ip | AE145: -97.18164002 | AF145: Lam_Im | AG145: -29098.98107
A146: T | B146: 223 | C146: 856865.1383 | D146: 5642.730634 | I146: K | J146: 0.006585319418 | K146: kex | L146: 862507.869 | M146: R2HS | N146: 107.325373 | O146: R2LS | P146: 0.1 | Q146: coeff Rm | R146: -7.172006002e-06 | S146: coeff Rp | T146: 1.000007172 | U146: coeff Im | V146: -5.254840765e-07 | W146: coeff Ip | X146: 5.254840765e-07 | Y146: Lam_Rp | Z146: 7.002963985 | AA146: Lam_Rm | AB146: 862608.2914 | AD146: Lam_Ip | AE146: -187.566023 | AF146: Lam_Im | AG146: -28520.67393
A147: T | B147: 233 | C147: 1173900.634 | D147: 14344.68114 | I147: K | J147: 0.01221967236 | K147: kex | L147: 1188245.316 | M147: R2HS | N147: 88.36067256 | O147: R2LS | P147: 0.1 | Q147: coeff Rm | R147: -6.733230984e-06 | S147: coeff Rp | T147: 1.000006733 | U147: coeff Im | V147: -3.548750439e-07 | W147: coeff Ip | X147: 3.548750439e-07 | Y147: Lam_Rp | Z147: 9.176486271 | AA147: Lam_Rm | AB147: 1188324.6 | AD147: Lam_Ip | AE147: -340.9496361 | AF147: Lam_Im | AG147: -27921.24934
A148: T | B148: 243 | C148: 1567103.28 | D148: 33770.89378 | I148: K | J148: 0.02154988393 | K148: kex | L148: 1600874.173 | M148: R2HS | N148: 72.70994887 | O148: R2LS | P148: 0.1 | Q148: coeff Rm | R148: -6.244266604e-06 | S148: coeff Rp | T148: 1.000006244 | U148: coeff Im | V148: -2.40766796e-07 | W148: coeff Ip | X148: 2.40766796e-07 | Y148: Lam_Rp | Z148: 11.63474512 | AA148: Lam_Rm | AB148: 1600935.349 | AD148: Lam_Ip | AE148: -587.3452951 | AF148: Lam_Im | AG148: -27265.52389
A149: T | B149: 253 | C149: 2044775.432 | D149: 74301.7124 | I149: K | J149: 0.03633734602 | K149: kex | L149: 2119077.144 | M149: R2HS | N149: 59.38917787 | O149: R2LS | P149: 0.1 | Q149: coeff Rm | R149: -5.684723494e-06 | S149: coeff Rp | T149: 1.000005685 | U149: coeff Im | V149: -1.616479342e-07 | W149: coeff Ip | X149: 1.616479342e-07 | Y149: Lam_Rp | Z149: 14.22954478 | AA149: Lam_Rm | AB149: 2119122.404 | AD149: Lam_Ip | AE149: -963.196705 | AF149: Lam_Im | AG149: -26512.70078
A150: T | B150: 263 | C150: 2614608.672 | D150: 153961.7324 | I150: K | J150: 0.05888519151 | K150: kex | L150: 2768570.405 | M150: R2HS | N150: 50.36307705 | O150: R2LS | P150: 0.1 | Q150: coeff Rm | R150: -5.040619715e-06 | S150: coeff Rp | T150: 1.000005041 | U150: coeff Im | V150: -1.064864102e-07 | W150: coeff Ip | X150: 1.064864102e-07 | Y150: Lam_Rp | Z150: 16.85312003 | AA150: Lam_Rm | AB150: 2768604.014 | AD150: Lam_Ip | AE150: -1508.407167 | AF150: Lam_Im | AG150: -25619.18567
A151: T | B151: 273 | C151: 3283571.305 | D151: 302444.8857 | I151: K | J151: 0.0921085177 | K151: kex | L151: 3586016.191 | M151: R2HS | N151: 43.77817459 | O151: R2LS | P151: 0.1 | Q151: coeff Rm | R151: -4.31416539e-06 | S151: coeff Rp | T151: 1.000004314 | U151: coeff Im | V151: -6.768108131e-08 | W151: coeff Ip | X151: 6.768108131e-08 | Y151: Lam_Rp | Z151: 19.25601893 | AA151: Lam_Rm | AB151: 3586040.813 | AD151: Lam_Ip | AE151: -2260.572778 | AF151: Lam_Im | AG151: -24544.23223
A152: T | B152: 283 | C152: 4057831.39 | D152: 566443.3577 | I152: K | J152: 0.1395926305 | K152: kex | L152: 4624274.748 | M152: R2HS | N152: 38.07348032 | O152: R2LS | P152: 0.1 | Q152: coeff Rm | R152: -3.530930231e-06 | S152: coeff Rp | T152: 1.000003531 | U152: coeff Im | V152: -4.067949172e-08 | W152: coeff Ip | X152: 4.067949172e-08 | Y152: Lam_Rp | Z152: 21.08029402 | AA152: Lam_Rm | AB152: 4624291.841 | AD152: Lam_Ip | AE152: -3246.550442 | AF152: Lam_Im | AG152: -23258.2786
A153: T | B153: 293 | C153: 4942711.478 | D153: 1016401.624 | I153: K | J153: 0.2056364464 | K153: kex | L153: 5959113.102 | M153: R2HS | N153: 33.07079654 | O153: R2LS | P153: 0.1 | Q153: coeff Rm | R153: -2.739860337e-06 | S153: coeff Rp | T153: 1.00000274 | U153: coeff Im | V153: -2.277892852e-08 | W153: coeff Ip | X153: 2.277892852e-08 | Y153: Lam_Rp | Z153: 22.05108496 | AA153: Lam_Rm | AB153: 5959124.221 | AD153: Lam_Ip | AE153: -4472.971062 | AF153: Lam_Im | AG153: -21752.35819
A154: T | B154: 303 | C154: 5942670.541 | D154: 1754747.171 | I154: K | J154: 0.2952792283 | K154: kex | L154: 7697417.712 | M154: R2HS | N154: 28.61714389 | O154: R2LS | P154: 0.1 | Q154: coeff Rm | R154: -2.002446588e-06 | S154: coeff Rp | T154: 1.000002002 | U154: coeff Im | V154: -1.174865021e-08 | W154: coeff Ip | X154: 1.174865021e-08 | Y154: Lam_Rp | Z154: 22.01473364 | AA154: Lam_Rm | AB154: 7697424.415 | AD154: Lam_Ip | AE154: -5918.902576 | AF154: Lam_Im | AG154: -20045.37572
A155: T | B155: 313 | C155: 7061308.392 | D155: 2925569.692 | I155: K | J155: 0.4143098602 | K155: kex | L155: 9986878.084 | M155: R2HS | N155: 25.08254704 | O155: R2LS | P155: 0.1 | Q155: coeff Rm | R155: -1.373765646e-06 | S155: coeff Rp | T155: 1.000001374 | U155: coeff Im | V155: -5.599069915e-09 | W155: coeff Ip | X155: 5.599069915e-09 | Y155: Lam_Rp | Z155: 21.13808759 | AA155: Lam_Rm | AB155: 9986882.129 | AD155: Lam_Ip | AE155: -7534.38363 | AF155: Lam_Im | AG155: -18185.52428
A156: T | B156: 323 | C156: 8301388.042 | D156: 4725638.211 | I156: K | J156: 0.5692588019 | K156: kex | L156: 13027026.25 | M156: R2HS | N156: 22.9720343 | O156: R2LS | P156: 0.1 | Q156: coeff Rm | R156: -8.850986205e-07 | S156: coeff Rp | T156: 1.000000885 | U156: coeff Im | V156: -2.539139483e-09 | W156: coeff Ip | X156: 2.539139483e-09 | Y156: Lam_Rp | Z156: 19.92718457 | AA156: Lam_Rm | AB156: 13027029.4 | AD156: Lam_Ip | AE156: -9246.878451 | AF156: Lam_Im | AG156: -16243.79036
A157: T | B157: 333 | C157: 9664871.825 | D157: 7416567.984 | I157: K | J157: 0.7673736515 | K157: kex | L157: 17081439.81 | M157: R2HS | N157: 20.42264279 | O157: R2LS | P157: 0.1 | Q157: coeff Rm | R157: -5.378860372e-07 | S157: coeff Rp | T157: 1.000000538 | U157: coeff Im | V157: -1.074502053e-09 | W157: coeff Ip | X157: 1.074502053e-09 | Y157: Lam_Rp | Z157: 18.11172476 | AA157: Lam_Rm | AB157: 17081442.22 | AD157: Lam_Ip | AE157: -10974.18849 | AF157: Lam_Im | AG157: -14301.00935
A158: T | B158: 343 | C158: 11152967.58 | D158: 11337882.11 | I158: K | J158: 1.01657985 | K158: kex | L158: 22490849.69 | M158: R2HS | N158: 18.67440713 | O158: R2LS | P158: 0.1 | Q158: coeff Rm | R158: 1.000000311 | S158: coeff Rp | T158: -3.106612886e-07 | U158: coeff Im | V158: 4.546029008e-10 | W158: coeff Ip | X158: -4.546029008e-10 | Y158: Lam_Rp | Z158: 22490852.01 | AA158: Lam_Rm | AB158: 16.45059265 | AD158: Lam_Ip | AE158: -12433.0864 | AF158: Lam_Im | AG158: -12639.20436
A159: T | B159: 353 | C159: 12766181.72 | D159: 16920661.02 | I159: K | J159: 1.325428495 | K159: kex | L159: 29686842.73 | M159: R2HS | N159: 18.95064865 | O159: R2LS | P159: 0.1 | Q159: coeff Rm | R159: 1.000000172 | S159: coeff Rp | T159: -1.721686032e-07 | U159: coeff Im | V159: 2.204957323e-10 | W159: coeff Ip | X159: -2.204957323e-10 | Y159: Lam_Rp | Z159: 29686845.83 | AA159: Lam_Rm | AB159: 15.95547603 | AD159: Lam_Ip | AE159: -10699.48894 | AF159: Lam_Im | AG159: -14181.3909
A160: T | B160: 363 | C160: 14504376.53 | D160: 24701438.82 | I160: K | J160: 1.703033479 | K160: kex | L160: 39205815.34 | M160: R2HS | N160: 18.10277279 | O160: R2LS | P160: 0.1 | Q160: coeff Rm | R160: 1.000000093 | S160: coeff Rp | T160: -9.251538378e-08 | U160: coeff Im | V160: 1.045419444e-10 | W160: coeff Ip | X160: -1.045419444e-10 | Y160: Lam_Rp | Z160: 39205818.47 | AA160: Lam_Rm | AB160: 15.06970126 | AD160: Lam_Ip | AE160: -9137.89187 | AF160: Lam_Im | AG160: -15562.1231
A161: T | B161: 373 | C161: 16366829.54 | D161: 35335989.83 | I161: K | J161: 2.159000296 | K161: kex | L161: 51702819.37 | M161: R2HS | N161: 17.45943204 | O161: R2LS | P161: 0.1 | Q161: coeff Rm | R161: 1.000000049 | S161: coeff Rp | T161: -4.869443655e-08 | U161: coeff Im | V161: 5.197215173e-11 | W161: coeff Ip | X161: -5.197215173e-11 | Y161: Lam_Rp | Z161: 51702822.45 | AA161: Lam_Rm | AB161: 14.48184105 | AD161: Lam_Ip | AE161: -7764.753252 | AF161: Lam_Im | AG161: -16764.0947
A162: T | B162: 383 | C162: 18352293.28 | D162: 49612650.3 | I162: K | J162: 2.703348816 | K162: kex | L162: 67964943.58 | M162: R2HS | N162: 17.06904842 | O162: R2LS | P162: 0.1 | Q162: coeff Rm | R162: 1.000000025 | S162: coeff Rp | T162: -2.533573831e-08 | U162: coeff Im | V162: 2.6932202e-11 | W162: coeff Ip | X162: -2.6932202e-11 | Y162: Lam_Rp | Z162: 67964946.54 | AA162: Lam_Rm | AB162: 14.20890772 | AD162: Lam_Ip | AE162: -6579.619744 | AF162: Lam_Im | AG162: -17786.99941
A163: T | B163: 393 | C163: 20459053.99 | D163: 68464838.11 | I163: K | J163: 3.346432253 | K163: kex | L163: 88923892.1 | M163: R2HS | N163: 16.71825446 | O163: R2LS | P163: 0.1 | Q163: coeff Rm | R163: 1.000000013 | S163: coeff Rp | T163: -1.313299695e-08 | U163: coeff Im | V163: 1.416662719e-11 | W163: coeff Ip | X163: -1.416662719e-11 | Y163: Lam_Rp | Z163: 88923894.85 | AA163: Lam_Rm | AB163: 14.06266709 | AD163: Lam_Ip | AE163: -5570.69594 | AF163: Lam_Im | AG163: -18641.95034
A172: H7 | B172: C0 | C172: 30240 | D172: C1 | E172: -17.694
C174: kHSLS | D174: kLSHS | Z174: Pi*linienbreite | AB174: Pi*linienbreite H7 | AE174: Lamorfrequenz p | AG174: Lamorfrequenz m
A175: T | B175: 173 | C175: =$F$4*EXP(-$F$5/($F$3*B175)) -> 102856.8979 | D175: =$H$4*EXP(-$H$5/($F$3*B175)) -> 10.53949298 | I175: K | J175: =D175/C175 -> 0.0001024675369 | K175: kex | L175: =D175+C175 -> 102867.4374 | M175: R2HS | N175: 955.1106557 | O175: R2LS | P175: 0.1 | Q175: coeff Rm | R175: 8.99561193e-05 | S175: coeff Rp | T175: 0.9999100439 | U175: coeff Im | V175: -3.917912008e-05 | W175: coeff Ip | X175: 3.917912008e-05 | Y175: Lam_Rp | Z175: 10.19711644 | AA175: Lam_Rm | AB175: 103812.4509 | AD175: Lam_Ip | AE175: -2.103398459 | AF175: Lam_Im | AG175: -493553.6882
A176: T | B176: =B175+10 -> 183 | C176: =$F$4*EXP(-$F$5/($F$3*B176)) -> 172431.8537 | D176: 48.73486211 | I176: K | J176: 0.0002826325941 | K176: kex | L176: 172480.5886 | M176: R2HS | N176: 727.6897327 | O176: R2LS | P176: 0.1 | Q176: coeff Rm | R176: 0.000187740882 | S176: coeff Rp | T176: 0.9998122591 | U176: coeff Im | V176: -0.0001619997855 | W176: coeff Ip | X176: 0.0001619997855 | Y176: Lam_Rp | Z176: 42.89291119 | AA176: Lam_Rm | AB176: 173165.4854 | AD176: Lam_Ip | AE176: -15.9099933 | AF176: Lam_Im | AG176: -463532.0602
A177: T | B177: =B176+10 -> 193 | C177: 273999.2261 | D177: 192.2851619 | I177: K | J177: 0.0007017726461 | K177: kex | L177: 274191.5113 | M177: R2HS | N177: 576.6028726 | O177: R2LS | P177: 0.1 | Q177: coeff Rm | R177: 0.0002187488544 | S177: coeff Rp | T177: 0.9997812511 | U177: coeff Im | V177: -0.0004525986036 | W177: coeff Ip | X177: 0.0004525986036 | Y177: Lam_Rp | Z177: 138.0082116 | AA177: Lam_Rm | AB177: 274630.2059 | AD177: Lam_Ip | AE177: -86.50039213 | AF177: Lam_Im | AG177: -436563.2672
A178: T | B178: 203 | C178: 415973.0846 | D178: 662.7078957 | I178: K | J178: 0.001593150904 | K178: kex | L178: 416635.7924 | M178: R2HS | N178: 458.2630898 | O178: R2LS | P178: 0.1 | Q178: coeff Rm | R178: -7.805871362e-06 | S178: coeff Rp | T178: 1.000007806 | U178: coeff Im | V178: -0.0007875183886 | W178: coeff Ip | X178: 0.0007875183886 | Y178: Lam_Rp | Z178: 328.3315829 | AA178: Lam_Rm | AB178: 416765.824 | AD178: Lam_Ip | AE178: -331.2347724 | AF178: Lam_Im | AG178: -412070.3994
A179: T | B179: 213 | C179: 607234.1091 | D179: 2033.48345 | I179: K | J179: 0.003348763548 | K179: kex | L179: 609267.5925 | M179: R2HS | N179: 380.4646947 | O179: R2LS | P179: 0.1 | Q179: coeff Rm | R179: -0.0004080825651 | S179: coeff Rp | T179: 1.000408083 | U179: coeff Im | V179: -0.0008826832712 | W179: coeff Ip | X179: 0.0008826832712 | Y179: Lam_Rp | Z179: 592.6666456 | AA179: Lam_Rm | AB179: 609055.4906 | AD179: Lam_Ip | AE179: -924.5883036 | AF179: Lam_Im | AG179: -389505.7325
A180: T | B180: 223 | C180: 856865.1383 | D180: 5642.730634 | I180: K | J180: 0.006585319418 | K180: kex | L180: 862507.869 | M180: R2HS | N180: 307.847608 | O180: R2LS | P180: 0.1 | Q180: coeff Rm | R180: -0.0007051467495 | S180: coeff Rp | T180: 1.000705147 | U180: coeff Im | V180: -0.0007339588231 | W180: coeff Ip | X180: 0.0007339588231 | Y180: Lam_Rp | Z180: 878.1577908 | AA180: Lam_Rm | AB180: 861937.6588 | AD180: Lam_Ip | AE180: -2049.771839 | AF180: Lam_Im | AG180: -368379.757
A181: T | B181: 233 | C181: 1173900.634 | D181: 14344.68114 | I181: K | J181: 0.01221967236 | K181: kex | L181: 1188245.316 | M181: R2HS | N181: 253.4500551 | O181: R2LS | P181: 0.1 | Q181: coeff Rm | R181: -0.0008176099082 | S181: coeff Rp | T181: 1.00081761 | U181: coeff Im | V181: -0.0005193748361 | W181: coeff Ip | X181: 0.0005193748361 | Y181: Lam_Rp | Z181: 1151.830612 | AA181: Lam_Rm | AB181: 1187347.035 | AD181: Lam_Ip | AE181: -3916.588696 | AF181: Lam_Im | AG181: -348228.9543
A182: T | B182: 243 | C182: 1567103.28 | D182: 33770.89378 | I182: K | J182: 0.02154988393 | K182: kex | L182: 1600874.173 | M182: R2HS | N182: 208.5581743 | O182: R2LS | P182: 0.1 | Q182: coeff Rm | R182: -0.0008047492111 | S182: coeff Rp | T182: 1.000804749 | U182: coeff Im | V182: -0.0003385855087 | W182: coeff Ip | X182: 0.0003385855087 | Y182: Lam_Rp | Z182: 1399.665429 | AA182: Lam_Rm | AB182: 1599683.166 | AD182: Lam_Ip | AE182: -6792.447171 | AF182: Lam_Im | AG182: -328573.9649
A183: T | B183: 253 | C183: 2044775.432 | D183: 74301.7124 | I183: K | J183: 0.03633734602 | K183: kex | L183: 2119077.144 | M183: R2HS | N183: 170.3494323 | O183: R2LS | P183: 0.1 | Q183: coeff Rm | R183: -0.0007281216026 | S183: coeff Rp | T183: 1.000728122 | U183: coeff Im | V183: -0.0002098574524 | W183: coeff Ip | X183: 0.0002098574524 | Y183: Lam_Rp | Z183: 1609.319464 | AA183: Lam_Rm | AB183: 2117638.274 | AD183: Lam_Ip | AE183: -10990.07834 | AF183: Lam_Im | AG183: -308923.6162
A184: T | B184: 263 | C184: 2614608.672 | D184: 153961.7324 | I184: K | J184: 0.05888519151 | K184: kex | L184: 2768570.405 | M184: R2HS | N184: 144.4593424 | O184: R2LS | P184: 0.1 | Q184: coeff Rm | R184: -0.0006227900383 | S184: coeff Rp | T184: 1.00062279 | U184: coeff Im | V184: -0.0001242468336 | W184: coeff Ip | X184: 0.0001242468336 | Y184: Lam_Rp | Z184: 1764.052784 | AA184: Lam_Rm | AB184: 2766950.911 | AD184: Lam_Ip | AE184: -16822.41976 | AF184: Lam_Im | AG184: -288813.6689
A185: T | B185: 273 | C185: 3283571.305 | D185: 302444.8857 | I185: K | J185: 0.0921085177 | K185: kex | L185: 3586016.191 | M185: R2HS | N185: 125.5714838 | O185: R2LS | P185: 0.1 | Q185: coeff Rm | R185: -0.0005071094533 | S185: coeff Rp | T185: 1.000507109 | U185: coeff Im | V185: -6.961625997e-05 | W185: coeff Ip | X185: 6.961625997e-05 | Y185: Lam_Rp | Z185: 1844.318149 | AA185: Lam_Rm | AB185: 3584297.544 | AD185: Lam_Ip | AE185: -24535.41489 | AF185: Lam_Im | AG185: -267869.0463
A186: T | B186: 283 | C186: 4057831.39 | D186: 566443.3577 | I186: K | J186: 0.1395926305 | K186: kex | L186: 4624274.748 | M186: R2HS | N186: 109.2083775 | O186: R2LS | P186: 0.1 | Q186: coeff Rm | R186: -0.0003923401633 | S186: coeff Rp | T186: 1.00039234 | U186: coeff Im | V186: -3.631220851e-05 | W186: coeff Ip | X186: 3.631220851e-05 | Y186: Lam_Rp | Z186: 1834.043167 | AA186: Lam_Rm | AB186: 4622550.013 | AD186: Lam_Ip | AE186: -34226.63848 | AF186: Lam_Im | AG186: -245881.2926
A187: T | B187: 293 | C187: 4942711.478 | D187: 1016401.624 | I187: K | J187: 0.2056364464 | K187: kex | L187: 5959113.102 | M187: R2HS | N187: 94.85888871 | O187: R2LS | P187: 0.1 | Q187: coeff Rm | R187: -0.000286996071 | S187: coeff Rp | T187: 1.000286996 | U187: coeff Im | V187: -1.728262929e-05 | W187: coeff Ip | X187: 1.728262929e-05 | Y187: Lam_Rp | Z187: 1728.600367 | AA187: Lam_Rm | AB187: 5957479.46 | AD187: Lam_Ip | AE187: -45769.66141 | AF187: Lam_Im | AG187: -222881.0932
A188: T | B188: 303 | C188: 5942670.541 | D188: 1754747.171 | I188: K | J188: 0.2952792283 | K188: kex | L188: 7697417.712 | M188: R2HS | N188: 82.08421783 | O188: R2LS | P188: 0.1 | Q188: coeff Rm | R188: -0.0001975582756 | S188: coeff Rp | T188: 1.000197558 | U188: coeff Im | V188: -7.336379073e-06 | W188: coeff Ip | X188: 7.336379073e-06 | Y188: Lam_Rp | Z188: 1539.915975 | AA188: Lam_Rm | AB188: 7695959.981 | AD188: Lam_Ip | AE188: -58774.9994 | AF188: Lam_Im | AG188: -199174.828
A189: T | B189: 313 | C189: 7061308.392 | D189: 2925569.692 | I189: K | J189: 0.4143098602 | K189: kex | L189: 9986878.084 | M189: R2HS | N189: 71.94572819 | O189: R2LS | P189: 0.1 | Q189: coeff Rm | R189: -0.0001276629451 | S189: coeff Rp | T189: 1.000127663 | U189: coeff Im | V189: -2.700281327e-06 | W189: coeff Ip | X189: 2.700281327e-06 | Y189: Lam_Rp | Z189: 1296.056456 | AA189: Lam_Rm | AB189: 9985654.074 | AD189: Lam_Ip | AE189: -72615.88384 | AF189: Lam_Im | AG189: -175316.7816
A190: T | B190: 323 | C190: 8301388.042 | D190: 4725638.211 | I190: K | J190: 0.5692588019 | K190: kex | L190: 13027026.25 | M190: R2HS | N190: 65.89202175 | O190: R2LS | P190: 0.1 | Q190: coeff Rm | R190: -7.751780106e-05 | S190: coeff Rp | T190: 1.000077518 | U190: coeff Im | V190: -8.221981934e-07 | W190: coeff Ip | X190: 8.221981934e-07 | Y190: Lam_Rp | Z190: 1033.691611 | AA190: Lam_Rm | AB190: 13026058.55 | AD190: Lam_Ip | AE190: -86524.76073 | AF190: Lam_Im | AG190: -152011.0005
A191: T | B191: 333 | C191: 9664871.825 | D191: 7416567.984 | I191: K | J191: 0.7673736515 | K191: kex | L191: 17081439.81 | M191: R2HS | N191: 58.57945384 | O191: R2LS | P191: 0.1 | Q191: coeff Rm | R191: -4.443119638e-05 | S191: coeff Rp | T191: 1.000044431 | U191: coeff Im | V191: -1.799343385e-07 | W191: coeff Ip | X191: 1.799343385e-07 | Y191: Lam_Rp | Z191: 784.3782703 | AA191: Lam_Rm | AB191: 17080714.11 | AD191: Lam_Ip | AE191: -99732.81736 | AF191: Lam_Im | AG191: -129970.4183
A192: T | B192: 343 | C192: 11152967.58 | D192: 11337882.11 | I192: K | J192: 1.01657985 | K192: kex | L192: 22490849.69 | M192: R2HS | N192: 53.56488784 | O192: R2LS | P192: 0.1 | Q192: coeff Rm | R192: 1.000024223 | S192: coeff Rp | T192: -2.422310061e-05 | U192: coeff Im | V192: 7.779628745e-09 | W192: coeff Ip | X192: -7.779628745e-09 | Y192: Lam_Rp | Z192: 22490331.53 | AA192: Lam_Rm | AB192: 571.8239298 | AD192: Lam_Ip | AE192: -109782.9912 | AF192: Lam_Im | AG192: -111602.735
A193: T | B193: 353 | C193: 12766181.72 | D193: 16920661.02 | I193: K | J193: 1.325428495 | K193: kex | L193: 29686842.73 | M193: R2HS | N193: 18.95064865 | O193: R2LS | P193: 0.1 | Q193: coeff Rm | R193: 1.000012682 | S193: coeff Rp | T193: -1.268218331e-05 | U193: coeff Im | V193: -2.329416028e-08 | W193: coeff Ip | X193: 2.329416028e-08 | Y193: Lam_Rp | Z193: 29686474.45 | AA193: Lam_Rm | AB193: 387.3294315 | AD193: Lam_Ip | AE193: -91827.69431 | AF193: Lam_Im | AG193: -121711.7694
A194: T | B194: 363 | C194: 14504376.53 | D194: 24701438.82 | I194: K | J194: 1.703033479 | K194: kex | L194: 39205815.34 | M194: R2HS | N194: 18.10277279 | O194: R2LS | P194: 0.1 | Q194: coeff Rm | R194: 1.000006443 | S194: coeff Rp | T194: -6.443014003e-06 | U194: coeff Im | V194: -1.64956649e-08 | W194: coeff Ip | X194: 1.64956649e-08 | Y194: Lam_Rp | Z194: 39205569.5 | AA194: Lam_Rm | AB194: 264.0437784 | AD194: Lam_Ip | AE194: -76256.8016 | AF194: Lam_Im | AG194: -129868.7005
A195: T | B195: 373 | C195: 16366829.54 | D195: 35335989.83 | I195: K | J195: 2.159000296 | K195: kex | L195: 51702819.37 | M195: R2HS | N195: 17.45943204 | O195: R2LS | P195: 0.1 | Q195: coeff Rm | R195: 1.000003209 | S195: coeff Rp | T195: -3.208550732e-06 | U195: coeff Im | V195: -8.507326026e-09 | W195: coeff Ip | X195: 8.507326026e-09 | Y195: Lam_Rp | Z195: 51702659.07 | AA195: Lam_Rm | AB195: 177.8548578 | AD195: Lam_Ip | AE195: -63028.93458 | AF195: Lam_Im | AG195: -136080.1375
A196: T | B196: 383 | C196: 18352293.28 | D196: 49612650.3 | I196: K | J196: 2.703348816 | K196: kex | L196: 67964943.58 | M196: R2HS | N196: 17.06904842 | O196: R2LS | P196: 0.1 | Q196: coeff Rm | R196: 1.000001581 | S196: coeff Rp | T196: -1.580591634e-06 | U196: coeff Im | V196: -3.838598489e-09 | W196: coeff Ip | X196: 3.838598489e-09 | Y196: Lam_Rp | Z196: 67964840.84 | AA196: Lam_Rm | AB196: 119.9117754 | AD196: Lam_Ip | AE196: -51968.79817 | AF196: Lam_Im | AG196: -140490.237
A197: T | B197: 393 | C197: 20459053.99 | D197: 68464838.11 | I197: K | J197: 3.346432253 | K197: kex | L197: 88923892.1 | M197: R2HS | N197: 16.71825446 | O197: R2LS | P197: 0.1 | Q197: coeff Rm | R197: 1.000000776 | S197: coeff Rp | T197: -7.762345035e-07 | U197: coeff Im | V197: -1.615841603e-09 | W197: coeff Ip | X197: 1.615841603e-09 | Y197: Lam_Rp | Z197: 88923827 | AA197: Lam_Rm | AB197: 81.9206717 | AD197: Lam_Ip | AE197: -42827.57127 | AF197: Lam_Im | AG197: -143319.8513

Sheet Br Rechnung
A1: Magnet | B1: 500 | E1: dH | F1: 11200 | G1: T12 | H1: =F1/F2 -> 137.4233129
A2: K | B2: 3 | E2: dS | F2: 81.5
A3: kex | B3: 0 | E3: R | F3: 8.314
E4: AHSLS | F4: =H4/EXP(F2/F3) -> 9015919073 | G4: ALSHS | H4: 1.630372796e+14 | I4: C0 | J4: 79067
E5: EaHSLS | F5: 24300 | G5: EaLSHS | H5: =F5+F1 -> 35500 | I5: C1 | J5: -70.233
A6: H1 | E6: R | F6: 8.41 | AP6: R2_ | AQ6: H6 | AR6: H9 | AS6: H4/5 | AT6: H3 | AU6: H4/5 | AV6: H2 | AW6: H10/8 | AX6: H10/8 | AY6: H7 | AZ6: H1 | BA6: H7
C7: kHSLS | D7: kLSHS | E7: gHS | Z7: Pi*linienbreite | AB7: Pi*linienbreite H1 minus | AE7: Lamorfrequenz p | AG7: Lamorfrequenz m | AL7: R2HS-LW | AP7: 183.15 | AQ7: 1344.601656 | AR7: 1055.575132 | AS7: 1278.62821 | AT7: 1363.451212 | AU7: 1451.415806 | AV7: 1605.353846 | AW7: 1621.061809 | AX7: 1884.955592 | AY7: 1969.778594 | AZ7: 12820.83962 | BA7: 1969.778594
A8: T | B8: 173 | C8: =$F$4*EXP(-$F$5/($F$3*B8)) -> 414.7063313 | D8: =$H$4*EXP(-$H$5/($F$3*B8)) -> 3113.371102 | E8: =D8/(C8+D8) -> 0.8824554338 | I8: K | J8: =D8/C8 -> 7.507411551 | K8: kex | L8: =D8+C8 -> 3528.077433 | M8: R2HS | N8: 11449.9736 | O8: R2LS | P8: 0.1 | Q8: coeff Rm | R8: 0.8824517651 | S8: coeff Rp | T8: 0.1175482349 | U8: coeff Im | V8: -0.0006022965809 | W8: coeff Ip | X8: 0.0006022965809 | Y8: Lam_Rp | Z8: 3113.463451 | AA8: Lam_Rm | AB8: 11864.68758 | AD8: Lam_Ip | AE8: -1.062456567 | AF8: Lam_Im | AG8: -1215172.26 | AI8: LamorHS | AJ8: -1215173.323 | AK8: =(AG8/AJ8) -> 0.9999991257 | AL8: =AB8-N8 -> 414.7139827 | AM8: =C8+N8 -> 11864.67993 | AP8: 193.15 | AQ8: 2419.026343 | AR8: 967.6105373 | AS8: 1771.858257 | AT8: 1884.955592 | AU8: 1884.955592 | AV8: 2871.415685 | AW8: 3125.88469 | AX8: 3157.300617 | AY8: 3047.344874 | AZ8: 9003.804545 | BA8: 3047.344874
A9: T | B9: =B8+10 -> 183 | C9: =$F$4*EXP(-$F$5/($F$3*B9)) -> 1043.96117 | D9: =$H$4*EXP(-$H$5/($F$3*B9)) -> 11994.21023 | E9: =D9/(C9+D9) -> 0.9199303999 | I9: K | J9: 11.48913443 | K9: kex | L9: 13038.1714 | M9: R2HS | N9: 8723.626084 | O9: R2LS | P9: 0.1 | Q9: coeff Rm | R9: 0.9199418491 | S9: coeff Rp | T9: 0.08005815093 | U9: coeff Im | V9: -0.001689728354 | W9: coeff Ip | X9: 0.001689728354 | Y9: Lam_Rp | Z9: 11994.33181 | AA9: Lam_Rm | AB9: 9767.565675 | AD9: Lam_Ip | AE9: -11.01558508 | AF9: Lam_Im | AG9: -1136702.373 | AI9: LamorHS | AJ9: -1136713.388 | AK9: =(AG9/AJ9) -> 0.9999903093 | AL9: =AB9-N9 -> 1043.939591 | AM9: =C9+N9 -> 9767.587254 | AP9: 213.15 | AQ9: 2111.150263 | AR9: 260.7521902 | AS9: 449.2477495 | AT9: 471.238898 | AU9: 471.238898 | AV9: 4417.079271 | AW9: 5585.751738 | AX9: 5868.495077 | AY9: 6867.521541 | AZ9: 13336.06081 | BA9: 6867.521541
A10: T | B10: =B9+10 -> 193 | C10: 2388.248191 | D10: 40180.36692 | E10: 0.9438965025 | I10: K | J10: 16.82420072 | K10: kex | L10: 42568.61511 | M10: R2HS | N10: 6912.379869 | O10: R2LS | P10: 0.1 | Q10: coeff Rm | R10: 0.9440936372 | S10: coeff Rp | T10: 0.05590636281 | U10: coeff Im | V10: -0.004220690321 | W10: coeff Ip | X10: 0.004220690321 | Y10: Lam_Rp | Z10: 40183.0712 | AA10: Lam_Rm | AB10: 9298.023785 | AD10: Lam_Ip | AE10: -89.91915308 | AF10: Lam_Im | AG10: -1066294.098 | AI10: LamorHS | AJ10: -1066384.017 | AK10: 0.9999156785 | AL10: 2385.643916 | AM10: 9300.62806 | AP10: 233.15 | AQ10: 354.9999699 | AR10: 87.9645943 | AS10: 125.6637061 | AT10: 150.7964474 | AU10: 144.5132621 | AV10: 747.6990516 | AW10: 882.7875357 | AX10: 977.0353153 | AY10: 1774.999849 | AZ10: 9283.406291 | BA10: 1774.999849
A11: T | B11: 203 | C11: 5035.773451 | D11: 119488.9763 | E11: 0.9595600596 | I11: K | J11: 23.72802856 | K11: kex | L11: 124524.7497 | M11: R2HS | N11: 5493.709288 | O11: R2LS | P11: 0.1 | Q11: coeff Rm | R11: 0.961129786 | S11: coeff Rp | T11: 0.03887021399 | U11: coeff Im | V11: -0.009416784537 | W11: coeff Ip | X11: 0.009416784537 | Y11: Lam_Rp | Z11: 119553.6024 | AA11: Lam_Rm | AB11: 10464.95664 | AD11: Lam_Ip | AE11: -593.2663798 | AF11: Lam_Im | AG11: -1002390.382 | AI11: LamorHS | AJ11: -1002983.648 | AK11: 0.9994084985 | AL11: 4971.247348 | AM11: 10529.48274 | AP11: 253.15 | AQ11: 137.4132627 | AR11: 56.54866776 | AS11: 78.53981634 | AT11: 81.68140899 | AU11: 65.97344573 | AV11: 229.3362637 | AW11: 248.1858196 | AX11: 292.1681168 | AY11: 433.5397862 | AZ11: 2996.01125 | BA11: 433.5397862
A12: T | B12: 213 | C12: 9899.918549 | D12: 320773.9992 | E12: 0.9700613867 | I12: K | J12: 32.40168064 | K12: kex | L12: 330673.9177 | M12: R2HS | N12: 4561.053406 | O12: R2LS | P12: 0.1 | Q12: coeff Rm | R12: 0.9785756265 | S12: coeff Rp | T12: 0.0214243735 | U12: coeff Im | V12: -0.01665721356 | W12: coeff Ip | X12: 0.01665721356 | Y12: Lam_Rp | Z12: 321767.1458 | AA12: Lam_Rm | AB12: 13467.92527 | AD12: Lam_Ip | AE12: -3045.618322 | AF12: Lam_Im | AG12: -942490.7468 | AI12: LamorHS | AJ12: -945536.3651 | AK12: 0.9967789517 | AL12: 8906.871862 | AM12: 14460.97196 | AP12: 273.15 | AQ12: 97.38937226 | AR12: 50.26548246 | AS12: 69.11503838 | AT12: 65.97344573 | AU12: 53.40707511 | AV12: 147.6548547 | AW12: 153.93804 | AX12: 185.3539666 | AY12: 241.9026343 | AZ12: 1884.955592 | BA12: 241.9026343
A13: T | B13: 223 | C13: 18317.58942 | D13: 788146.0105 | E13: 0.9772865267 | I13: K | J13: 43.02673198 | K13: kex | L13: 806463.5999 | M13: R2HS | N13: 3690.511632 | O13: R2LS | P13: 0.1 | Q13: coeff Rm | R13: 0.9988385021 | S13: coeff Rp | T13: 0.001161497948 | U13: coeff Im | V13: -0.01282142828 | W13: coeff Ip | X13: 0.01282142828 | Y13: Lam_Rp | Z13: 796240.556 | AA13: Lam_Rm | AB13: 13913.65561 | AD13: Lam_Ip | AE13: -9242.035531 | AF13: Lam_Im | AG13: -883999.2694 | AI13: LamorHS | AJ13: -893241.305 | AK13: 0.989653372 | AL13: 10223.14398 | AM13: 22008.10105 | AP13: 298.15 | AQ13: 62.83185307 | AS13: 47.1238898 | AT13: 47.1238898 | AU13: 43.98229715 | AV13: 94.24777961 | AW13: 94.24777961 | AX13: 117.9353882 | AY13: 132.9804754 | AZ13: 1277.748564 | BA13: 132.9804754
A14: T | B14: 233 | C14: 32148.90954 | D14: 1792680.23 | E14: 0.9823825098 | I14: K | J14: 55.76177407 | K14: kex | L14: 1824829.14 | M14: R2HS | N14: 3038.38767 | O14: R2LS | P14: 0.1 | Q14: coeff Rm | R14: 1.002081402 | S14: coeff Rp | T14: -0.002081402481 | U14: coeff Im | V14: -0.00232971389 | W14: coeff Ip | X14: 0.00232971389 | Y14: Lam_Rp | Z14: 1819202.393 | AA14: Lam_Rm | AB14: 8665.234175 | AD14: Lam_Ip | AE14: -12384.54713 | AF14: Lam_Im | AG14: -833050.544 | AI14: LamorHS | AJ14: -845435.0911 | AK14: 0.9853512738 | AL14: 5626.846505 | AM14: 35187.29721 | AP14: 323.15 | AQ14: 56.54866776 | AS14: 43.98229715 | AT14: 40.8407045 | AU14: 40.8407045 | AV14: 81.68140899 | AW14: 78.53981634 | AX14: 100.5309649 | AY14: 106.8141502 | AZ14: 1068.141502 | BA14: 106.8141502
A15: T | B15: 243 | C15: 53871.2866 | D15: 3810875.916 | E15: 0.9860608511 | I15: K | J15: 70.74039172 | K15: kex | L15: 3864747.203 | M15: R2HS | N15: 2500.218771 | O15: R2LS | P15: 0.1 | Q15: coeff Rm | R15: 1.000526408 | S15: coeff Rp | T15: -0.0005264076223 | U15: coeff Im | V15: -0.0002179642412 | W15: coeff Ip | X15: 0.0002179642412 | Y15: Lam_Rp | Z15: 3862581.288 | AA15: Lam_Rm | AB15: 4666.234203 | AD15: Lam_Ip | AE15: -10742.86496 | AF15: Lam_Im | AG15: -790820.6802 | AI15: LamorHS | AJ15: -801563.5451 | AK15: 0.9865976128 | AL15: 2166.015432 | AM15: 56371.50537
A16: T | B16: 253 | C16: 86661.42626 | D16: 7632305.08 | E16: 0.9887729237 | I16: K | J16: 88.0703839 | K16: kex | L16: 7718966.506 | M16: R2HS | N16: 2042.168089 | O16: R2LS | P16: 0.1 | Q16: coeff Rm | R16: 1.000105174 | S16: coeff Rp | T16: -0.0001051743309 | U16: coeff Im | V16: -1.989349921e-05 | W16: coeff Ip | X16: 1.989349921e-05 | Y16: Lam_Rp | Z16: 7718163.274 | AA16: Lam_Rm | AB16: 2845.500146 | AD16: Lam_Ip | AE16: -8470.390716 | AF16: Lam_Im | AG16: -752689.7148 | AI16: LamorHS | AJ16: -761160.1055 | AK16: 0.9888717358 | AL16: 803.332057 | AM16: 88703.59435
A17: T | B17: 263 | C17: 134460.0571 | D17: 14499363.01 | E17: 0.9908116931 | I17: K | J17: 107.8339793 | K17: kex | L17: 14633823.07 | M17: R2HS | N17: 1731.794789 | O17: R2LS | P17: 0.1 | Q17: coeff Rm | R17: 1.000022133 | S17: coeff Rp | T17: -2.213305723e-05 | U17: coeff Im | V17: -2.047898234e-06 | W17: coeff Ip | X17: 2.047898234e-06 | Y17: Lam_Rp | Z17: 14633513.79 | AA17: Lam_Rm | AB17: 2041.177814 | AD17: Lam_Ip | AE17: -6636.527558 | AF17: Lam_Im | AG17: -717192.6433 | AI17: LamorHS | AJ17: -723829.1708 | AK17: 0.9908313621 | AL17: 309.3830241 | AM17: 136191.8519
A18: T | B18: 273 | C18: 202015.6952 | D18: 26279980.6 | E18: 0.9923715836 | I18: K | J18: 130.0888061 | K18: kex | L18: 26481996.3 | M18: R2HS | N18: 1505.365023 | O18: R2LS | P18: 0.1 | Q18: coeff Rm | R18: 1.00000512 | S18: coeff Rp | T18: -5.119578468e-06 | U18: coeff Im | V18: -2.40198377e-07 | W18: coeff Ip | X18: 2.40198377e-07 | Y18: Lam_Rp | Z18: 26481872.15 | AA18: Lam_Rm | AB18: 1629.612943 | AD18: Lam_Ip | AE18: -5254.871382 | AF18: Lam_Im | AG18: -683978.2318 | AI18: LamorHS | AJ18: -689233.1032 | AK18: 0.9923757705 | AL18: 124.2479193 | AM18: 203521.0602
A19: T | B19: 283 | C19: 294905.4589 | D19: 45671831.56 | E19: 0.9935843726 | I19: K | J19: 154.8694003 | K19: kex | L19: 45966737.02 | M19: R2HS | N19: 1309.202271 | O19: R2LS | P19: 0.1 | Q19: coeff Rm | R19: 1.000001302 | S19: coeff Rp | T19: -1.301995401e-06 | U19: coeff Im | V19: -3.15626998e-08 | W19: coeff Ip | X19: 3.15626998e-08 | Y19: Lam_Rp | Z19: 45966685.65 | AA19: Lam_Rm | AB19: 1360.670673 | AD19: Lam_Ip | AE19: -4214.986974 | AF19: Lam_Im | AG19: -652867.0003 | AI19: LamorHS | AJ19: -657081.9873 | AK19: 0.9935852952 | AL19: 51.4684025 | AM19: 296214.6612
A20: T | B20: 293 | C20: 419532.5396 | D20: 76434242.74 | E20: 0.994541159 | I20: K | J20: 182.1890688 | K20: kex | L20: 76853775.28 | M20: R2HS | N20: 1137.178991 | O20: R2LS | P20: 0.1 | Q20: coeff Rm | R20: 1.000000361 | S20: coeff Rp | T20: -3.614548049e-07 | U20: coeff Im | V20: -4.523977653e-09 | W20: coeff Ip | X20: 4.523977653e-09 | Y20: Lam_Rp | Z20: 76853753.81 | AA20: Lam_Rm | AB20: 1158.753403 | AD20: Lam_Ip | AE20: -3423.254844 | AF20: Lam_Im | AG20: -623702.2319 | AI20: LamorHS | AJ20: -627125.4868 | AK20: 0.9945413559 | AL20: 21.57441246 | AM20: 420669.7186
A21: T | B21: 303 | C21: 583101.3039 | D21: 123641942.8 | E21: 0.995306089 | I21: K | J21: 212.041959 | K21: kex | L21: 124225044.1 | M21: R2HS | N21: 984.0348043 | O21: R2LS | P21: 0.1 | Q21: coeff Rm | R21: 1.000000109 | S21: coeff Rp | T21: -1.086747503e-07 | U21: coeff Im | V21: -6.815233813e-10 | W21: coeff Ip | X21: 6.815233813e-10 | Y21: Lam_Rp | Z21: 124225035.3 | AA21: Lam_Rm | AB21: 992.9167232 | AD21: Lam_Ip | AE21: -2812.319323 | AF21: Lam_Im | AG21: -596333.9937 | AI21: LamorHS | AJ21: -599146.3131 | AK21: 0.9953061226 | AL21: 8.881918884 | AM21: 584085.3387
A22: T | B22: 313 | C22: 793572.0741 | D22: 193953153.9 | E22: 0.995925107 | I22: K | J22: 244.4052156 | K22: kex | L22: 194746725.9 | M22: R2HS | N22: 862.493454 | O22: R2LS | P22: 0.1 | Q22: coeff Rm | R22: 1.000000035 | S22: coeff Rp | T22: -3.512715037e-08 | U22: coeff Im | V22: -9.926344162e-11 | W22: coeff Ip | X22: 9.926344162e-11 | Y22: Lam_Rp | Z22: 194746722.7 | AA22: Lam_Rm | AB22: 865.8202164 | AD22: Lam_Ip | AE22: -2334.730741 | AF22: Lam_Im | AG22: -570620.2152 | AI22: LamorHS | AJ22: -572954.946 | AK22: 0.9959251059 | AL22: 3.326762342 | AM22: 794434.5676
A23: T | B23: =B22+10 -> 323 | C23: 1059598.385 | D23: =$H$4*EXP(-$H$5/($F$3*B23)) -> 295883459.1 | E23: 0.9964316445 | I23: K | J23: 279.2411383 | K23: kex | L23: 296943057.5 | M23: R2HS | N23: 789.9209427 | O23: R2LS | P23: 0.1 | Q23: coeff Rm | R23: 1.000000012 | S23: coeff Rp | T23: -1.212669768e-08 | U23: coeff Im | V23: -9.539515799e-12 | W23: coeff Ip | X23: 9.539515799e-12 | Y23: Lam_Rp | Z23: 296943056.8 | AA23: Lam_Rm | AB23: 790.7035151 | AD23: Lam_Ip | AE23: -1956.837583 | AF23: Lam_Im | AG23: -546428.4978 | AI23: LamorHS | AJ23: -548385.3354 | AK23: 0.9964316377 | AL23: 0.7825723772 | AM23: 1060388.306
A24: T | B24: 333 | C24: 1390449.958 | D24: 440076402.5 | E24: 0.9968503865 | I24: K | J24: 316.4992743 | K24: kex | L24: 441466852.5 | M24: R2HS | N24: 702.2570589 | O24: R2LS | P24: 0.1 | Q24: coeff Rm | R24: 1.000000004 | S24: coeff Rp | T24: -4.445218464e-09 | U24: coeff Im | V24: 1.371937369e-12 | W24: coeff Ip | X24: -1.371937369e-12 | Y24: Lam_Rp | Z24: 441466852.8 | AA24: Lam_Rm | AB24: 702.0079483 | AD24: Lam_Ip | AE24: -1654.467738 | AF24: Lam_Im | AG24: -523636.9093 | AI24: LamorHS | AJ24: -525291.377 | AK24: 0.9968503809 | AL24: -0.2491105456 | AM24: 1391152.215
A25: T | B25: 343 | C25: 1795924.816 | D25: 639561874.6 | E25: 0.9971998083 | I25: K | J25: 356.1184014 | K25: kex | L25: 641357799.5 | M25: R2HS | N25: 642.1418796 | O25: R2LS | P25: 0.1 | Q25: coeff Rm | R25: 1.000000002 | S25: coeff Rp | T25: -1.721254853e-09 | U25: coeff Im | V25: 1.701702032e-12 | W25: coeff Ip | X25: -1.701702032e-12 | Y25: Lam_Rp | Z25: 641357800.3 | AA25: Lam_Rm | AB25: 641.4479775 | AD25: Lam_Ip | AE25: -1410.02172 | AF25: Lam_Im | AG25: -502133.9835 | AI25: LamorHS | AJ25: -503544.0052 | AK25: 0.9971998044 | AL25: -0.6939021423 | AM25: 1796566.958
A26: T | B26: 353 | C26: 2286253.928 | D26: 909993934.4 | E26: 0.9974939126 | I26: K | J26: 398.0283743 | K26: kex | L26: 912280188.3 | M26: R2HS | N26: 687.4030144 | O26: R2LS | P26: 0.1 | Q26: coeff Rm | R26: 1.000000001 | S26: coeff Rp | T26: -7.008042784e-10 | U26: coeff Im | V26: 1.255956357e-12 | W26: coeff Ip | X26: -1.255956357e-12 | Y26: Lam_Rp | Z26: 912280189.5 | AA26: Lam_Rm | AB26: 686.3199016 | AD26: Lam_Ip | AE26: -1210.513843 | AF26: Lam_Im | AG26: -481818.2652 | AI26: LamorHS | AJ26: -483028.7791 | AK26: 0.9974939095 | AL26: -1.083112768 | AM26: 2286941.331
A27: T | B27: 363 | C27: 2872001.567 | D27: 1269860706 | E27: 0.997743437 | I27: K | J27: 442.1518154 | K27: kex | L27: 1272732708 | M27: R2HS | N27: 687.4030144 | O27: R2LS | P27: 0.1 | Q27: coeff Rm | R27: 1 | S27: coeff Rp | T27: -2.987868352e-10 | U27: coeff Im | V27: 6.691321059e-13 | W27: coeff Ip | X27: -6.691321059e-13 | Y27: Lam_Rp | Z27: 1272732709 | AA27: Lam_Rm | AB27: 686.2323469 | AD27: Lam_Ip | AE27: -1046.242599 | AF27: Lam_Im | AG27: -462597.6259 | AI27: LamorHS | AJ27: -463643.8685 | AK27: 0.9977434348 | AL27: -1.170667521 | AM27: 2872688.97
A28: T | B28: 373 | C28: 3563964.265 | D28: 1740660267 | E28: 0.9979567052 | I28: K | J28: 488.4056455 | K28: kex | L28: 1744224232 | M28: R2HS | N28: 687.4030144 | O28: R2LS | P28: 0.1 | Q28: coeff Rm | R28: 1 | S28: coeff Rp | T28: -1.329047471e-10 | U28: coeff Im | V28: 3.426846012e-13 | W28: coeff Ip | X28: -3.426846012e-13 | Y28: Lam_Rp | Z28: 1744224233 | AA28: Lam_Rm | AB28: 686.2304672 | AD28: Lam_Ip | AE28: -909.8764772 | AF28: Lam_Im | AG28: -444388.4867 | AI28: LamorHS | AJ28: -445298.3632 | AK28: 0.9979567037 | AL28: -1.172547213 | AM28: 3564651.668
A29: T | B29: 383 | C29: 4373070.889 | D29: 2347037871 | E29: 0.9981402354 | I29: K | J29: 536.7024524 | K29: kex | L29: 2351410942 | M29: R2HS | N29: 687.4030144 | O29: R2LS | P29: 0.1 | Q29: coeff Rm | R29: 1 | S29: coeff Rp | T29: -6.147501863e-11 | U29: coeff Im | V29: 1.751892233e-13 | W29: coeff Ip | X29: -1.751892233e-13 | Y29: Lam_Rp | Z29: 2351410943 | AA29: Lam_Rm | AB29: 686.2693455 | AD29: Lam_Ip | AE29: -795.8138958 | AF29: Lam_Im | AG29: -427115.0339 | AI29: LamorHS | AJ29: -427910.8478 | AK29: 0.9981402344 | AL29: -1.133668891 | AM29: 4373758.292
A30: T | B30: 393 | C30: 5310285.903 | D30: 3116881353 | E30: 0.99829918 | I30: K | J30: 586.9517028 | K30: kex | L30: 3122191639 | M30: R2HS | N30: 687.4030144 | O30: R2LS | P30: 0.1 | Q30: coeff Rm | R30: 1 | S30: coeff Rp | T30: -2.948120109e-11 | U30: coeff Im | V30: 9.076043927e-14 | W30: coeff Ip | X30: -9.076043927e-14 | Y30: Lam_Rp | Z30: 3122191641 | AA30: Lam_Rm | AB30: 686.3260815 | AD30: Lam_Ip | AE30: -699.7315681 | AF30: Lam_Im | AG30: -410708.4617 | AI30: LamorHS | AJ30: -411408.1932 | AK30: 0.9982991793 | AL30: -1.076932899 | AM30: 5310973.306
A35: H2 | B35: C0 | C35: 16152 | D35: C1 | E35: -3.4011
C37: kHSLS | D37: kLSHS | Z37: Pi*linienbreite | AB37: Pi*linienbreite H2 | AE37: Lamorfrequenz p | AG37: Lamorfrequenz m
A38: T | B38: 173 | C38: =$F$4*EXP(-$F$5/($F$3*B38)) -> 414.7063313 | D38: =$H$4*EXP(-$H$5/($F$3*B38)) -> 3113.371102 | I38: K | J38: =D38/C38 -> 7.507411551 | K38: kex | L38: =D38+C38 -> 3528.077433 | M38: R2HS | N38: 797.1740861 | O38: R2LS | P38: 0.1 | Q38: coeff Rm | R38: 0.8824852217 | S38: coeff Rp | T38: 0.1175147783 | U38: coeff Im | V38: -0.002589499413 | W38: coeff Ip | X38: 0.002589499413 | Y38: Lam_Rp | Z38: 3113.501839 | AA38: Lam_Rm | AB38: 1211.84968 | AD38: Lam_Ip | AE38: -4.568196889 | AF38: Lam_Im | AG38: -282622.726
A39: T | B39: =B38+10 -> 183 | C39: =$F$4*EXP(-$F$5/($F$3*B39)) -> 1043.96117 | D39: =$H$4*EXP(-$H$5/($F$3*B39)) -> 11994.21023 | I39: K | J39: 11.48913443 | K39: kex | L39: 13038.1714 | M39: R2HS | N39: 607.3593611 | O39: R2LS | P39: 0.1 | Q39: coeff Rm | R39: 0.920357155 | S39: coeff Rp | T39: 0.07964284496 | U39: coeff Im | V39: -0.007184838288 | W39: coeff Ip | X39: 0.007184838288 | Y39: Lam_Rp | Z39: 11996.1306 | AA39: Lam_Rm | AB39: 1649.500161 | AD39: Lam_Ip | AE39: -46.90506734 | AF39: Lam_Im | AG39: -266552.402
A40: T | B40: =B39+10 -> 193 | C40: 2388.248191 | D40: 40180.36692 | I40: K | J40: 16.82420072 | K40: kex | L40: 42568.61511 | M40: R2HS | N40: 481.2561406 | O40: R2LS | P40: 0.1 | Q40: coeff Rm | R40: 0.9477654772 | S40: coeff Rp | T40: 0.05223452283 | U40: coeff Im | V40: -0.01715650366 | W40: coeff Ip | X40: 0.01715650366 | Y40: Lam_Rp | Z40: 40235.77658 | AA40: Lam_Rm | AB40: 2814.194671 | AD40: Lam_Ip | AE40: -372.8030592 | AF40: Lam_Im | AG40: -251859.4481
A41: T | B41: 203 | C41: 5035.773451 | D41: 119488.9763 | I41: K | J41: 23.72802856 | K41: kex | L41: 124524.7497 | M41: R2HS | N41: 382.4849588 | O41: R2LS | P41: 0.1 | Q41: coeff Rm | R41: 0.9807771439 | S41: coeff Rp | T41: 0.01922285609 | U41: coeff Im | V41: -0.02673047952 | W41: coeff Ip | X41: 0.02673047952 | Y41: Lam_Rp | Z41: 120485.0595 | AA41: Lam_Rm | AB41: 4422.27516 | AD41: Lam_Ip | AE41: -2053.367403 | AF41: Lam_Im | AG41: -237227.3014
A42: T | B42: 213 | C42: 9899.918549 | D42: 320773.9992 | I42: K | J42: 32.40168064 | K42: kex | L42: 330673.9177 | M42: R2HS | N42: 317.5512632 | O42: R2LS | P42: 0.1 | Q42: coeff Rm | R42: 1.003801017 | S42: coeff Rp | T42: -0.00380101652 | U42: coeff Im | V42: -0.009055261696 | W42: coeff Ip | X42: 0.009055261696 | Y42: Lam_Rp | Z42: 327476.9177 | AA42: Lam_Rm | AB42: 3514.651234 | AD42: Lam_Ip | AE42: -4707.937729 | AF42: Lam_Im | AG42: -222837.2598
A43: T | B43: 223 | C43: 18317.58942 | D43: 788146.0105 | I43: K | J43: 43.02673198 | K43: kex | L43: 806463.5999 | M43: R2HS | N43: 256.9420979 | O43: R2LS | P43: 0.1 | Q43: coeff Rm | R43: 1.00132575 | S43: coeff Rp | T43: -0.001325750313 | U43: coeff Im | V43: -0.0007285464375 | W43: coeff Ip | X43: 0.0007285464375 | Y43: Lam_Rp | Z43: 805252.6468 | AA43: Lam_Rm | AB43: 1467.995264 | AD43: Lam_Ip | AE43: -4615.367654 | AF43: Lam_Im | AG43: -212246.8671
A44: T | B44: 233 | C44: 32148.90954 | D44: 1792680.23 | I44: K | J44: 55.76177407 | K44: kex | L44: 1824829.14 | M44: R2HS | N44: 211.5396942 | O44: R2LS | P44: 0.1 | Q44: coeff Rm | R44: 1.000215324 | S44: coeff Rp | T44: -0.0002153242991 | U44: coeff Im | V44: -4.729991168e-05 | W44: coeff Ip | X44: 4.729991168e-05 | Y44: Lam_Rp | Z44: 1824430.798 | AA44: Lam_Rm | AB44: 609.9821714 | AD44: Lam_Ip | AE44: -3605.290099 | AF44: Lam_Im | AG44: -203490.9745
A45: T | B45: 243 | C45: 53871.2866 | D45: 3810875.916 | I45: K | J45: 70.74039172 | K45: kex | L45: 3864747.203 | M45: R2HS | N45: 174.07111 | O45: R2LS | P45: 0.1 | Q45: coeff Rm | R45: 1.000035871 | S45: coeff Rp | T45: -3.587081562e-05 | U45: coeff Im | V45: -3.521276486e-06 | W45: coeff Ip | X45: 3.521276486e-06 | Y45: Lam_Rp | Z45: 3864610.434 | AA45: Lam_Rm | AB45: 310.9399572 | AD45: Lam_Ip | AE45: -2755.122715 | AF45: Lam_Im | AG45: -195378.9552
A46: T | B46: 253 | C46: 86661.42626 | D46: 7632305.08 | I46: K | J46: 88.0703839 | K46: kex | L46: 7718966.506 | M46: R2HS | N46: 142.1805444 | O46: R2LS | P46: 0.1 | Q46: coeff Rm | R46: 1.000006707 | S46: coeff Rp | T46: -6.706672113e-06 | U46: coeff Im | V46: -3.126880596e-07 | W46: coeff Ip | X46: 3.126880596e-07 | Y46: Lam_Rp | Z46: 7718916.376 | AA46: Lam_Rm | AB46: 192.4103869 | AD46: Lam_Ip | AE46: -2130.632683 | AF46: Lam_Im | AG46: -187749.7319
A47: T | B47: 263 | C47: 134460.0571 | D47: 14499363.01 | I47: K | J47: 107.8339793 | K47: kex | L47: 14633823.07 | M47: R2HS | N47: 120.5716255 | O47: R2LS | P47: 0.1 | Q47: coeff Rm | R47: 1.000001412 | S47: coeff Rp | T47: -1.411544611e-06 | U47: coeff Im | V47: -3.265197466e-08 | W47: coeff Ip | X47: 3.265197466e-08 | Y47: Lam_Rp | Z47: 14633803.61 | AA47: Lam_Rm | AB47: 140.1266056 | AD47: Lam_Ip | AE47: -1674.383244 | AF47: Lam_Im | AG47: -180579.9267
A48: T | B48: 273 | C48: 202015.6952 | D48: 26279980.6 | I48: K | J48: 130.0888061 | K48: kex | L48: 26481996.3 | M48: R2HS | N48: 104.8070527 | O48: R2LS | P48: 0.1 | Q48: coeff Rm | R48: 1.000000331 | S48: coeff Rp | T48: -3.312576065e-07 | U48: coeff Im | V48: -3.920050331e-09 | W48: coeff Ip | X48: 3.920050331e-09 | Y48: Lam_Rp | Z48: 26481988.42 | AA48: Lam_Rm | AB48: 112.7813027 | AD48: Lam_Ip | AE48: -1336.35227 | AF48: Lam_Im | AG48: -173850.5885
A49: T | B49: 283 | C49: 294905.4589 | D49: 45671831.56 | I49: K | J49: 154.8694003 | K49: kex | L49: 45966737.02 | M49: R2HS | N49: 91.14974062 | O49: R2LS | P49: 0.1 | Q49: coeff Rm | R49: 1.000000086 | S49: coeff Rp | T49: -8.577440518e-08 | U49: coeff Im | V49: -5.285887223e-10 | W49: coeff Ip | X49: 5.285887223e-10 | Y49: Lam_Rp | Z49: 45966733.76 | AA49: Lam_Rm | AB49: 94.50844853 | AD49: Lam_Ip | AE49: -1081.786868 | AF49: Lam_Im | AG49: -167537.2453
A50: T | B50: 293 | C50: 419532.5396 | D50: 76434242.74 | I50: K | J50: 182.1890688 | K50: kex | L50: 76853775.28 | M50: R2HS | N50: 79.17307535 | O50: R2LS | P50: 0.1 | Q50: coeff Rm | R50: 1.000000024 | S50: coeff Rp | T50: -2.427132253e-08 | U50: coeff Im | V50: -7.789700914e-11 | W50: coeff Ip | X50: 7.789700914e-11 | Y50: Lam_Rp | Z50: 76853773.95 | AA50: Lam_Rm | AB50: 80.6067813 | AD50: Lam_Ip | AE50: -887.0565478 | AF50: Lam_Im | AG50: -161612.3885
A51: T | B51: 303 | C51: 583101.3039 | D51: 123641942.8 | I51: K | J51: 212.041959 | K51: kex | L51: 124225044.1 | M51: R2HS | N51: 68.51081699 | O51: R2LS | P51: 0.1 | Q51: coeff Rm | R51: 1.000000007 | S51: coeff Rp | T51: -7.441745759e-09 | U51: coeff Im | V51: -1.211380421e-11 | W51: coeff Ip | X51: 1.211380421e-11 | Y51: Lam_Rp | Z51: 124225043.6 | AA51: Lam_Rm | AB51: 69.11415526 | AD51: Lam_Ip | AE51: -735.9288163 | AF51: Lam_Im | AG51: -156047.8623
A52: T | B52: 313 | C52: 793572.0741 | D52: 193953153.9 | I52: K | J52: 244.4052156 | K52: kex | L52: 194746725.9 | M52: R2HS | N52: 60.04882238 | O52: R2LS | P52: 0.1 | Q52: coeff Rm | R52: 1.000000002 | S52: coeff Rp | T52: -2.45383643e-09 | U52: coeff Im | V52: -1.842233969e-12 | W52: coeff Ip | X52: 1.842233969e-12 | Y52: Lam_Rp | Z52: 194746725.8 | AA52: Lam_Rm | AB52: 60.28241408 | AD52: Lam_Ip | AE52: -617.0747294 | AF52: Lam_Im | AG52: -150816.2799
A53: T | B53: 323 | C53: 1059598.385 | D53: 295883459.1 | I53: K | J53: 279.2411383 | K53: kex | L53: 296943057.5 | M53: R2HS | N53: 54.99615349 | O53: R2LS | P53: 0.1 | Q53: coeff Rm | R53: 1.000000001 | S53: coeff Rp | T53: -8.644419791e-10 | U53: coeff Im | V53: -1.981569905e-13 | W53: coeff Ip | X53: 1.981569905e-13 | Y53: Lam_Rp | Z53: 296943057.6 | AA53: Lam_Rm | AB53: 55.05695456 | AD53: Lam_Ip | AE53: -522.4580306 | AF53: Lam_Im | AG53: -145891.7565
A54: T | B54: 333 | C54: 1390449.958 | D54: 440076402.5 | I54: K | J54: 316.4992743 | K54: kex | L54: 441466852.5 | M54: R2HS | N54: 48.89278776 | O54: R2LS | P54: 0.1 | Q54: coeff Rm | R54: 1 | S54: coeff Rp | T54: -3.234517823e-10 | U54: coeff Im | V54: 1.643226337e-14 | W54: coeff Ip | X54: -1.643226337e-14 | Y54: Lam_Rp | Z54: 441466852.6 | AA54: Lam_Rm | AB54: 48.88190255 | AD54: Lam_Ip | AE54: -446.2893383 | AF54: Lam_Im | AG54: -141250.2349
A55: T | B55: 343 | C55: 1795924.816 | D55: 639561874.6 | I55: K | J55: 356.1184014 | K55: kex | L55: 641357799.5 | M55: R2HS | N55: 44.70742762 | O55: R2LS | P55: 0.1 | Q55: coeff Rm | R55: 1 | S55: coeff Rp | T55: -1.278848229e-10 | U55: coeff Im | V55: 2.869541118e-14 | W55: coeff Ip | X55: -2.869541118e-14 | Y55: Lam_Rp | Z55: 641357799.6 | AA55: Lam_Rm | AB55: 44.66453809 | AD55: Lam_Ip | AE55: -384.3373241 | AF55: Lam_Im | AG55: -136869.5807
A56: T | B56: 353 | C56: 2286253.928 | D56: 909993934.4 | I56: K | J56: 398.0283743 | K56: kex | L56: 912280188.3 | M56: R2HS | N56: 40.80560042 | O56: R2LS | P56: 0.1 | Q56: coeff Rm | R56: 1 | S56: coeff Rp | T56: -5.318205121e-11 | U56: coeff Im | V56: 1.710182112e-14 | W56: coeff Ip | X56: -1.710182112e-14 | Y56: Lam_Rp | Z56: 912280188.5 | AA56: Lam_Rm | AB56: 40.75210553 | AD56: Lam_Ip | AE56: -333.4675804 | AF56: Lam_Im | AG56: -132729.5499
A57: T | B57: 363 | C57: 2872001.567 | D57: 1269860706 | I57: K | J57: 442.1518154 | K57: kex | L57: 1272732708 | M57: R2HS | N57: 39.3090113 | O57: R2LS | P57: 0.1 | Q57: coeff Rm | R57: 1 | S57: coeff Rp | T57: -2.316671549e-11 | U57: coeff Im | V57: 9.392878448e-15 | W57: coeff Ip | X57: -9.392878448e-15 | Y57: Lam_Rp | Z57: 1272732708 | AA57: Lam_Rm | AB57: 39.25001884 | AD57: Lam_Ip | AE57: -291.3291172 | AF57: Lam_Im | AG57: -128811.6914
A58: T | B58: 373 | C58: 3563964.265 | D58: 1740660267 | I58: K | J58: 488.4056455 | K58: kex | L58: 1744224232 | M58: R2HS | N58: 33.35318592 | O58: R2LS | P58: 0.1 | Q58: coeff Rm | R58: 1 | S58: coeff Rp | T58: -1.053238074e-11 | U58: coeff Im | V58: 4.080137132e-15 | W58: coeff Ip | X58: -4.080137132e-15 | Y58: Lam_Rp | Z58: 1744224232 | AA58: Lam_Rm | AB58: 33.30361068 | AD58: Lam_Ip | AE58: -256.1379526 | AF58: Lam_Im | AG58: -125099.2179
A59: T | B59: 383 | C59: 4373070.889 | D59: 2347037871 | I59: K | J59: 536.7024524 | K59: kex | L59: 2351410942 | M59: R2HS | N59: 32.67734712 | O59: R2LS | P59: 0.1 | Q59: coeff Rm | R59: 1 | S59: coeff Rp | T59: -4.981047219e-12 | U59: coeff Im | V59: 2.150275468e-15 | W59: coeff Ip | X59: -2.150275468e-15 | Y59: Lam_Rp | Z59: 2351410942 | AA59: Lam_Rm | AB59: 32.62847328 | AD59: Lam_Ip | AE59: -226.5256449 | AF59: Lam_Im | AG59: -121576.8661
A60: T | B60: 393 | C60: 5310285.903 | D60: 3116881353 | I60: K | J60: 586.9517028 | K60: kex | L60: 3122191639 | M60: R2HS | N60: 32.0709583 | O60: R2LS | P60: 0.1 | Q60: coeff Rm | R60: 1 | S60: coeff Rp | T60: -2.443115355e-12 | U60: coeff Im | V60: 1.13431864e-15 | W60: coeff Ip | X60: -1.13431864e-15 | Y60: Lam_Rp | Z60: 3122191639 | AA60: Lam_Rm | AB60: 32.02420902 | AD60: Lam_Ip | AE60: -201.4318367 | AF60: Lam_Im | AG60: -118230.7573
N61: 31.52244331
N62: 31.02507412
A69: H3 | B69: C0 | C69: 6889.1 | D69: C1 | E69: -9.38
C71: kHSLS | D71: kLSHS | Z71: Pi*linienbreite | AB71: Pi*linienbreite H3 | AE71: Lamorfrequenz p | AG71: Lamorfrequenz m
A72: T | B72: 173 | C72: =$F$4*EXP(-$F$5/($F$3*B72)) -> 414.7063313 | D72: =$H$4*EXP(-$H$5/($F$3*B72)) -> 3113.371102 | I72: K | J72: =D72/C72 -> 7.507411551 | K72: kex | L72: =D72+C72 -> 3528.077433 | M72: R2HS | N72: 431.4674301 | O72: R2LS | P72: 0.1 | Q72: coeff Rm | R72: 0.8827447759 | S72: coeff Rp | T72: 0.1172552241 | U72: coeff Im | V72: -0.007646043459 | W72: coeff Ip | X72: 0.007646043459 | Y72: Lam_Rp | Z72: 3113.791132 | AA72: Lam_Rm | AB72: 845.8537311 | AD72: Lam_Ip | AE72: -13.49504568 | AF72: Lam_Im | AG72: -95620.94361
A73: T | B73: =B72+10 -> 183 | C73: =$F$4*EXP(-$F$5/($F$3*B73)) -> 1043.96117 | D73: =$H$4*EXP(-$H$5/($F$3*B73)) -> 11994.21023 | I73: K | J73: 11.48913443 | K73: kex | L73: 13038.1714 | M73: R2HS | N73: 319.9098752 | O73: R2LS | P73: 0.1 | Q73: coeff Rm | R73: 0.9237901978 | S73: coeff Rp | T73: 0.07620980225 | U73: coeff Im | V73: -0.02107484468 | W73: coeff Ip | X73: 0.02107484468 | Y73: Lam_Rp | Z73: 12011.02981 | AA73: Lam_Rm | AB73: 1347.151464 | AD73: Lam_Ip | AE73: -139.224135 | AF73: Lam_Im | AG73: -88659.00808
A74: T | B74: =B73+10 -> 193 | C74: 2388.248191 | D74: 40180.36692 | I74: K | J74: 16.82420072 | K74: kex | L74: 42568.61511 | M74: R2HS | N74: 242.8894578 | O74: R2LS | P74: 0.1 | Q74: coeff Rm | R74: 0.972310592 | S74: coeff Rp | T74: 0.02768940798 | U74: coeff Im | V74: -0.03737187617 | W74: coeff Ip | X74: 0.03737187617 | Y74: Lam_Rp | Z74: 40629.54981 | AA74: Lam_Rm | AB74: 2182.054754 | AD74: Lam_Ip | AE74: -965.6254803 | AF74: Lam_Im | AG74: -81704.81548
A75: T | B75: 203 | C75: 5035.773451 | D75: 119488.9763 | I75: K | J75: 23.72802856 | K75: kex | L75: 124524.7497 | M75: R2HS | N75: 190.3661184 | O75: R2LS | P75: 0.1 | Q75: coeff Rm | R75: 1.005592916 | S75: coeff Rp | T75: -0.005592915599 | U75: coeff Im | V75: -0.01000750541 | W75: coeff Ip | X75: 0.01000750541 | Y75: Lam_Rp | Z75: 123126.963 | AA75: Lam_Rm | AB75: 1588.25282 | AD75: Lam_Ip | AE75: -2309.138937 | AF75: Lam_Im | AG75: -74837.23404
A76: T | B76: 213 | C76: 9899.918549 | D76: 320773.9992 | I76: K | J76: 32.40168064 | K76: kex | L76: 330673.9177 | M76: R2HS | N76: 148.5027449 | O76: R2LS | P76: 0.1 | Q76: coeff Rm | R76: 1.001226117 | S76: coeff Rp | T76: -0.001226117081 | U76: coeff Im | V76: -0.0005215799522 | W76: coeff Ip | X76: 0.0005215799522 | Y76: Lam_Rp | Z76: 330238.7983 | AA76: Lam_Rm | AB76: 583.7221614 | AD76: Lam_Ip | AE76: -2071.234085 | AF76: Lam_Im | AG76: -70069.76274
A77: T | B77: 223 | C77: 18317.58942 | D77: 788146.0105 | I77: K | J77: 43.02673198 | K77: kex | L77: 806463.5999 | M77: R2HS | N77: 117.5636302 | O77: R2LS | P77: 0.1 | Q77: coeff Rm | R77: 1.000153129 | S77: coeff Rp | T77: -0.0001531286 | U77: coeff Im | V77: -2.412638221e-05 | W77: coeff Ip | X77: 2.412638221e-05 | Y77: Lam_Rp | Z77: 806341.3738 | AA77: Lam_Rm | AB77: 239.8897749 | AD77: Lam_Ip | AE77: -1525.513104 | AF77: Lam_Im | AG77: -66059.02023
A78: T | B78: 233 | C78: 32148.90954 | D78: 1792680.23 | I78: K | J78: 55.76177407 | K78: kex | L78: 1824829.14 | M78: R2HS | N78: 96.68085564 | O78: R2LS | P78: 0.1 | Q78: coeff Rm | R78: 1.000020841 | S78: coeff Rp | T78: -2.084088442e-05 | U78: coeff Im | V78: -1.335524106e-06 | W78: coeff Ip | X78: 1.335524106e-06 | Y78: Lam_Rp | Z78: 1824792.832 | AA78: Lam_Rm | AB78: 133.0885828 | AD78: Lam_Ip | AE78: -1116.125142 | AF78: Lam_Im | AG78: -62303.05744
A79: T | B79: 243 | C79: 53871.2866 | D79: 3810875.916 | I79: K | J79: 70.74039172 | K79: kex | L79: 3864747.203 | M79: R2HS | N79: 76.66994125 | O79: R2LS | P79: 0.1 | Q79: coeff Rm | R79: 1.000003267 | S79: coeff Rp | T79: -3.266649686e-06 | U79: coeff Im | V79: -8.956249353e-08 | W79: coeff Ip | X79: 8.956249353e-08 | Y79: Lam_Rp | Z79: 3864735.741 | AA79: Lam_Rm | AB79: 88.23225986 | AD79: Lam_Ip | AE79: -830.5698301 | AF79: Lam_Im | AG79: -58766.08923
A80: T | B80: 253 | C80: 86661.42626 | D80: 7632305.08 | I80: K | J80: 88.0703839 | K80: kex | L80: 7718966.506 | M80: R2HS | N80: 64.02390191 | O80: R2LS | P80: 0.1 | Q80: coeff Rm | R80: 1.000000586 | S80: coeff Rp | T80: -5.858135189e-07 | U80: coeff Im | V80: -6.985130904e-09 | W80: coeff Ip | X80: 6.985130904e-09 | Y80: Lam_Rp | Z80: 7718962.801 | AA80: Lam_Rm | AB80: 67.82843932 | AD80: Lam_Ip | AE80: -629.5512233 | AF80: Lam_Im | AG80: -55446.76008
A81: T | B81: 263 | C81: 134460.0571 | D81: 14499363.01 | I81: K | J81: 107.8339793 | K81: kex | L81: 14633823.07 | M81: R2HS | N81: 53.67757853 | O81: R2LS | P81: 0.1 | Q81: coeff Rm | R81: 1.000000119 | S81: coeff Rp | T81: -1.18620809e-07 | U81: coeff Im | V81: -6.000105709e-10 | W81: coeff Ip | X81: 6.000105709e-10 | Y81: Lam_Rp | Z81: 14633821.93 | AA81: Lam_Rm | AB81: 54.92119169 | AD81: Lam_Ip | AE81: -485.3574661 | AF81: Lam_Im | AG81: -52338.31314
A82: T | B82: 273 | C82: 202015.6952 | D82: 26279980.6 | I82: K | J82: 130.0888061 | K82: kex | L82: 26481996.3 | M82: R2HS | N82: 47.32005361 | O82: R2LS | P82: 0.1 | Q82: coeff Rm | R82: 1.000000027 | S82: coeff Rp | T82: -2.678108833e-08 | U82: coeff Im | V82: -4.842902401e-11 | W82: coeff Ip | X82: 4.842902401e-11 | Y82: Lam_Rp | Z82: 26481996.05 | AA82: Lam_Rm | AB82: 47.66905715 | AD82: Lam_Ip | AE82: -379.9662546 | AF82: Lam_Im | AG82: -49429.35235
A83: T | B83: 283 | C83: 294905.4589 | D83: 45671831.56 | I83: K | J83: 154.8694003 | K83: kex | L83: 45966737.02 | M83: R2HS | N83: 42.02347582 | O83: R2LS | P83: 0.1 | Q83: coeff Rm | R83: 1.000000007 | S83: coeff Rp | T83: -6.666542838e-09 | U83: coeff Im | V83: -1.569226421e-12 | W83: coeff Ip | X83: 1.569226421e-12 | Y83: Lam_Rp | Z83: 45966737.08 | AA83: Lam_Rm | AB83: 42.06094943 | AD83: Lam_Ip | AE83: -301.5860195 | AF83: Lam_Im | AG83: -46706.40899
A84: T | B84: 293 | C84: 419532.5396 | D84: 76434242.74 | I84: K | J84: 182.1890688 | K84: kex | L84: 76853775.28 | M84: R2HS | N84: 36.3802968 | O84: R2LS | P84: 0.1 | Q84: coeff Rm | R84: 1.000000002 | S84: coeff Rp | T84: -1.811832045e-09 | U84: coeff Im | V84: 8.906108519e-13 | W84: coeff Ip | X84: -8.906108519e-13 | Y84: Lam_Rp | Z84: 76853775.44 | AA84: Lam_Rm | AB84: 36.32149445 | AD84: Lam_Ip | AE84: -242.3611596 | AF84: Lam_Im | AG84: -44155.52688
A85: T | B85: 303 | C85: 583101.3039 | D85: 123641942.8 | I85: K | J85: 212.041959 | K85: kex | L85: 124225044.1 | M85: R2HS | N85: 31.34229564 | O85: R2LS | P85: 0.1 | Q85: coeff Rm | R85: 1.000000001 | S85: coeff Rp | T85: -5.330228474e-10 | U85: coeff Im | V85: 4.370449806e-13 | W85: coeff Ip | X85: -4.370449806e-13 | Y85: Lam_Rp | Z85: 124225044.3 | AA85: Lam_Rm | AB85: 31.26186183 | AD85: Lam_Ip | AE85: -196.9568898 | AF85: Lam_Im | AG85: -41763.10847
A86: T | B86: 313 | C86: 793572.0741 | D86: 193953153.9 | I86: K | J86: 244.4052156 | K86: kex | L86: 194746725.9 | M86: R2HS | N86: 26.51750632 | O86: R2LS | P86: 0.1 | Q86: coeff Rm | R86: 1 | S86: coeff Rp | T86: -1.684622494e-10 | U86: coeff Im | V86: 1.562372277e-13 | W86: coeff Ip | X86: -1.562372277e-13 | Y86: Lam_Rp | Z86: 194746726.1 | AA86: Lam_Rm | AB86: 26.44266528 | AD86: Lam_Ip | AE86: -161.6836998 | AF86: Lam_Im | AG86: -39516.3304
A87: T | B87: 323 | C87: 1059598.385 | D87: 295883459.1 | I87: K | J87: 279.2411383 | K87: kex | L87: 296943057.5 | M87: R2HS | N87: 22.99569746 | O87: R2LS | P87: 0.1 | Q87: coeff Rm | R87: 1 | S87: coeff Rp | T87: -5.681905462e-11 | U87: coeff Im | V87: 5.505042936e-14 | W87: coeff Ip | X87: -5.505042936e-14 | Y87: Lam_Rp | Z87: 296943057.7 | AA87: Lam_Rm | AB87: 22.93086952 | AD87: Lam_Ip | AE87: -133.9463282 | AF87: Lam_Im | AG87: -37403.32
A88: T | B88: 333 | C88: 1390449.958 | D88: 440076402.5 | I88: K | J88: 316.4992743 | K88: kex | L88: 441466852.5 | M88: R2HS | N88: 21.36890133 | O88: R2LS | P88: 0.1 | Q88: coeff Rm | R88: 1 | S88: coeff Rp | T88: -2.033120622e-11 | U88: coeff Im | V88: 2.109301696e-14 | W88: coeff Ip | X88: -2.109301696e-14 | Y88: Lam_Rp | Z88: 441466852.6 | AA88: Lam_Rm | AB88: 21.31088805 | AD88: Lam_Ip | AE88: -111.8903193 | AF88: Lam_Im | AG88: -35413.20167
A89: T | B89: 343 | C89: 1795924.816 | D89: 639561874.6 | I89: K | J89: 356.1184014 | K89: kex | L89: 641357799.5 | M89: R2HS | N89: 20.0304219 | O89: R2LS | P89: 0.1 | Q89: coeff Rm | R89: 1 | S89: coeff Rp | T89: -7.677724952e-12 | U89: coeff Im | V89: 8.299422976e-15 | W89: coeff Ip | X89: -8.299422976e-15 | Y89: Lam_Rp | Z89: 641357799.6 | AA89: Lam_Rm | AB89: 19.97953707 | AD89: Lam_Ip | AE89: -94.17114173 | AF89: Lam_Im | AG89: -33536.07446
A90: T | B90: 353 | C90: 2286253.928 | D90: 909993934.4 | I90: K | J90: 398.0283743 | K90: kex | L90: 912280188.3 | M90: R2HS | N90: 18.95064865 | O90: R2LS | P90: 0.1 | Q90: coeff Rm | R90: 1 | S90: coeff Rp | T90: -3.04559541e-12 | U90: coeff Im | V90: 3.394382222e-15 | W90: coeff Ip | X90: -3.394382222e-15 | Y90: Lam_Rp | Z90: 912280188.5 | AA90: Lam_Rm | AB90: 18.90618569 | AD90: Lam_Ip | AE90: -79.80073417 | AF90: Lam_Im | AG90: -31762.95522
A91: T | B91: 363 | C91: 2872001.567 | D91: 1269860706 | I91: K | J91: 442.1518154 | K91: kex | L91: 1272732708 | M91: R2HS | N91: 18.10277279 | O91: R2LS | P91: 0.1 | Q91: coeff Rm | R91: 1 | S91: coeff Rp | T91: -1.263733981e-12 | U91: coeff Im | V91: 1.449435237e-15 | W91: coeff Ip | X91: -1.449435237e-15 | Y91: Lam_Rp | Z91: 1272732708 | AA91: Lam_Rm | AB91: 18.06375694 | AD91: Lam_Ip | AE91: -68.04384043 | AF91: Lam_Im | AG91: -30085.70674
A92: T | B92: 373 | C92: 3563964.265 | D92: 1740660267 | I92: K | J92: 488.4056455 | K92: kex | L92: 1744224232 | M92: R2HS | N92: 17.45943204 | O92: R2LS | P92: 0.1 | Q92: coeff Rm | R92: 1 | S92: coeff Rp | T92: -5.465274776e-13 | U92: coeff Im | V92: 6.466723228e-16 | W92: coeff Ip | X92: -6.466723228e-16 | Y92: Lam_Rp | Z92: 1744224232 | AA92: Lam_Rm | AB92: 17.42491484 | AD92: Lam_Ip | AE92: -58.3469139 | AF92: Lam_Im | AG92: -28496.96158
A93: T | B93: 383 | C93: 4373070.889 | D93: 2347037871 | I93: K | J93: 536.7024524 | K93: kex | L93: 2351410942 | M93: R2HS | N93: 17.06904842 | O93: R2LS | P93: 0.1 | Q93: coeff Rm | R93: 1 | S93: coeff Rp | T93: -2.455501981e-13 | U93: coeff Im | V93: 3.024751051e-16 | W93: coeff Ip | X93: -3.024751051e-16 | Y93: Lam_Rp | Z93: 2351410942 | AA93: Lam_Rm | AB93: 17.0380671 | AD93: Lam_Ip | AE93: -50.28866103 | AF93: Lam_Im | AG93: -26990.04731
A94: T | B94: 393 | C94: 5310285.903 | D94: 3116881353 | I94: K | J94: 586.9517028 | K94: kex | L94: 3122191639 | M94: R2HS | N94: 16.71825446 | O94: R2LS | P94: 0.1 | Q94: coeff Rm | R94: 1 | S94: coeff Rp | T94: -1.142368717e-13 | U94: coeff Im | V94: 1.463484694e-16 | W94: coeff Ip | X94: -1.463484694e-16 | Y94: Lam_Rp | Z94: 3122191639 | AA94: Lam_Rm | AB94: 16.69034648 | AD94: Lam_Ip | AE94: -43.54517801 | AF94: Lam_Im | AG94: -25558.91611
A101: H4/5 | B101: C0 | C101: 5746 | D101: C1 | E101: -1.3455
C103: kHSLS | D103: kLSHS | Z103: Pi*linienbreite | AB103: Pi*linienbreite H4/5 | AE103: Lamorfrequenz p | AG103: Lamorfrequenz m
A104: T | B104: 173 | C104: =$F$4*EXP(-$F$5/($F$3*B104)) -> 414.7063313 | D104: =$H$4*EXP(-$H$5/($F$3*B104)) -> 3113.371102 | I104: K | J104: =D104/C104 -> 7.507411551 | K104: kex | L104: =D104+C104 -> 3528.077433 | M104: R2HS | N104: 264.8352062 | O104: R2LS | P104: 0.1 | Q104: coeff Rm | R104: 0.8827315845 | S104: coeff Rp | T104: 0.1172684155 | U104: coeff Im | V104: -0.007303381757 | W104: coeff Ip | X104: 0.007303381757 | Y104: Lam_Rp | Z104: 3113.784554 | AA104: Lam_Rm | AB104: 679.2280855 | AD104: Lam_Ip | AE104: -12.89023941 | AF104: Lam_Im | AG104: -100104.5557
A105: T | B105: =B104+10 -> 183 | C105: =$F$4*EXP(-$F$5/($F$3*B105)) -> 1043.96117 | D105: =$H$4*EXP(-$H$5/($F$3*B105)) -> 11994.21023 | I105: K | J105: 11.48913443 | K105: kex | L105: 13038.1714 | M105: R2HS | N105: 201.775427 | O105: R2LS | P105: 0.1 | Q105: coeff Rm | R105: 0.9233747526 | S105: coeff Rp | T105: 0.07662524743 | U105: coeff Im | V105: -0.01987235157 | W105: coeff Ip | X105: 0.01987235157 | Y105: Lam_Rp | Z105: 12009.27629 | AA105: Lam_Rm | AB105: 1230.770539 | AD105: Lam_Ip | AE105: -131.0969082 | AF105: Lam_Im | AG105: -94284.46606
A106: T | B106: =B105+10 -> 193 | C106: 2388.248191 | D106: 40180.36692 | I106: K | J106: 16.82420072 | K106: kex | L106: 42568.61511 | M106: R2HS | N106: 159.8817265 | O106: R2LS | P106: 0.1 | Q106: coeff Rm | R106: 0.9691956163 | S106: coeff Rp | T106: 0.03080438368 | U106: coeff Im | V106: -0.03642988674 | W106: coeff Ip | X106: 0.03642988674 | Y106: Lam_Rp | Z106: 40574.59497 | AA106: Lam_Rm | AB106: 2154.001865 | AD106: Lam_Ip | AE106: -916.1083931 | AF106: Lam_Im | AG106: -88388.44028
A107: T | B107: 203 | C107: 5035.773451 | D107: 119488.9763 | I107: K | J107: 23.72802856 | K107: kex | L107: 124524.7497 | M107: R2HS | N107: 127.0682084 | O107: R2LS | P107: 0.1 | Q107: coeff Rm | R107: 1.005357693 | S107: coeff Rp | T107: -0.005357693145 | U107: coeff Im | V107: -0.01199748721 | W107: coeff Ip | X107: 0.01199748721 | Y107: Lam_Rp | Z107: 122922.0903 | AA107: Lam_Rm | AB107: 1729.827644 | AD107: Lam_Ip | AE107: -2399.214812 | AF107: Lam_Im | AG107: -82297.86778
A108: T | B108: 213 | C108: 9899.918549 | D108: 320773.9992 | I108: K | J108: 32.40168064 | K108: kex | L108: 330673.9177 | M108: R2HS | N108: 105.4960965 | O108: R2LS | P108: 0.1 | Q108: coeff Rm | R108: 1.00148103 | S108: coeff Rp | T108: -0.001481029976 | U108: coeff Im | V108: -0.0007149655295 | W108: coeff Ip | X108: 0.0007149655295 | Y108: Lam_Rp | Z108: 330134.8887 | AA108: Lam_Rm | AB108: 644.6251153 | AD108: Lam_Ip | AE108: -2287.629855 | AF108: Lam_Im | AG108: -78234.61257
A109: T | B109: 223 | C109: 18317.58942 | D109: 788146.0105 | I109: K | J109: 43.02673198 | K109: kex | L109: 806463.5999 | M109: R2HS | N109: 85.36066922 | O109: R2LS | P109: 0.1 | Q109: coeff Rm | R109: 1.000196224 | S109: coeff Rp | T109: -0.0001962242263 | U109: coeff Im | V109: -3.551008164e-05 | W109: coeff Ip | X109: 3.551008164e-05 | Y109: Lam_Rp | Z109: 806304.8662 | AA109: Lam_Rm | AB109: 244.194384 | AD109: Lam_Ip | AE109: -1728.372279 | AF109: Lam_Im | AG109: -74993.45511
A110: T | B110: 233 | C110: 32148.90954 | D110: 1792680.23 | I110: K | J110: 55.76177407 | K110: kex | L110: 1824829.14 | M110: R2HS | N110: 70.2771948 | O110: R2LS | P110: 0.1 | Q110: coeff Rm | R110: 1.000027768 | S110: coeff Rp | T110: -2.776810331e-05 | U110: coeff Im | V110: -2.100612645e-06 | W110: coeff Ip | X110: 2.100612645e-06 | Y110: Lam_Rp | Z110: 1824779.661 | AA110: Lam_Rm | AB110: 119.856642 | AD110: Lam_Ip | AE110: -1288.568857 | AF110: Lam_Im | AG110: -71959.05938
A111: T | B111: 243 | C111: 53871.2866 | D111: 3810875.916 | I111: K | J111: 70.74039172 | K111: kex | L111: 3864747.203 | M111: R2HS | N111: 57.82947427 | O111: R2LS | P111: 0.1 | Q111: coeff Rm | R111: 1.000004513 | S111: coeff Rp | T111: -4.51303899e-06 | U111: coeff Im | V111: -1.516688263e-07 | W111: coeff Ip | X111: 1.516688263e-07 | Y111: Lam_Rp | Z111: 3864730.656 | AA111: Lam_Rm | AB111: 74.47644823 | AD111: Lam_Ip | AE111: -976.2892282 | AF111: Lam_Im | AG111: -69083.08217
A112: T | B112: 253 | C112: 86661.42626 | D112: 7632305.08 | I112: K | J112: 88.0703839 | K112: kex | L112: 7718966.506 | M112: R2HS | N112: 47.23486933 | O112: R2LS | P112: 0.1 | Q112: coeff Rm | R112: 1.000000839 | S112: coeff Rp | T112: -8.392896793e-07 | U112: coeff Im | V112: -1.309106861e-08 | W112: coeff Ip | X112: 1.309106861e-08 | Y112: Lam_Rp | Z112: 7718960.656 | AA112: Lam_Rm | AB112: 53.18494091 | AD112: Lam_Ip | AE112: -753.5507592 | AF112: Lam_Im | AG112: -66369.59991
A113: T | B113: 263 | C113: 134460.0571 | D113: 14499363.01 | I113: K | J113: 107.8339793 | K113: kex | L113: 14633823.07 | M113: R2HS | N113: 40.05600765 | O113: R2LS | P113: 0.1 | Q113: coeff Rm | R113: 1.000000176 | S113: coeff Rp | T113: -1.763612875e-07 | U113: coeff Im | V113: -1.305177886e-09 | W113: coeff Ip | X113: 1.305177886e-09 | Y113: Lam_Rp | Z113: 14633820.96 | AA113: Lam_Rm | AB113: 42.26979416 | AD113: Lam_Ip | AE113: -591.8128878 | AF113: Lam_Im | AG113: -63818.40381
A114: T | B114: 273 | C114: 202015.6952 | D114: 26279980.6 | I114: K | J114: 130.0888061 | K114: kex | L114: 26481996.3 | M114: R2HS | N114: 34.81874022 | O114: R2LS | P114: 0.1 | Q114: coeff Rm | R114: 1.000000041 | S114: coeff Rp | T114: -4.135511885e-08 | U114: coeff Im | V114: -1.439748343e-10 | W114: coeff Ip | X114: 1.439748343e-10 | Y114: Lam_Rp | Z114: 26481995.57 | AA114: Lam_Rm | AB114: 35.64906459 | AD114: Lam_Ip | AE114: -472.1674178 | AF114: Lam_Im | AG114: -61423.86504
A115: T | B115: 283 | C115: 294905.4589 | D115: 45671831.56 | I115: K | J115: 154.8694003 | K115: kex | L115: 45966737.02 | M115: R2HS | N115: 30.28154173 | O115: R2LS | P115: 0.1 | Q115: coeff Rm | R115: 1.000000011 | S115: coeff Rp | T115: -1.070184128e-08 | U115: coeff Im | V115: -1.653089315e-11 | W115: coeff Ip | X115: 1.653089315e-11 | Y115: Lam_Rp | Z115: 45966736.82 | AA115: Lam_Rm | AB115: 30.57983757 | AD115: Lam_Ip | AE115: -382.1116179 | AF115: Lam_Im | AG115: -59177.41747
A116: T | B116: 293 | C116: 419532.5396 | D116: 76434242.74 | I116: K | J116: 182.1890688 | K116: kex | L116: 76853775.28 | M116: R2HS | N116: 26.30268357 | O116: R2LS | P116: 0.1 | Q116: coeff Rm | R116: 1.000000003 | S116: coeff Rp | T116: -3.026578822e-09 | U116: coeff Im | V116: -1.706155384e-12 | W116: coeff Ip | X116: 1.706155384e-12 | Y116: Lam_Rp | Z116: 76853775.29 | AA116: Lam_Rm | AB116: 26.39225132 | AD116: Lam_Ip | AE116: -313.2420609 | AF116: Lam_Im | AG116: -57069.27194
A117: T | B117: 303 | C117: 583101.3039 | D117: 123641942.8 | I117: K | J117: 212.041959 | K117: kex | L117: 124225044.1 | M117: R2HS | N117: 22.76049443 | O117: R2LS | P117: 0.1 | Q117: coeff Rm | R117: 1.000000001 | S117: coeff Rp | T117: -9.274616667e-10 | U117: coeff Im | V117: -5.928982143e-14 | W117: coeff Ip | X117: 5.928982143e-14 | Y117: Lam_Rp | Z117: 124225044.2 | AA117: Lam_Rm | AB117: 22.76934204 | AD117: Lam_Ip | AE117: -259.8042461 | AF117: Lam_Im | AG117: -55089.39204
A118: T | B118: 313 | C118: 793572.0741 | D118: 193953153.9 | I118: K | J118: 244.4052156 | K118: kex | L118: 194746725.9 | M118: R2HS | N118: 19.94927148 | O118: R2LS | P118: 0.1 | Q118: coeff Rm | R118: 1 | S118: coeff Rp | T118: -3.056538557e-10 | U118: coeff Im | V118: 6.063545945e-14 | W118: coeff Ip | X118: -6.063545945e-14 | Y118: Lam_Rp | Z118: 194746726.1 | AA118: Lam_Rm | AB118: 19.92791289 | AD118: Lam_Ip | AE118: -217.7859577 | AF118: Lam_Im | AG118: -53228.01706
A119: T | B119: 323 | C119: 1059598.385 | D119: 295883459.1 | I119: K | J119: 279.2411383 | K119: kex | L119: 296943057.5 | M119: R2HS | N119: 18.2706863 | O119: R2LS | P119: 0.1 | Q119: coeff Rm | R119: 1 | S119: coeff Rp | T119: -1.076174349e-10 | U119: coeff Im | V119: 3.852752112e-14 | W119: coeff Ip | X119: -3.852752112e-14 | Y119: Lam_Rp | Z119: 296943057.7 | AA119: Lam_Rm | AB119: 18.2378031 | AD119: Lam_Ip | AE119: -184.3422132 | AF119: Lam_Im | AG119: -51475.92471
A120: T | B120: 333 | C120: 1390449.958 | D120: 440076402.5 | I120: K | J120: 316.4992743 | K120: kex | L120: 441466852.5 | M120: R2HS | N120: 16.2430412 | O120: R2LS | P120: 0.1 | Q120: coeff Rm | R120: 1 | S120: coeff Rp | T120: -4.024548536e-11 | U120: coeff Im | V120: 1.694115769e-14 | W120: coeff Ip | X120: -1.694115769e-14 | Y120: Lam_Rp | Z120: 441466852.6 | AA120: Lam_Rm | AB120: 16.20996395 | AD120: Lam_Ip | AE120: -157.4238976 | AF120: Lam_Im | AG120: -49824.54633
A121: T | B121: 343 | C121: 1795924.816 | D121: 639561874.6 | I121: K | J121: 356.1184014 | K121: kex | L121: 641357799.5 | M121: R2HS | N121: 14.8525912 | O121: R2LS | P121: 0.1 | Q121: coeff Rm | R121: 1 | S121: coeff Rp | T121: -1.590329959e-11 | U121: coeff Im | V121: 7.307617366e-15 | W121: coeff Ip | X121: -7.307617366e-15 | Y121: Lam_Rp | Z121: 641357799.6 | AA121: Lam_Rm | AB121: 14.82148087 | AD121: Lam_Ip | AE121: -135.5335798 | AF121: Lam_Im | AG121: -48265.99982
A122: T | B122: 353 | C122: 2286253.928 | D122: 909993934.4 | I122: K | J122: 398.0283743 | K122: kex | L122: 912280188.3 | M122: R2HS | N122: 18.95064865 | O122: R2LS | P122: 0.1 | Q122: coeff Rm | R122: 1 | S122: coeff Rp | T122: -6.609789988e-12 | U122: coeff Im | V122: 4.63587863e-15 | W122: coeff Ip | X122: -4.63587863e-15 | Y122: Lam_Rp | Z122: 912280188.5 | AA122: Lam_Rm | AB122: 18.90943724 | AD122: Lam_Ip | AE122: -117.5621699 | AF122: Lam_Im | AG122: -46793.07757
A123: T | B123: 363 | C123: 2872001.567 | D123: 1269860706 | I123: K | J123: 442.1518154 | K123: kex | L123: 1272732708 | M123: R2HS | N123: 18.10277279 | O123: R2LS | P123: 0.1 | Q123: coeff Rm | R123: 1 | S123: coeff Rp | T123: -2.877839006e-12 | U123: coeff Im | V123: 2.0723077e-15 | W123: coeff Ip | X123: -2.0723077e-15 | Y123: Lam_Rp | Z123: 1272732708 | AA123: Lam_Rm | AB123: 18.06581116 | AD123: Lam_Ip | AE123: -102.6778829 | AF123: Lam_Im | AG123: -45399.2111
A124: T | B124: 373 | C124: 3563964.265 | D124: 1740660267 | I124: K | J124: 488.4056455 | K124: kex | L124: 1744224232 | M124: R2HS | N124: 17.45943204 | O124: R2LS | P124: 0.1 | Q124: coeff Rm | R124: 1 | S124: coeff Rp | T124: -1.307664762e-12 | U124: coeff Im | V124: 9.618694617e-16 | W124: coeff Ip | X124: -9.618694617e-16 | Y124: Lam_Rp | Z124: 1744224232 | AA124: Lam_Rm | AB124: 17.42624223 | AD124: Lam_Ip | AE124: -90.24962362 | AF124: Lam_Im | AG124: -44078.42483
A125: T | B125: 383 | C125: 4373070.889 | D125: 2347037871 | I125: K | J125: 536.7024524 | K125: kex | L125: 2351410942 | M125: R2HS | N125: 17.06904842 | O125: R2LS | P125: 0.1 | Q125: coeff Rm | R125: 1 | S125: coeff Rp | T125: -6.180496923e-13 | U125: coeff Im | V125: 4.663946484e-16 | W125: coeff Ip | X125: -4.663946484e-16 | Y125: Lam_Rp | Z125: 2351410942 | AA125: Lam_Rm | AB125: 17.03894305 | AD125: Lam_Ip | AE125: -79.7933502 | AF125: Lam_Im | AG125: -42825.28613
A126: T | B126: 393 | C126: 5310285.903 | D126: 3116881353 | I126: K | J126: 586.9517028 | K126: kex | L126: 3122191639 | M126: R2HS | N126: 16.71825446 | O126: R2LS | P126: 0.1 | Q126: coeff Rm | R126: 1 | S126: coeff Rp | T126: -3.029047792e-13 | U126: coeff Im | V126: 2.333751935e-16 | W126: coeff Ip | X126: -2.333751935e-16 | Y126: Lam_Rp | Z126: 3122191639 | AA126: Lam_Rm | AB126: 16.69093561 | AD126: Lam_Ip | AE126: -70.93404073 | AF126: Lam_Im | AG126: -41634.85556
A138: H9 | B138: C0 | C138: 737.71 | D138: C1 | E138: 5.83
C139: 5.83
C140: kHSLS | D140: kLSHS | Z140: Pi*linienbreite | AB140: Pi*linienbreite H9 | AE140: Lamorfrequenz p | AG140: Lamorfrequenz m
A141: T | B141: 173 | C141: =$F$4*EXP(-$F$5/($F$3*B141)) -> 414.7063313 | D141: =$H$4*EXP(-$H$5/($F$3*B141)) -> 3113.371102 | I141: K | J141: =D141/C141 -> 7.507411551 | K141: kex | L141: =D141+C141 -> 3528.077433 | M141: R2HS | N141: 332.9816593 | O141: R2LS | P141: 0.1 | Q141: coeff Rm | R141: 0.8851502508 | S141: coeff Rp | T141: 0.1148497492 | U141: coeff Im | V141: -0.02286403286 | W141: coeff Ip | X141: 0.02286403286 | Y141: Lam_Rp | Z141: 3116.503218 | AA141: Lam_Rm | AB141: 744.6558742 | AD141: Lam_Ip | AE141: -40.5398161 | AF141: Lam_Im | AG141: -31671.38649
A142: T | B142: =B141+10 -> 183 | C142: =$F$4*EXP(-$F$5/($F$3*B142)) -> 1043.96117 | D142: =$H$4*EXP(-$H$5/($F$3*B142)) -> 11994.21023 | I142: K | J142: 11.48913443 | K142: kex | L142: 13038.1714 | M142: R2HS | N142: 253.6955621 | O142: R2LS | P142: 0.1 | Q142: coeff Rm | R142: 0.9480341905 | S142: coeff Rp | T142: 0.0519658095 | U142: coeff Im | V142: -0.04974576241 | W142: coeff Ip | X142: 0.04974576241 | Y142: Lam_Rp | Z142: 12122.84666 | AA142: Lam_Rm | AB142: 1169.120305 | AD142: Lam_Ip | AE142: -363.5331953 | AF142: Lam_Im | AG142: -30616.34715
A143: T | B143: =B142+10 -> 193 | C143: 2388.248191 | D143: 40180.36692 | I143: K | J143: 16.82420072 | K143: kex | L143: 42568.61511 | M143: R2HS | N143: 201.0219236 | O143: R2LS | P143: 0.1 | Q143: coeff Rm | R143: 1.007679274 | S143: coeff Rp | T143: -0.007679274125 | U143: coeff Im | V143: -0.0182277832 | W143: coeff Ip | X143: 0.0182277832 | Y143: Lam_Rp | Z143: 41757.1431 | AA143: Lam_Rm | AB143: 1012.593935 | AD143: Lam_Ip | AE143: -1173.424349 | AF143: Lam_Im | AG143: -29150.26971
A144: T | B144: 203 | C144: 5035.773451 | D144: 119488.9763 | I144: K | J144: 23.72802856 | K144: kex | L144: 124524.7497 | M144: R2HS | N144: 159.7649478 | O144: R2LS | P144: 0.1 | Q144: coeff Rm | R144: 1.001938906 | S144: coeff Rp | T144: -0.001938906307 | U144: coeff Im | V144: -0.000876182907 | W144: coeff Ip | X144: 0.000876182907 | Y144: Lam_Rp | Z144: 124267.1329 | AA144: Lam_Rm | AB144: 417.4817303 | AD144: Lam_Ip | AE144: -1147.051511 | AF144: Lam_Im | AG144: -28585.10517
A145: T | B145: 213 | C145: 9899.918549 | D145: 320773.9992 | I145: K | J145: 32.40168064 | K145: kex | L145: 330673.9177 | M145: R2HS | N145: 132.6419767 | O145: R2LS | P145: 0.1 | Q145: coeff Rm | R145: 1.000222417 | S145: coeff Rp | T145: -0.000222417469 | U145: coeff Im | V145: -3.514566527e-05 | W145: coeff Ip | X145: 3.514566527e-05 | Y145: Lam_Rp | Z145: 330603.5339 | AA145: Lam_Rm | AB145: 203.1257406 | AD145: Lam_Ip | AE145: -868.5878414 | AF145: Lam_Im | AG145: -28327.57487
A146: T | B146: 223 | C146: 18317.58942 | D146: 788146.0105 | I146: K | J146: 43.02673198 | K146: kex | L146: 806463.5999 | M146: R2HS | N146: 107.325373 | O146: R2LS | P146: 0.1 | Q146: coeff Rm | R146: 1.000028055 | S146: coeff Rp | T146: -2.805471506e-05 | U146: coeff Im | V146: -1.698786911e-06 | W146: coeff Ip | X146: 1.698786911e-06 | Y146: Lam_Rp | Z146: 806443.4679 | AA146: Lam_Rm | AB146: 127.5574312 | AD146: Lam_Ip | AE146: -651.4629302 | AF146: Lam_Im | AG146: -28056.77702
A147: T | B147: 233 | C147: 32148.90954 | D147: 1792680.23 | I147: K | J147: 55.76177407 | K147: kex | L147: 1824829.14 | M147: R2HS | N147: 88.36067256 | O147: R2LS | P147: 0.1 | Q147: coeff Rm | R147: 1.00000415 | S147: coeff Rp | T147: -4.149769964e-06 | U147: coeff Im | V147: -9.810805454e-08 | W147: coeff Ip | X147: 9.810805454e-08 | Y147: Lam_Rp | Z147: 1824823.22 | AA147: Lam_Rm | AB147: 94.38062102 | AD147: Lam_Ip | AE147: -497.8431434 | AF147: Lam_Im | AG147: -27764.35583
A148: T | B148: 243 | C148: 53871.2866 | D148: 3810875.916 | I148: K | J148: 70.74039172 | K148: kex | L148: 3864747.203 | M148: R2HS | N148: 72.70994887 | O148: R2LS | P148: 0.1 | Q148: coeff Rm | R148: 1.000000714 | S148: coeff Rp | T148: -7.138702576e-07 | U148: coeff Im | V148: -6.280945803e-09 | W148: coeff Ip | X148: 6.280945803e-09 | Y148: Lam_Rp | Z148: 3864745.556 | AA148: Lam_Rm | AB148: 74.4568718 | AD148: Lam_Ip | AE148: -388.2403452 | AF148: Lam_Im | AG148: -27464.62884
A149: T | B149: 253 | C149: 86661.42626 | D149: 7632305.08 | I149: K | J149: 88.0703839 | K149: kex | L149: 7718966.506 | M149: R2HS | N149: 59.38917787 | O149: R2LS | P149: 0.1 | Q149: coeff Rm | R149: 1.000000141 | S149: coeff Rp | T149: -1.40653536e-07 | U149: coeff Im | V149: -3.718210133e-10 | W149: coeff Ip | X149: 3.718210133e-10 | Y149: Lam_Rp | Z149: 7718966.186 | AA149: Lam_Rm | AB149: 59.80923521 | AD149: Lam_Ip | AE149: -308.4749065 | AF149: Lam_Im | AG149: -27167.42258
A150: T | B150: 263 | C150: 134460.0571 | D150: 14499363.01 | I150: K | J150: 107.8339793 | K150: kex | L150: 14633823.07 | M150: R2HS | N150: 50.36307705 | O150: R2LS | P150: 0.1 | Q150: coeff Rm | R150: 1.000000031 | S150: coeff Rp | T150: -3.128502831e-08 | U150: coeff Im | V150: 2.07353069e-12 | W150: coeff Ip | X150: -2.07353069e-12 | Y150: Lam_Rp | Z150: 14633823.17 | AA150: Lam_Rm | AB150: 50.35906241 | AD150: Lam_Ip | AE150: -249.2575112 | AF150: Lam_Im | AG150: -26878.33533
A151: T | B151: 273 | C151: 202015.6952 | D151: 26279980.6 | I151: K | J151: 130.0888061 | K151: kex | L151: 26481996.3 | M151: R2HS | N151: 43.77817459 | O151: R2LS | P151: 0.1 | Q151: coeff Rm | R151: 1.000000008 | S151: coeff Rp | T151: -7.755938788e-09 | U151: coeff Im | V151: 9.815003397e-12 | W151: coeff Ip | X151: -9.815003397e-12 | Y151: Lam_Rp | Z151: 26481996.52 | AA151: Lam_Rm | AB151: 43.65037143 | AD151: Lam_Ip | AE151: -204.4786791 | AF151: Lam_Im | AG151: -26600.32633
A152: T | B152: 283 | C152: 294905.4589 | D152: 45671831.56 | I152: K | J152: 154.8694003 | K152: kex | L152: 45966737.02 | M152: R2HS | N152: 38.07348032 | O152: R2LS | P152: 0.1 | Q152: coeff Rm | R152: 1.000000002 | S152: coeff Rp | T152: -2.119372703e-09 | U152: coeff Im | V152: 3.660113176e-12 | W152: coeff Ip | X152: -3.660113176e-12 | Y152: Lam_Rp | Z152: 45966737.26 | AA152: Lam_Rm | AB152: 37.9272771 | AD152: Lam_Ip | AE152: -170.045332 | AF152: Lam_Im | AG152: -26334.78371
A153: T | B153: 293 | C153: 419532.5396 | D153: 76434242.74 | I153: K | J153: 182.1890688 | K153: kex | L153: 76853775.28 | M153: R2HS | N153: 33.07079654 | O153: R2LS | P153: 0.1 | Q153: coeff Rm | R153: 1.000000001 | S153: coeff Rp | T153: -6.321716065e-10 | U153: coeff Im | V153: 1.162817644e-12 | W153: coeff Ip | X153: -1.162817644e-12 | Y153: Lam_Rp | Z153: 76853775.52 | AA153: Lam_Rm | AB153: 32.93939893 | AD153: Lam_Ip | AE153: -143.1600084 | AF153: Lam_Im | AG153: -26082.16925
A154: T | B154: 303 | C154: 583101.3039 | D154: 123641942.8 | I154: K | J154: 212.041959 | K154: kex | L154: 124225044.1 | M154: R2HS | N154: 28.61714389 | O154: R2LS | P154: 0.1 | Q154: coeff Rm | R154: 1 | S154: coeff Rp | T154: -2.040919156e-10 | U154: coeff Im | V154: 3.638039088e-13 | W154: coeff Ip | X154: -3.638039088e-13 | Y154: Lam_Rp | Z154: 124225044.3 | AA154: Lam_Rm | AB154: 28.50864027 | AD154: Lam_Ip | AE154: -121.8740626 | AF154: Lam_Im | AG154: -25842.40423
A155: T | B155: 313 | C155: 793572.0741 | D155: 193953153.9 | I155: K | J155: 244.4052156 | K155: kex | L155: 194746725.9 | M155: R2HS | N155: 25.08254704 | O155: R2LS | P155: 0.1 | Q155: coeff Rm | R155: 1 | S155: coeff Rp | T155: -7.078490566e-11 | U155: coeff Im | V155: 1.189668698e-13 | W155: coeff Ip | X155: -1.189668698e-13 | Y155: Lam_Rp | Z155: 194746726.1 | AA155: Lam_Rm | AB155: 24.99453096 | AD155: Lam_Ip | AE155: -104.8058982 | AF155: Lam_Im | AG155: -25615.10201
A156: T | B156: 323 | C156: 1059598.385 | D156: 295883459.1 | I156: K | J156: 279.2411383 | K156: kex | L156: 296943057.5 | M156: R2HS | N156: 22.9720343 | O156: R2LS | P156: 0.1 | Q156: coeff Rm | R156: 1 | S156: coeff Rp | T156: -2.620187898e-11 | U156: coeff Im | V156: 4.25538739e-14 | W156: coeff Ip | X156: -4.25538739e-14 | Y156: Lam_Rp | Z156: 296943057.7 | AA156: Lam_Rm | AB156: 22.89819923 | AD156: Lam_Ip | AE156: -90.9597809 | AF156: Lam_Im | AG156: -25399.70903
A157: T | B157: 333 | C157: 1390449.958 | D157: 440076402.5 | I157: K | J157: 316.4992743 | K157: kex | L157: 441466852.5 | M157: R2HS | N157: 20.42264279 | O157: R2LS | P157: 0.1 | Q157: coeff Rm | R157: 1 | S157: coeff Rp | T157: -1.029150694e-11 | U157: coeff Im | V157: 1.537890284e-14 | W157: coeff Ip | X157: -1.537890284e-14 | Y157: Lam_Rp | Z157: 441466852.6 | AA157: Lam_Rm | AB157: 20.36317766 | AD157: Lam_Ip | AE157: -79.60711132 | AF157: Lam_Im | AG157: -25195.59072
A158: T | B158: 343 | C158: 1795924.816 | D158: 639561874.6 | I158: K | J158: 356.1184014 | K158: kex | L158: 641357799.5 | M158: R2HS | N158: 18.67440713 | O158: R2LS | P158: 0.1 | Q158: coeff Rm | R158: 1 | S158: coeff Rp | T158: -4.267332644e-12 | U158: coeff Im | V158: 5.991004615e-15 | W158: coeff Ip | X158: -5.991004615e-15 | Y158: Lam_Rp | Z158: 641357799.6 | AA158: Lam_Rm | AB158: 18.62513208 | AD158: Lam_Ip | AE158: -70.20722558 | AF158: Lam_Im | AG158: -25002.08353
A159: T | B159: 353 | C159: 2286253.928 | D159: 909993934.4 | I159: K | J159: 398.0283743 | K159: kex | L159: 912280188.3 | M159: R2HS | N159: 18.95064865 | O159: R2LS | P159: 0.1 | Q159: coeff Rm | R159: 1 | S159: coeff Rp | T159: -1.859396257e-12 | U159: coeff Im | V159: 2.716634935e-15 | W159: coeff Ip | X159: -2.716634935e-15 | Y159: Lam_Rp | Z159: 912280188.5 | AA159: Lam_Rm | AB159: 18.90510356 | AD159: Lam_Ip | AE159: -62.35366316 | AF159: Lam_Im | AG159: -24818.52617
A160: T | B160: 363 | C160: 2872001.567 | D160: 1269860706 | I160: K | J160: 442.1518154 | K160: kex | L160: 1272732708 | M160: R2HS | N160: 18.10277279 | O160: R2LS | P160: 0.1 | Q160: coeff Rm | R160: 1 | S160: coeff Rp | T160: -8.478795368e-13 | U160: coeff Im | V160: 1.203352098e-15 | W160: coeff Ip | X160: -1.203352098e-15 | Y160: Lam_Rp | Z160: 1272732708 | AA160: Lam_Rm | AB160: 18.06322777 | AD160: Lam_Ip | AE160: -55.73714199 | AF160: Lam_Im | AG160: -24644.27783
A161: T | B161: 373 | C161: 3563964.265 | D161: 1740660267 | I161: K | J161: 488.4056455 | K161: kex | L161: 1744224232 | M161: R2HS | N161: 17.45943204 | O161: R2LS | P161: 0.1 | Q161: coeff Rm | R161: 1 | S161: coeff Rp | T161: -4.033011826e-13 | U161: coeff Im | V161: 5.594984605e-16 | W161: coeff Ip | X161: -5.594984605e-16 | Y161: Lam_Rp | Z161: 1744224232 | AA161: Lam_Rm | AB161: 17.42466486 | AD161: Lam_Ip | AE161: -50.11966793 | AF161: Lam_Im | AG161: -24478.72828
A162: T | B162: 383 | C162: 4373070.889 | D162: 2347037871 | I162: K | J162: 536.7024524 | K162: kex | L162: 2351410942 | M162: R2HS | N162: 17.06904842 | O162: R2LS | P162: 0.1 | Q162: coeff Rm | R162: 1 | S162: coeff Rp | T162: -1.993815171e-13 | U162: coeff Im | V162: 2.735191484e-16 | W162: coeff Ip | X162: -2.735191484e-16 | Y162: Lam_Rp | Z162: 2351410942 | AA162: Lam_Rm | AB162: 17.03795862 | AD162: Lam_Ip | AE162: -45.316177 | AF162: Lam_Im | AG162: -24321.30298
A163: T | B163: 393 | C163: 5310285.903 | D163: 3116881353 | I163: K | J163: 586.9517028 | K163: kex | L163: 3122191639 | M163: R2HS | N163: 16.71825446 | O163: R2LS | P163: 0.1 | Q163: coeff Rm | R163: 1 | S163: coeff Rp | T163: -1.020940415e-13 | U163: coeff Im | V163: 1.385939862e-16 | W163: coeff Ip | X163: -1.385939862e-16 | Y163: Lam_Rp | Z163: 3122191639 | AA163: Lam_Rm | AB163: 16.69030881 | AD163: Lam_Ip | AE163: -41.18135286 | AF163: Lam_Im | AG163: -24171.46493
A172: H7 | B172: C0 | C172: 30240 | D172: C1 | E172: -17.694
C174: kHSLS | D174: kLSHS | Z174: Pi*linienbreite | AB174: Pi*linienbreite H7 | AE174: Lamorfrequenz p | AG174: Lamorfrequenz m
A175: T | B175: 173 | C175: =$F$4*EXP(-$F$5/($F$3*B175)) -> 414.7063313 | D175: =$H$4*EXP(-$H$5/($F$3*B175)) -> 3113.371102 | I175: K | J175: =D175/C175 -> 7.507411551 | K175: kex | L175: =D175+C175 -> 3528.077433 | M175: R2HS | N175: 955.1106557 | O175: R2LS | P175: 0.1 | Q175: coeff Rm | R175: 0.8824647271 | S175: coeff Rp | T175: 0.1175352729 | U175: coeff Im | V175: -0.001482920894 | W175: coeff Ip | X175: 0.001482920894 | Y175: Lam_Rp | Z175: 3113.480344 | AA175: Lam_Rm | AB175: 1369.807745 | AD175: Lam_Ip | AE175: -2.61596654 | AF175: Lam_Im | AG175: -493553.1757 | AH175: LamorHS | AI175: -493555.7916 | AJ175: =AG175/AI175 -> 0.9999946998
A176: T | B176: =B175+10 -> 183 | C176: =$F$4*EXP(-$F$5/($F$3*B176)) -> 1043.96117 | D176: =$H$4*EXP(-$H$5/($F$3*B176)) -> 11994.21023 | I176: K | J176: 11.48913443 | K176: kex | L176: 13038.1714 | M176: R2HS | N176: 727.6897327 | O176: R2LS | P176: 0.1 | Q176: coeff Rm | R176: 0.9200706441 | S176: coeff Rp | T176: 0.07992935588 | U176: coeff Im | V176: -0.004139879641 | W176: coeff Ip | X176: 0.004139879641 | Y176: Lam_Rp | Z176: 11994.90575 | AA176: Lam_Rm | AB176: 1771.055384 | AD176: Lam_Ip | AE176: -27.00072367 | AF176: Lam_Im | AG176: -463520.9695 | AH176: LamorHS | AI176: -463547.9702 | AJ176: =AG176/AI176 -> 0.999941752
A177: T | B177: =B176+10 -> 193 | C177: 2388.248191 | D177: 40180.36692 | I177: K | J177: 16.82420072 | K177: kex | L177: 42568.61511 | M177: R2HS | N177: 576.6028726 | O177: R2LS | P177: 0.1 | Q177: coeff Rm | R177: 0.9452106099 | S177: coeff Rp | T177: 0.05478939012 | U177: coeff Im | V177: -0.01018545632 | W177: coeff Ip | X177: 0.01018545632 | Y177: Lam_Rp | Z177: 40199.09011 | AA177: Lam_Rm | AB177: 2946.227874 | AD177: Lam_Ip | AE177: -218.2868847 | AF177: Lam_Im | AG177: -436431.4807 | AH177: LamorHS | AI177: -436649.7676 | AJ177: 0.999500087
A178: T | B178: 203 | C178: 5035.773451 | D178: 119488.9763 | I178: K | J178: 23.72802856 | K178: kex | L178: 124524.7497 | M178: R2HS | N178: 458.2630898 | O178: R2LS | P178: 0.1 | Q178: coeff Rm | R178: 0.9682929064 | S178: coeff Rp | T178: 0.03170709357 | U178: coeff Im | V178: -0.02029531335 | W178: coeff Ip | X178: 0.02029531335 | Y178: Lam_Rp | Z178: 119867.133 | AA178: Lam_Rm | AB178: 5115.979767 | AD178: Lam_Ip | AE178: -1358.689885 | AF178: Lam_Im | AG178: -411042.9443 | AH178: LamorHS | AI178: -412401.6342 | AJ178: 0.9967054207
A179: T | B179: 213 | C179: 9899.918549 | D179: 320773.9992 | I179: K | J179: 32.40168064 | K179: kex | L179: 330673.9177 | M179: R2HS | N179: 380.4646947 | O179: R2LS | P179: 0.1 | Q179: coeff Rm | R179: 0.9971813448 | S179: coeff Rp | T179: 0.002818655199 | U179: coeff Im | V179: -0.017801039 | W179: coeff Ip | X179: 0.017801039 | Y179: Lam_Rp | Z179: 324809.3347 | AA179: Lam_Rm | AB179: 6245.147652 | AD179: Lam_Ip | AE179: -4945.560081 | AF179: Lam_Im | AG179: -385484.7607 | AH179: LamorHS | AI179: -390430.3208 | AJ179: 0.9873330533
A180: T | B180: 223 | C180: 18317.58942 | D180: 788146.0105 | I180: K | J180: 43.02673198 | K180: kex | L180: 806463.5999 | M180: R2HS | N180: 307.847608 | O180: R2LS | P180: 0.1 | Q180: coeff Rm | R180: 1.002662794 | S180: coeff Rp | T180: -0.002662793585 | U180: coeff Im | V180: -0.002933808403 | W180: coeff Ip | X180: 0.002933808403 | Y180: Lam_Rp | Z180: 803295.336 | AA180: Lam_Rm | AB180: 3476.211499 | AD180: Lam_Ip | AE180: -7016.236925 | AF180: Lam_Im | AG180: -363413.2919 | AH180: LamorHS | AI180: -370429.5288 | AJ180: 0.9810591857
A181: T | B181: 233 | C181: 32148.90954 | D181: 1792680.23 | I181: K | J181: 55.76177407 | K181: kex | L181: 1824829.14 | M181: R2HS | N181: 253.4500551 | O181: R2LS | P181: 0.1 | Q181: coeff Rm | R181: 1.000582505 | S181: coeff Rp | T181: -0.0005825049411 | U181: coeff Im | V181: -0.0002242026027 | W181: coeff Ip | X181: 0.0002242026027 | Y181: Lam_Rp | Z181: 1823695.935 | AA181: Lam_Rm | AB181: 1386.755196 | AD181: Lam_Ip | AE181: -5993.498236 | AF181: Lam_Im | AG181: -346152.0448 | AH181: LamorHS | AI181: -352145.543 | AJ181: 0.9829800537
A182: T | B182: 243 | C182: 53871.2866 | D182: 3810875.916 | I182: K | J182: 70.74039172 | K182: kex | L182: 3864747.203 | M182: R2HS | N182: 208.5581743 | O182: R2LS | P182: 0.1 | Q182: coeff Rm | R182: 1.000101377 | S182: coeff Rp | T182: -0.0001013773291 | U182: coeff Im | V182: -1.710290184e-05 | W182: coeff Ip | X182: 1.710290184e-05 | Y182: Lam_Rp | Z182: 3864352.935 | AA182: Lam_Rm | AB182: 602.9260667 | AD182: Lam_Ip | AE182: -4641.69843 | AF182: Lam_Im | AG182: -330724.7136 | AH182: LamorHS | AI182: -335366.412 | AJ182: 0.9861593223
A183: T | B183: 253 | C183: 86661.42626 | D183: 7632305.08 | I183: K | J183: 88.0703839 | K183: kex | L183: 7718966.506 | M183: R2HS | N183: 170.3494323 | O183: R2LS | P183: 0.1 | Q183: coeff Rm | R183: 1.000018978 | S183: coeff Rp | T183: -1.897811967e-05 | U183: coeff Im | V183: -1.520097335e-06 | W183: coeff Ip | X183: 1.520097335e-06 | Y183: Lam_Rp | Z183: 7718821.559 | AA183: Lam_Rm | AB183: 315.3961607 | AD183: Lam_Ip | AE183: -3585.897845 | AF183: Lam_Im | AG183: -316327.7967 | AH183: LamorHS | AI183: -319913.6945 | AJ183: 0.9887910461
A184: T | B184: 263 | C184: 134460.0571 | D184: 14499363.01 | I184: K | J184: 107.8339793 | K184: kex | L184: 14633823.07 | M184: R2HS | N184: 144.4593424 | O184: R2LS | P184: 0.1 | Q184: coeff Rm | R184: 1.000003966 | S184: coeff Rp | T184: -3.96645909e-06 | U184: coeff Im | V184: -1.589577944e-07 | W184: coeff Ip | X184: 1.589577944e-07 | Y184: Lam_Rp | Z184: 14633766.41 | AA184: Lam_Rm | AB184: 201.2240529 | AD184: Lam_Ip | AE184: -2807.142079 | AF184: Lam_Im | AG184: -302828.9466 | AH184: LamorHS | AI184: -305636.0887 | AJ184: 0.9908154103
A185: T | B185: 273 | C185: 202015.6952 | D185: 26279980.6 | I185: K | J185: 130.0888061 | K185: kex | L185: 26481996.3 | M185: R2HS | N185: 125.5714838 | O185: R2LS | P185: 0.1 | Q185: coeff Rm | R185: 1.000000923 | S185: coeff Rp | T185: -9.226447328e-07 | U185: coeff Im | V185: -1.927449056e-08 | W185: coeff Ip | X185: 1.927449056e-08 | Y185: Lam_Rp | Z185: 26481972.91 | AA185: Lam_Rm | AB185: 149.0532003 | AD185: Lam_Ip | AE185: -2230.338237 | AF185: Lam_Im | AG185: -290174.123 | AH185: LamorHS | AI185: -292404.4612 | AJ185: 0.9923724206
A186: T | B186: 283 | C186: 294905.4589 | D186: 45671831.56 | I186: K | J186: 154.8694003 | K186: kex | L186: 45966737.02 | M186: R2HS | N186: 109.2083775 | O186: R2LS | P186: 0.1 | Q186: coeff Rm | R186: 1.000000237 | S186: coeff Rp | T186: -2.366827185e-07 | U186: coeff Im | V186: -2.663239005e-09 | W186: coeff Ip | X186: 2.663239005e-09 | Y186: Lam_Rp | Z186: 45966726.94 | AA186: Lam_Rm | AB186: 119.3886169 | AD186: Lam_Ip | AE186: -1797.011152 | AF186: Lam_Im | AG186: -278310.92 | AH186: LamorHS | AI186: -280107.9311 | AJ186: 0.993584576
A187: T | B187: 293 | C187: 419532.5396 | D187: 76434242.74 | I187: K | J187: 182.1890688 | K187: kex | L187: 76853775.28 | M187: R2HS | N187: 94.85888871 | O187: R2LS | P187: 0.1 | Q187: coeff Rm | R187: 1.000000066 | S187: coeff Rp | T187: -6.633711178e-08 | U187: coeff Im | V187: -4.119209109e-10 | W187: coeff Ip | X187: 4.119209109e-10 | Y187: Lam_Rp | Z187: 76853770.8 | AA187: Lam_Rm | AB187: 99.43997504 | AD187: Lam_Ip | AE187: -1466.507724 | AF187: Lam_Im | AG187: -267184.2469 | AH187: LamorHS | AI187: -268650.7546 | AJ187: 0.9945412112
A188: T | B188: 303 | C188: 583101.3039 | D188: 123641942.8 | I188: K | J188: 212.041959 | K188: kex | L188: 124225044.1 | M188: R2HS | N188: 82.08421783 | O188: R2LS | P188: 0.1 | Q188: coeff Rm | R188: 1.00000002 | S188: coeff Rp | T188: -2.014372817e-08 | U188: coeff Im | V188: -7.006608861e-11 | W188: coeff Ip | X188: 7.006608861e-11 | Y188: Lam_Rp | Z188: 124225042.1 | AA188: Lam_Rm | AB188: 84.2017629 | AD188: Lam_Ip | AE188: -1210.789982 | AF188: Lam_Im | AG188: -256739.0374 | AH188: LamorHS | AI188: -257949.8274 | AJ188: 0.9953061028
A189: T | B189: 313 | C189: 793572.0741 | D189: 193953153.9 | I189: K | J189: 244.4052156 | K189: kex | L189: 194746725.9 | M189: R2HS | N189: 71.94572819 | O189: R2LS | P189: 0.1 | Q189: coeff Rm | R189: 1.000000007 | S189: coeff Rp | T189: -6.57762188e-09 | U189: coeff Im | V189: -1.279938742e-11 | W189: coeff Ip | X189: 1.279938742e-11 | Y189: Lam_Rp | Z189: 194746725.1 | AA189: Lam_Rm | AB189: 72.93393752 | AD189: Lam_Ip | AE189: -1010.298213 | AF189: Lam_Im | AG189: -246922.3673 | AH189: LamorHS | AI189: -247932.6655 | AJ189: 0.9959251105
A190: T | B190: 323 | C190: 1059598.385 | D190: 295883459.1 | I190: K | J190: 279.2411383 | K190: kex | L190: 296943057.5 | M190: R2HS | N190: 65.89202175 | O190: R2LS | P190: 0.1 | Q190: coeff Rm | R190: 1.000000002 | S190: coeff Rp | T190: -2.294436116e-09 | U190: coeff Im | V190: -2.394270727e-12 | W190: coeff Ip | X190: 2.394270727e-12 | Y190: Lam_Rp | Z190: 296943057.2 | AA190: Lam_Rm | AB190: 66.33856973 | AD190: Lam_Ip | AE190: -851.180222 | AF190: Lam_Im | AG190: -237684.5811 | AH190: LamorHS | AI190: -238535.7613 | AJ190: 0.9964316452
A191: T | B191: 333 | C191: 1390449.958 | D191: 440076402.5 | I191: K | J191: 316.4992743 | K191: kex | L191: 441466852.5 | M191: R2HS | N191: 58.57945384 | O191: R2LS | P191: 0.1 | Q191: coeff Rm | R191: 1.000000001 | S191: coeff Rp | T191: -8.500124565e-10 | U191: coeff Im | V191: -4.461777508e-13 | W191: coeff Ip | X191: 4.461777508e-13 | Y191: Lam_Rp | Z191: 441466852.4 | AA191: Lam_Rm | AB191: 58.77051851 | AD191: Lam_Ip | AE191: -723.4764089 | AF191: Lam_Im | AG191: -228979.7593 | AH191: LamorHS | AI191: -229703.2357 | AJ191: 0.9968503865
A192: T | B192: 343 | C192: 1795924.816 | D192: 639561874.6 | I192: K | J192: 356.1184014 | K192: kex | L192: 641357799.5 | M192: R2HS | N192: 53.56488784 | O192: R2LS | P192: 0.1 | Q192: coeff Rm | R192: 1 | S192: coeff Rp | T192: -3.327120822e-10 | U192: coeff Im | V192: -6.770607167e-14 | W192: coeff Ip | X192: 6.770607167e-14 | Y192: Lam_Rp | Z192: 641357799.5 | AA192: Lam_Rm | AB192: 53.62856334 | AD192: Lam_Ip | AE192: -619.922513 | AF192: Lam_Im | AG192: -220765.8037 | AH192: LamorHS | AI192: -221385.7262 | AJ192: 0.9971998081
A193: T | B193: 353 | C193: 2286253.928 | D193: 909993934.4 | I193: K | J193: 398.0283743 | K193: kex | L193: 912280188.3 | M193: R2HS | N193: 18.95064865 | O193: R2LS | P193: 0.1 | Q193: coeff Rm | R193: 1 | S193: coeff Rp | T193: -1.36963994e-10 | U193: coeff Im | V193: -3.961597766e-14 | W193: coeff Ip | X193: 3.961597766e-14 | Y193: Lam_Rp | Z193: 912280188.3 | AA193: Lam_Rm | AB193: 19.02835679 | AD193: Lam_Ip | AE193: -535.1485624 | AF193: Lam_Im | AG193: -213004.3151 | AH193: LamorHS | AI193: -213539.4637 | AJ193: 0.9974939126
A194: T | B194: 363 | C194: 2872001.567 | D194: 1269860706 | I194: K | J194: 442.1518154 | K194: kex | L194: 1272732708 | M194: R2HS | N194: 18.10277279 | O194: R2LS | P194: 0.1 | Q194: coeff Rm | R194: 1 | S194: coeff Rp | T194: -5.905483425e-11 | U194: coeff Im | V194: -8.726568377e-15 | W194: coeff Ip | X194: 8.726568377e-15 | Y194: Lam_Rp | Z194: 1272732708 | AA194: Lam_Rm | AB194: 18.13730955 | AD194: Lam_Ip | AE194: -465.1351872 | AF194: Lam_Im | AG194: -205660.3669 | AH194: LamorHS | AI194: -206125.5021 | AJ194: 0.997743437
A195: T | B195: 373 | C195: 3563964.265 | D195: 1740660267 | I195: K | J195: 488.4056455 | K195: kex | L195: 1744224232 | M195: R2HS | N195: 17.45943204 | O195: R2LS | P195: 0.1 | Q195: coeff Rm | R195: 1 | S195: coeff Rp | T195: -2.657171924e-11 | U195: coeff Im | V195: -1.408378e-15 | W195: coeff Ip | X195: 1.408378e-15 | Y195: Lam_Rp | Z195: 1744224232 | AA195: Lam_Rm | AB195: 17.47030854 | AD195: Lam_Ip | AE195: -406.8385301 | AF195: Lam_Im | AG195: -198702.2335 | AH195: LamorHS | AI195: -199109.072 | AJ195: 0.9979567052
A196: T | B196: 383 | C196: 4373070.889 | D196: 2347037871 | I196: K | J196: 536.7024524 | K196: kex | L196: 2351410942 | M196: R2HS | N196: 17.06904842 | O196: R2LS | P196: 0.1 | Q196: coeff Rm | R196: 1 | S196: coeff Rp | T196: -1.243561242e-11 | U196: coeff Im | V196: 1.647938766e-16 | W196: coeff Ip | X196: -1.647938766e-16 | Y196: Lam_Rp | Z196: 2351410942 | AA196: Lam_Rm | AB196: 17.06673098 | AD196: Lam_Ip | AE196: -357.9285082 | AF196: Lam_Im | AG196: -192101.1067 | AH196: LamorHS | AI196: -192459.0352 | AJ196: 0.9981402354
A197: T | B197: 393 | C197: 5310285.903 | D197: 3116881353 | I197: K | J197: 586.9517028 | K197: kex | L197: 3122191639 | M197: R2HS | N197: 16.71825446 | O197: R2LS | P197: 0.1 | Q197: coeff Rm | R197: 1 | S197: coeff Rp | T197: -6.03560498e-12 | U197: coeff Im | V197: 3.604013008e-16 | W197: coeff Ip | X197: -3.604013008e-16 | Y197: Lam_Rp | Z197: 3122191639 | AA197: Lam_Rm | AB197: 16.70883417 | AD197: Lam_Ip | AE197: -316.6032567 | AF197: Lam_Im | AG197: -185830.8193 | AH197: LamorHS | AI197: -186147.4226 | AJ197: 0.99829918
